Ref No,Fund Type,Dept,Cost Centre Description    ,Description    ,Creditor Name    ,GL Code Net Amount,Payment date        
2,Revenue,CCHD,Bed purchasing - Under 65s PWLD - North,Residential Homes,.,6873.04, 12-Jun-2012
3,Revenue,CCHD,Supporting People Programme,Grants to Voluntary Bodies,1625 Independent People,17214.75, 01-Jun-2012
4,Revenue,CCHD,Supporting People Programme,Grants to Voluntary Bodies,1625 Independent People,17214.75, 29-Jun-2012
5,Revenue,CCHD,Bed purchasing - Phys Dis - North,Nursing Homes,26 Severn Road,7692.28, 12-Jun-2012
6,Revenue,CCHD,Home Care - Elderly - North,Other Small Contracts,3 Trees Community Support Ltd,47.28, 19-Jun-2012
7,Revenue,CCHD,Day Care - North,Private & Voluntary Day Care,3 Trees Community Support Ltd,86.68, 19-Jun-2012
8,Revenue,CCHD,Home Care - LD Under 65 - South,Private & Voluntary Home Care,3 Trees Community Support Ltd,110.32, 19-Jun-2012
9,Revenue,CCHD,PWLD Home Care - Under 65 - KH,Private & Voluntary Home Care,3 Trees Community Support Ltd,267.92, 19-Jun-2012
10,Revenue,CCHD,Home Care - Elderly - North,Other Small Contracts,3 Trees Community Support Ltd,47.28, 19-Jun-2012
11,Revenue,CCHD,Day Care - North,Private & Voluntary Day Care,3 Trees Community Support Ltd,78.8, 19-Jun-2012
12,Revenue,CCHD,Home Care - LD Under 65 - South,Private & Voluntary Home Care,3 Trees Community Support Ltd,110.32, 19-Jun-2012
13,Revenue,CCHD,PWLD Home Care - Under 65 - KH,Private & Voluntary Home Care,3 Trees Community Support Ltd,263.98, 19-Jun-2012
14,Revenue,CCHD,Supported Living - PS,Private & Voluntary Home Care,3 Trees Community Support Ltd,585.05, 20-Jun-2012
15,Revenue,CCHD,Supported Living - PS,Private & Voluntary Home Care,3 Trees Community Support Ltd,1259.86, 20-Jun-2012
16,Revenue,CCHD,Supported Living - PS,Private & Voluntary Home Care,3 Trees Community Support Ltd,1693.86, 06-Jun-2012
17,Revenue,CCHD,Purchase of Non-Res Care - PS,Private & Voluntary Day Care,3 Trees Community Support Ltd,2782.68, 20-Jun-2012
18,Revenue,CCHD,Supported Living - KD,Private & Voluntary Home Care,3 Trees Community Support Ltd,8027.2, 18-Jun-2012
19,Revenue,CCHD,Supported Living (S28a) North,Private & Voluntary Home Care,3 Trees Community Support Ltd,6264.48, 21-Jun-2012
20,Revenue,CCHD,Purchase of Non-Res Care - KD,Private & Voluntary Day Care,3 Trees Community Support Ltd,4736.19, 26-Jun-2012
21,Revenue,CCHD,Supported Living - KD,Private & Voluntary Home Care,3 Trees Community Support Ltd,2315.49, 26-Jun-2012
22,Revenue,CCHD,Purchase of Non-Res Care - KD,Private & Voluntary Day Care,3 Trees Community Support Ltd,1615.69, 26-Jun-2012
23,Revenue,CCHD,Purchase of Non-Res Care - KD,Private & Voluntary Day Care,3 Trees Community Support Ltd,1707.81, 26-Jun-2012
24,Revenue,CCHD,Purchase of Non-Res Care - KD,Private & Voluntary Day Care,3 Trees Community Support Ltd,1259.64, 26-Jun-2012
25,Revenue,CCHD,Purchase of Non-Res Care - KD,Private & Voluntary Day Care,3 Trees Community Support Ltd,5605.75, 25-Jun-2012
26,Revenue,CCHD,Supported Living - KD,Private & Voluntary Home Care,3 Trees Community Support Ltd,7956.05, 25-Jun-2012
27,Revenue,CCHD,Bed Purchasing - Elderly S117- North,Residential Homes,3Rd Floor Westbury House,3432, 12-Jun-2012
28,Revenue,CCHD,Woodleaze,R & M by Departments,A E Horder (Contracting) Limited,476.54, 29-Jun-2012
29,Revenue,CCHD,Woodleaze,Maintenance by Contractor,A G Gribble Limited,2425, 14-Jun-2012
30,Revenue,CCHD,Woodleaze,Prop.Serv. General Repairs,A G Gribble Limited,2740, 27-Jun-2012
31,Revenue,CCHD,Direct Payments - Phys Dis - North,Grants to Voluntary Bodies,A4E Management Limited,22857.93, 25-Jun-2012
32,Revenue,CCHD,Bed Purchasing - Elderly - South,Residential Homes,Ablecare Homes,888.52, 12-Jun-2012
33,Revenue,CCHD,Frenchay Hospital Purchasing,Residential Homes,Ablecare Homes,1403.2, 12-Jun-2012
34,Revenue,CCHD,Southmead Hospital Purchasing,Residential Homes,Ablecare Homes,1342.76, 12-Jun-2012
35,Revenue,CCHD,Frenchay Hospital Purchasing,Residential Homes,Ablecare Homes,1232.84, 12-Jun-2012
36,Revenue,CCHD,Bed Purchasing - Elderly - South,Residential Homes,Ablecare Homes,1598.8, 12-Jun-2012
37,Revenue,CCHD,Bed Purchasing - Elderly - South,Residential Homes,Ablecare Homes,766.95, 12-Jun-2012
38,Revenue,CCHD,Bed Purchasing - Elderly - South,Residential Homes,Ablecare Homes,820.28, 12-Jun-2012
39,Revenue,CCHD,Bed Purchasing - Elderly - North,Residential Homes,Ablecare Homes,1241.36, 12-Jun-2012
40,Revenue,CCHD,Southmead Hospital Purchasing,Residential Homes,Ablecare Homes,1165.16, 12-Jun-2012
41,Revenue,CCHD,Bed Purchasing - Elderly MH - South,Residential Homes,Ablecare Homes,1209.88, 12-Jun-2012
42,Revenue,CCHD,Bed purchasing - Elderly MH - North,Residential Homes,Ablecare Homes,1394.24, 12-Jun-2012
43,Revenue,CCHD,Bed Purchasing - Elderly - South,Residential Homes,Ablecare Homes,1281.16, 12-Jun-2012
44,Revenue,CCHD,Bed Purchasing - Elderly - South,Residential Homes,Ablecare Homes,1398.12, 12-Jun-2012
45,Revenue,CCHD,Older People's Commissioned Se,Grants to Voluntary Bodies,Action for Blind People,19065, 29-Jun-2012
46,Revenue,CCHD,Day Care - North,Private & Voluntary Day Care,Age UK South Gloucestershire,1251.84, 06-Jun-2012
47,Revenue,CCHD,Day Care - North,Private & Voluntary Day Care,Age UK South Gloucestershire,1223.36, 06-Jun-2012
48,Revenue,CCHD,Day Care - South,Private & Voluntary Day Care,Age UK South Gloucestershire,782.6, 15-Jun-2012
49,Revenue,CCHD,Day Care - North,Private & Voluntary Day Care,Age UK South Gloucestershire,313.04, 15-Jun-2012
50,Revenue,CCHD,Day Care - South,Private & Voluntary Day Care,Age UK South Gloucestershire,1550.4, 11-Jun-2012
51,Revenue,CCHD,Home Care - Elderly - South,Other Small Contracts,Agincare Chippenham,691.66, 07-Jun-2012
52,Revenue,CCHD,Home Care - Elderly - South,Other Small Contracts,Agincare Chippenham,955.89, 07-Jun-2012
53,Revenue,CCHD,Home Care - Elderly - South,Other Small Contracts,Agincare UK Limited,944.28, 25-Jun-2012
54,Revenue,CCHD,Home Care - Elderly - North,Other Small Contracts,Agincare UK Limited,61.92, 25-Jun-2012
55,Revenue,CCHD,Day Care - South,Private & Voluntary Day Care,Agincare UK Limited,96.75, 25-Jun-2012
56,Revenue,CCHD,Elderly MH Day Care North,Private & Voluntary Day Care,Agincare UK Limited,108.36, 25-Jun-2012
57,Revenue,CCHD,Home Care - Elderly - South,Other Small Contracts,Agincare UK Limited,863.01, 25-Jun-2012
58,Revenue,CCHD,Home Care - Elderly - North,Other Small Contracts,Agincare UK Limited,69.66, 25-Jun-2012
59,Revenue,CCHD,Day Care - South,Private & Voluntary Day Care,Agincare UK Limited,243.81, 25-Jun-2012
60,Revenue,CCHD,Elderly MH Day Care North,Private & Voluntary Day Care,Agincare UK Limited,108.36, 25-Jun-2012
61,Revenue,CCHD,Home Care - Elderly - South,Other Small Contracts,Agincare UK Limited,1097.48, 07-Jun-2012
62,Revenue,CCHD,Home Care - Elderly - North,Other Small Contracts,Agincare UK Limited,65.71, 07-Jun-2012
63,Revenue,CCHD,Day Care - South,Private & Voluntary Day Care,Agincare UK Limited,131.02, 07-Jun-2012
64,Revenue,CCHD,Elderly MH Day Care North,Private & Voluntary Day Care,Agincare UK Limited,102.6, 07-Jun-2012
65,Revenue,CCHD,Home Care - Elderly - South,Other Small Contracts,Agincare UK Limited,1010.07, 25-Jun-2012
66,Revenue,CCHD,Home Care - Elderly - North,Other Small Contracts,Agincare UK Limited,61.92, 25-Jun-2012
67,Revenue,CCHD,Day Care - South,Private & Voluntary Day Care,Agincare UK Limited,216.72, 25-Jun-2012
68,Revenue,CCHD,Elderly MH Day Care North,Private & Voluntary Day Care,Agincare UK Limited,100.62, 25-Jun-2012
69,Revenue,CCHD,Home Care - Elderly - South,Other Small Contracts,Agincare UK Limited,886.23, 25-Jun-2012
70,Revenue,CCHD,Home Care - Elderly - North,Other Small Contracts,Agincare UK Limited,65.79, 25-Jun-2012
71,Revenue,CCHD,Day Care - South,Private & Voluntary Day Care,Agincare UK Limited,243.81, 25-Jun-2012
72,Revenue,CCHD,Elderly MH Day Care North,Private & Voluntary Day Care,Agincare UK Limited,112.23, 25-Jun-2012
73,Revenue,CCHD,S117 Placements PCT,Residential Homes,Alexandra House,6810.28, 12-Jun-2012
74,Revenue,CCHD,Home Care - Elderly - North,Other Small Contracts,Allied  Healthcare Group Limited,862.89, 01-Jun-2012
75,Revenue,CCHD,Home Care - Elderly - North,Other Small Contracts,Allied  Healthcare Group Limited,862.89, 01-Jun-2012
76,Revenue,CCHD,Home Care - Elderly - North,Other Small Contracts,Allied  Healthcare Group Limited,862.89, 01-Jun-2012
77,Revenue,CCHD,Home Care - Elderly - North,Other Small Contracts,Allied  Healthcare Group Limited,862.89, 01-Jun-2012
78,Revenue,CCHD,Home Care - Elderly - North,Other Small Contracts,Allied  Healthcare Group Limited,863.52, 01-Jun-2012
79,Revenue,CCHD,Home Care - Elderly - North,Other Small Contracts,Allied  Healthcare Group Limited,862.44, 01-Jun-2012
80,Revenue,CCHD,Home Care - Elderly - North,Other Small Contracts,Allied  Healthcare Group Limited,862.26, 01-Jun-2012
81,Revenue,CCHD,Home Care - Elderly - North,Other Small Contracts,Allied  Healthcare Group Limited,801.32, 19-Jun-2012
82,Revenue,CCHD,Home Care - Elderly - South,Other Small Contracts,Allied Healthcare Group,703.06, 14-Jun-2012
83,Revenue,CCHD,Home Care - Elderly - North,Other Small Contracts,Allied Healthcare Group,1042.11, 14-Jun-2012
84,Revenue,CCHD,Day Care - North,Private & Voluntary Day Care,Allied Healthcare Group,44.88, 14-Jun-2012
85,Revenue,CCHD,Home Care - Elderly - South,Other Small Contracts,Allied Healthcare Group,678.18, 14-Jun-2012
86,Revenue,CCHD,Home Care - Elderly - North,Other Small Contracts,Allied Healthcare Group,1415.18, 14-Jun-2012
87,Revenue,CCHD,Day Care - North,Private & Voluntary Day Care,Allied Healthcare Group,45.72, 14-Jun-2012
88,Revenue,CCHD,Home Care - Elderly - South,Other Small Contracts,Allied Healthcare Group,666.75, 14-Jun-2012
89,Revenue,CCHD,Home Care - Elderly - North,Other Small Contracts,Allied Healthcare Group,1840.24, 14-Jun-2012
90,Revenue,CCHD,Day Care - North,Private & Voluntary Day Care,Allied Healthcare Group,45.72, 14-Jun-2012
91,Revenue,CCHD,Home Care - Elderly - South,Other Small Contracts,Allied Healthcare Group,563.88, 14-Jun-2012
92,Revenue,CCHD,Home Care - Elderly - North,Other Small Contracts,Allied Healthcare Group,1858.84, 14-Jun-2012
93,Revenue,CCHD,Day Care - North,Private & Voluntary Day Care,Allied Healthcare Group,45.72, 14-Jun-2012
94,Revenue,CCHD,Bed Purchasing - Elderly S117- North,Private & Voluntary Day Care,Alzheimer`s Society Bristol,500.64, 15-Jun-2012
95,Revenue,CCHD,Elderly MH Day Care North,Private & Voluntary Day Care,Alzheimer`s Society Bristol,500.64, 15-Jun-2012
96,Revenue,CCHD,Elderly MH Day Care North,Private & Voluntary Day Care,Alzheimer`s Society Bristol,786.72, 22-Jun-2012
97,Revenue,CCHD,Elderly MH Day Care North,Private & Voluntary Day Care,Alzheimer`s Society Bristol,858.24, 29-Jun-2012
98,Revenue,CCHD,Elderly MH Day Care South,Private & Voluntary Day Care,Alzheimer`s Society Bristol,786.72, 22-Jun-2012
99,Revenue,CCHD,Elderly MH Day Care North,Private & Voluntary Day Care,Alzheimer`s Society Bristol,858.24, 15-Jun-2012
100,Revenue,CCHD,Elderly MH Day Care South,Private & Voluntary Day Care,Alzheimer`s Society Bristol,572.16, 22-Jun-2012
101,Revenue,CCHD,Elderly MH Day Care North,Private & Voluntary Day Care,Alzheimers Society,500.64, 29-Jun-2012
102,Revenue,CCHD,Frenchay Hospital Purchasing,Residential Homes,Anbridge Care Home,828.88, 12-Jun-2012
103,Revenue,CCHD,Tenancy Start Up Scheme,Other Supplies & Services,Anne James Estate Agent,1300, 12-Jun-2012
104,Revenue,CCHD,Bed purchasing - Under 65s PWLD - North,Residential Homes,Ark Care Homes Ltd,10505.24, 12-Jun-2012
105,Revenue,CCHD,Bed and Breakfast,Bed & Breakfast,Ashley Guest Houses Ltd,960, 08-Jun-2012
106,Revenue,CCHD,Bed and Breakfast,Bed & Breakfast,Ashley Guest Houses Ltd,1464, 26-Jun-2012
107,Revenue,CCHD,Bed and Breakfast,Bed & Breakfast,Ashley Guest Houses Ltd,936, 08-Jun-2012
108,Revenue,CCHD,Bed and Breakfast,Bed & Breakfast,Ashley Guest Houses Ltd,1512, 29-Jun-2012
109,Revenue,CCHD,Bed and Breakfast,Bed & Breakfast,Ashley Guest Houses Ltd,672, 08-Jun-2012
110,Revenue,CCHD,Bed and Breakfast,Bed & Breakfast,Ashley Guest Houses Ltd,1008, 08-Jun-2012
111,Revenue,CCHD,Bed and Breakfast,Bed & Breakfast,Ashley Guest Houses Ltd,768, 08-Jun-2012
112,Revenue,CCHD,Bed and Breakfast,Bed & Breakfast,Ashley Guest Houses Ltd,1200, 15-Jun-2012
113,Revenue,CCHD,Bed and Breakfast,Bed & Breakfast,Ashley Guest Houses Ltd,840, 08-Jun-2012
114,Revenue,CCHD,Bed Purchasing - S28A - Over 65- North,Residential Homes,Aspects &  Milestones Trust,3882.32, 12-Jun-2012
115,Revenue,CCHD,Bed Purchasing - Elderly - South,Residential Homes,Aspects &  Milestones Trust,1398.4, 12-Jun-2012
116,Revenue,CCHD,Bed Purchasing - Under 65s PWLD - South,Residential Homes,Aspects &  Milestones Trust,5909.2, 12-Jun-2012
117,Revenue,CCHD,Bed Purchasing - Elderly S117- North,Residential Homes,Aspects &  Milestones Trust,1325.92, 12-Jun-2012
118,Revenue,CCHD,Bed Purchasing - Elderly S117- North,Nursing Homes,Aspects &  Milestones Trust,1944.08, 12-Jun-2012
119,Revenue,CCHD,Bed purchasing - Elderly MH - North,Nursing Homes,Aspects &  Milestones Trust,21525.72, 12-Jun-2012
120,Revenue,CCHD,Bed purchasing - Elderly MH - North,Nursing Homes,Aspects &  Milestones Trust,2318.24, 12-Jun-2012
121,Revenue,CCHD,Bed purchasing - Elderly PWLD - North,Residential Homes,Aspects &  Milestones Trust,3554.88, 12-Jun-2012
122,Revenue,CCHD,Bed Purchasing - Under 65s PWLD - South,Residential Homes,Aspects &  Milestones Trust,5227.12, 12-Jun-2012
123,Revenue,CCHD,Bed Purchasing - Under 65s PWLD - South,Residential Homes,Aspects &  Milestones Trust,5683.72, 12-Jun-2012
124,Revenue,CCHD,Bed Purchasing - Under 65s PWLD - South,Nursing Homes,Aspects &  Milestones Trust,2766.32, 12-Jun-2012
125,Revenue,CCHD,Bed Purchasing - Under 65s PWLD - South,Nursing Homes,Aspects &  Milestones Trust,6253.8, 12-Jun-2012
126,Revenue,CCHD,Bed Purchasing - Elderly S117- North,Nursing Homes,Aspects &  Milestones Trust,1944, 12-Jun-2012
127,Revenue,CCHD,Bed purchasing - Elderly MH - North,Nursing Homes,Aspects &  Milestones Trust,18468.4, 12-Jun-2012
128,Revenue,CCHD,Bed purchasing - Elderly MH - North,Nursing Homes,Aspects &  Milestones Trust,2502.64, 12-Jun-2012
129,Revenue,CCHD,Bed purchasing - Elderly MH - North,Nursing Homes,Aspects &  Milestones Trust,1430.08, 12-Jun-2012
130,Revenue,CCHD,Bed purchasing - Elderly MH - North,Nursing Homes,Aspects &  Milestones Trust,1475.2, 12-Jun-2012
131,Revenue,CCHD,Section 117 Placements MH Younger,Nursing Homes,Aspects &  Milestones Trust,2478, 12-Jun-2012
132,Revenue,CCHD,Section 117 Placements MH Younger,Nursing Homes,Aspects &  Milestones Trust,3006.86, 12-Jun-2012
133,Revenue,CCHD,Bed purchasing - Elderly PWLD - South,Residential Homes,Aspects &  Milestones Trust,3199.56, 12-Jun-2012
134,Revenue,CCHD,Bed Purchasing - Elderly S117- North,Residential Homes,Aspects &  Milestones Trust,1716, 12-Jun-2012
135,Revenue,CCHD,Bed purchasing - Elderly PWLD - South,Residential Homes,Aspects &  Milestones Trust,4357.8, 12-Jun-2012
136,Revenue,CCHD,Bed purchasing -S28A  Under 65 - North,Nursing Homes,Aspects &  Milestones Trust,5800.72, 12-Jun-2012
137,Revenue,CCHD,Bed purchasing -S28A  Under 65 - North,Residential Homes,Aspects &  Milestones Trust,5183.96, 12-Jun-2012
138,Revenue,CCHD,Bed Purchasing - Under 65s PWLD - South,Residential Homes,Aspects &  Milestones Trust,3495.32, 12-Jun-2012
139,Revenue,CCHD,Bed purchasing - S28A Under 65 - South,Residential Homes,Aspects &  Milestones Trust,5327.8, 12-Jun-2012
140,Revenue,CCHD,Bed Purchasing - Under 65s PWLD - South,Residential Homes,Aspects &  Milestones Trust,5721.6, 12-Jun-2012
141,Revenue,CCHD,Bed Purchasing - Under 65s PWLD - South,Residential Homes,Aspects &  Milestones Trust,10557.75, 12-Jun-2012
142,Revenue,CCHD,Bed purchasing - Under 65s PWLD - North,Residential Homes,Aspects &  Milestones Trust,3843.72, 12-Jun-2012
143,Revenue,CCHD,Bed purchasing - S28A Under 65 - South,Nursing Homes,Aspects &  Milestones Trust,7576.08, 12-Jun-2012
144,Revenue,CCHD,MH Purchasing - Younger,Residential Homes,Aspects &  Milestones Trust,847.2, 12-Jun-2012
145,Revenue,CCHD,Bed purchasing - Elderly PWLD - South,Residential Homes,Aspects &  Milestones Trust,5276.32, 12-Jun-2012
146,Revenue,CCHD,Elderly PWLD - KH,Residential Homes,Aspects &  Milestones Trust,3791.92, 12-Jun-2012
147,Revenue,CCHD,Bed purchasing - Elderly PWLD - North,Residential Homes,Aspects &  Milestones Trust,4732.52, 12-Jun-2012
148,Revenue,CCHD,Bed purchasing -S28A  Under 65 - North,Residential Homes,Aspects &  Milestones Trust,5268.68, 12-Jun-2012
149,Revenue,CCHD,Bed purchasing -S28A  Under 65 - North,Residential Homes,Aspects &  Milestones Trust,6125.96, 12-Jun-2012
150,Revenue,CCHD,Bed purchasing -S28A  Under 65 - North,Nursing Homes,Aspects &  Milestones Trust,6213.88, 12-Jun-2012
151,Revenue,CCHD,Bed Purchasing - Under 65s PWLD - South,Residential Homes,Aspects &  Milestones Trust,3699.6, 12-Jun-2012
152,Revenue,CCHD,Bed purchasing -S28A  Under 65 - North,Residential Homes,Aspects &  Milestones Trust,6125.96, 12-Jun-2012
153,Revenue,CCHD,Bed purchasing - S28A Under 65 - South,Residential Homes,Aspects &  Milestones Trust,4856.92, 12-Jun-2012
154,Revenue,CCHD,Bed Purchasing - S28A - Over 65- North,Residential Homes,Aspects &  Milestones Trust,4732.76, 12-Jun-2012
155,Revenue,CCHD,Bed Purchasing - LD S28A- Over 65- South,Residential Homes,Aspects &  Milestones Trust,4015.52, 12-Jun-2012
156,Revenue,CCHD,Bed purchasing -S28A  Under 65 - North,Residential Homes,Aspects &  Milestones Trust,6125.96, 12-Jun-2012
157,Revenue,CCHD,Bed Purchasing - S28A - Over 65- North,Residential Homes,Aspects &  Milestones Trust,4239.2, 12-Jun-2012
158,Revenue,CCHD,Bed purchasing -S28A  Under 65 - North,Residential Homes,Aspects &  Milestones Trust,6125.96, 12-Jun-2012
159,Revenue,CCHD,Bed Purchasing - LD S28A- Over 65- South,Residential Homes,Aspects &  Milestones Trust,3905.44, 12-Jun-2012
160,Revenue,CCHD,Bed purchasing - S28A Under 65 - South,Residential Homes,Aspects &  Milestones Trust,5052.2, 12-Jun-2012
161,Revenue,CCHD,Bed purchasing - S28A Under 65 - South,Residential Homes,Aspects &  Milestones Trust,6626.28, 12-Jun-2012
162,Revenue,CCHD,Bed purchasing - S28A Under 65 - South,Residential Homes,Aspects &  Milestones Trust,4047.8, 12-Jun-2012
163,Revenue,CCHD,Bed Purchasing - LD S28A- Over 65- South,Residential Homes,Aspects &  Milestones Trust,5824.28, 12-Jun-2012
164,Revenue,CCHD,Bed Purchasing - S28A - Over 65- North,Residential Homes,Aspects &  Milestones Trust,3397.72, 12-Jun-2012
165,Revenue,CCHD,Bed Purchasing - LD S28A- Over 65- South,Residential Homes,Aspects &  Milestones Trust,4760.52, 12-Jun-2012
166,Revenue,CCHD,Bed Purchasing - LD S28A- Over 65- South,Residential Homes,Aspects &  Milestones Trust,4908.2, 12-Jun-2012
167,Revenue,CCHD,Bed Purchasing - LD S28A- Over 65- South,Residential Homes,Aspects &  Milestones Trust,4622.6, 12-Jun-2012
168,Revenue,CCHD,Bed Purchasing - LD S28A- Over 65- South,Residential Homes,Aspects &  Milestones Trust,5383.48, 12-Jun-2012
169,Revenue,CCHD,Bed purchasing -S28A  Under 65 - North,Residential Homes,Aspects &  Milestones Trust,7309.52, 12-Jun-2012
170,Revenue,CCHD,Bed purchasing -S28A  Under 65 - North,Nursing Homes,Aspects &  Milestones Trust,6296.44, 12-Jun-2012
171,Revenue,CCHD,Bed Purchasing - LD S28A- Over 65- South,Residential Homes,Aspects &  Milestones Trust,3492.92, 12-Jun-2012
172,Revenue,CCHD,Bed Purchasing - LD S28A- Over 65- South,Residential Homes,Aspects &  Milestones Trust,3251.48, 12-Jun-2012
173,Revenue,CCHD,Bed Purchasing - S28A - Over 65- North,Residential Homes,Aspects &  Milestones Trust,3308.72, 12-Jun-2012
174,Revenue,CCHD,Bed Purchasing - LD S28A- Over 65- South,Residential Homes,Aspects &  Milestones Trust,4720.44, 12-Jun-2012
175,Revenue,CCHD,Section 117 Placements MH Younger,Residential Homes,Aspects &  Milestones Trust,1324, 12-Jun-2012
176,Revenue,CCHD,Bed purchasing - Elderly MH - North,Residential Homes,Aspects &  Milestones Trust,849.48, 12-Jun-2012
177,Revenue,CCHD,Bed purchasing - S28A Under 65 - South,Residential Homes,Aspects &  Milestones Trust,4790.96, 12-Jun-2012
178,Revenue,CCHD,Bed purchasing - Elderly PWLD - North,Residential Homes,Aspects &  Milestones Trust,5424.04, 12-Jun-2012
179,Revenue,CCHD,Bed purchasing - Under 65s PWLD - North,Residential Homes,Aspects &  Milestones Trust,5511.12, 12-Jun-2012
180,Revenue,CCHD,Bed purchasing - Elderly MH - North,Nursing Homes,Aspects &  Milestones Trust,1096.68, 12-Jun-2012
181,Revenue,CCHD,Bed Purchasing - Under 65s PWLD - South,Residential Homes,Aspects &  Milestones Trust,3849.4, 12-Jun-2012
182,Revenue,CCHD,Bed purchasing -S28A  Under 65 - North,Residential Homes,Aspects &  Milestones Trust,5771.6, 12-Jun-2012
183,Revenue,CCHD,Bed Purchasing - S28A - Over 65- North,Residential Homes,Aspects &  Milestones Trust,3271.48, 12-Jun-2012
184,Revenue,CCHD,Section 117 Placements MH Younger,Residential Homes,Aspects &  Milestones Trust,1716, 12-Jun-2012
185,Revenue,CCHD,MH Purchasing - Younger,Residential Homes,Aspects &  Milestones Trust,1012.6, 12-Jun-2012
186,Revenue,CCHD,Bed Purchasing - S28A - Over 65- North,Residential Homes,Aspects &  Milestones Trust,3511.28, 12-Jun-2012
187,Revenue,CCHD,Bed purchasing - S28A Under 65 - South,Residential Homes,Aspects &  Milestones Trust,3563.92, 12-Jun-2012
188,Revenue,CCHD,Bed purchasing - S28A Under 65 - South,Residential Homes,Aspects &  Milestones Trust,5052.2, 12-Jun-2012
189,Revenue,CCHD,Bed purchasing - S28A Under 65 - South,Residential Homes,Aspects &  Milestones Trust,6024.64, 12-Jun-2012
190,Revenue,CCHD,Bed Purchasing - LD S28A- Over 65- South,Residential Homes,Aspects &  Milestones Trust,5898.16, 12-Jun-2012
191,Revenue,CCHD,Bed Purchasing - LD S28A- Over 65- South,Residential Homes,Aspects &  Milestones Trust,4164.96, 12-Jun-2012
192,Revenue,CCHD,Bed Purchasing - LD S28A- Over 65- South,Residential Homes,Aspects &  Milestones Trust,4720.44, 12-Jun-2012
193,Revenue,CCHD,Bed Purchasing - S28A - Over 65- North,Residential Homes,Aspects &  Milestones Trust,4762.64, 12-Jun-2012
194,Revenue,CCHD,Bed Purchasing - LD S28A- Over 65- South,Residential Homes,Aspects &  Milestones Trust,5607.6, 12-Jun-2012
195,Revenue,CCHD,Bed purchasing - S28A Under 65 - South,Residential Homes,Aspects &  Milestones Trust,7738.32, 12-Jun-2012
196,Revenue,CCHD,Bed Purchasing - LD S28A- Over 65- South,Residential Homes,Aspects &  Milestones Trust,4902.32, 12-Jun-2012
197,Revenue,CCHD,Bed purchasing -S28A  Under 65 - North,Residential Homes,Aspects &  Milestones Trust,4743.92, 12-Jun-2012
198,Revenue,CCHD,Bed Purchasing - S28A - Over 65- North,Residential Homes,Aspects &  Milestones Trust,4885.4, 12-Jun-2012
199,Revenue,CCHD,Bed Purchasing - S28A - Over 65- North,Residential Homes,Aspects &  Milestones Trust,5473.64, 12-Jun-2012
200,Revenue,CCHD,Bed purchasing - S28A Under 65 - South,Residential Homes,Aspects &  Milestones Trust,4611.44, 12-Jun-2012
201,Revenue,CCHD,Bed Purchasing - S28A - Over 65- North,Residential Homes,Aspects &  Milestones Trust,4885.4, 12-Jun-2012
202,Revenue,CCHD,Bed Purchasing - S28A - Over 65- North,Residential Homes,Aspects &  Milestones Trust,5277.28, 12-Jun-2012
203,Revenue,CCHD,Bed Purchasing - LD S28A- Over 65- South,Residential Homes,Aspects &  Milestones Trust,4908.2, 12-Jun-2012
204,Revenue,CCHD,Bed purchasing - S28A Under 65 - South,Residential Homes,Aspects &  Milestones Trust,4734.4, 12-Jun-2012
205,Revenue,CCHD,Bed purchasing -S28A  Under 65 - North,Residential Homes,Aspects &  Milestones Trust,6125.96, 12-Jun-2012
206,Revenue,CCHD,Bed Purchasing - S28A - Over 65- North,Residential Homes,Aspects &  Milestones Trust,5621.68, 12-Jun-2012
207,Revenue,CCHD,Bed purchasing -S28A  Under 65 - North,Residential Homes,Aspects &  Milestones Trust,3468.84, 12-Jun-2012
208,Revenue,CCHD,Bed Purchasing - S28A - Over 65- North,Residential Homes,Aspects &  Milestones Trust,3275.16, 12-Jun-2012
209,Revenue,CCHD,Bed Purchasing - S28A - Over 65- North,Residential Homes,Aspects &  Milestones Trust,3412.88, 12-Jun-2012
210,Revenue,CCHD,Bed Purchasing - LD S28A- Over 65- South,Residential Homes,Aspects &  Milestones Trust,3204.2, 12-Jun-2012
211,Revenue,CCHD,Bed Purchasing - Under 65s PWLD - South,Residential Homes,Aspects &  Milestones Trust,7097.28, 12-Jun-2012
212,Revenue,CCHD,Bed purchasing - Elderly MH - North,Nursing Homes,Aspects &  Milestones Trust,1337.2, 12-Jun-2012
213,Revenue,CCHD,Bed purchasing - Under 65s PWLD - North,Residential Homes,Aspects &  Milestones Trust,6125.96, 12-Jun-2012
214,Revenue,CCHD,MH Purchasing - Younger,Nursing Homes,Aspects &  Milestones Trust,920.56, 12-Jun-2012
215,Revenue,CCHD,MH Purchasing - Younger,Nursing Homes,Aspects &  Milestones Trust,939.2, 12-Jun-2012
216,Revenue,CCHD,MH Purchasing - Younger,Residential Homes,Aspects &  Milestones Trust,1012.6, 12-Jun-2012
217,Revenue,CCHD,Elderly PWLD - KH,Residential Homes,Aspects &  Milestones Trust,3399.76, 12-Jun-2012
218,Revenue,CCHD,Section 117 Placements MH Younger,Nursing Homes,Aspects &  Milestones Trust,1415.4, 12-Jun-2012
219,Revenue,CCHD,Bed purchasing - S28A Under 65 - South,Residential Homes,Aspects &  Milestones Trust,7168.2, 12-Jun-2012
220,Revenue,CCHD,Bed purchasing - S28A Under 65 - South,Residential Homes,Aspects &  Milestones Trust,4866.72, 12-Jun-2012
221,Revenue,CCHD,Bed Purchasing - LD S28A- Over 65- South,Residential Homes,Aspects &  Milestones Trust,4628.68, 12-Jun-2012
222,Revenue,CCHD,Bed Purchasing - Under 65s PWLD - South,Residential Homes,Aspects &  Milestones Trust,4173.08, 12-Jun-2012
223,Revenue,CCHD,Bed Purchasing - LD S28A- Over 65- South,Residential Homes,Aspects &  Milestones Trust,3801.96, 12-Jun-2012
224,Revenue,CCHD,Bed Purchasing - LD S28A- Over 65- South,Residential Homes,Aspects &  Milestones Trust,5898.16, 12-Jun-2012
225,Revenue,CCHD,Bed Purchasing - S28A - Over 65- North,Residential Homes,Aspects &  Milestones Trust,4473.28, 12-Jun-2012
226,Revenue,CCHD,Bed Purchasing - LD S28A- Over 65- South,Residential Homes,Aspects &  Milestones Trust,3973.08, 12-Jun-2012
227,Revenue,CCHD,Bed Purchasing - LD S28A- Over 65- South,Residential Homes,Aspects &  Milestones Trust,4406.8, 12-Jun-2012
228,Revenue,CCHD,Bed Purchasing - LD S28A- Over 65- South,Residential Homes,Aspects &  Milestones Trust,5155.88, 12-Jun-2012
229,Revenue,CCHD,Bed Purchasing - Elderly MH - South,Residential Homes,Aspects &  Milestones Trust,1206.56, 12-Jun-2012
230,Revenue,CCHD,Bed Purchasing - S28A - Over 65- North,Residential Homes,Aspects &  Milestones Trust,4762.64, 12-Jun-2012
231,Revenue,CCHD,Bed Purchasing - Elderly S117- North,Nursing Homes,Aspects &  Milestones Trust,1944, 12-Jun-2012
232,Revenue,CCHD,Bed Purchasing - Elderly S117- North,Residential Homes,Aspects &  Milestones Trust,1324, 12-Jun-2012
233,Revenue,CCHD,Bed purchasing - Under 65s PWLD - North,Residential Homes,Aspects & Milestones Trust,8841.64, 12-Jun-2012
234,Revenue,CCHD,Supporting People Programme,Grants to Voluntary Bodies,Aspects and Milestones Trust,4414.26, 01-Jun-2012
235,Revenue,CCHD,Supporting People Programme,Grants to Voluntary Bodies,Aspects and Milestones Trust,4414.26, 29-Jun-2012
236,Revenue,CCHD,Supporting People Programme,Grants to Voluntary Bodies,Aspects and Milestones Trust,2391.34, 01-Jun-2012
237,Revenue,CCHD,Supporting People Programme,Grants to Voluntary Bodies,Aspects and Milestones Trust,2391.34, 29-Jun-2012
238,Revenue,CCHD,Supporting People Programme,Grants to Voluntary Bodies,Aspects and Milestones Trust,1575.46, 01-Jun-2012
239,Revenue,CCHD,Supporting People Programme,Grants to Voluntary Bodies,Aspects and Milestones Trust,1575.46, 29-Jun-2012
240,Revenue,CCHD,Supporting People Programme,Grants to Voluntary Bodies,Aspects and Milestones Trust,3074.56, 01-Jun-2012
241,Revenue,CCHD,Supporting People Programme,Grants to Voluntary Bodies,Aspects and Milestones Trust,3074.56, 29-Jun-2012
242,Revenue,CCHD,Supporting People Programme,Grants to Voluntary Bodies,Aspects and Milestones Trust,3142.43, 01-Jun-2012
243,Revenue,CCHD,Supporting People Programme,Grants to Voluntary Bodies,Aspects and Milestones Trust,3142.43, 29-Jun-2012
244,Revenue,CCHD,Supporting People Programme,Grants to Voluntary Bodies,Aspects and Milestones Trust,1918.88, 01-Jun-2012
245,Revenue,CCHD,Supporting People Programme,Grants to Voluntary Bodies,Aspects and Milestones Trust,1918.88, 29-Jun-2012
246,Revenue,CCHD,Purchase of Non-Res Care - PS,Private & Voluntary Day Care,Aspirations Support Bristol Limited,2465.49, 11-Jun-2012
247,Revenue,CCHD,Purchase of Non-Res Care - PS,Private & Voluntary Day Care,Aspirations Support Bristol Limited,3094.65, 28-Jun-2012
248,Revenue,CCHD,Bed Purchasing - Under 65s PWLD - South,Residential Homes,Autism Specialised Care Homes,5515.04, 12-Jun-2012
249,Revenue,CCHD,Purchase of Non-Res Care - KD,Private & Voluntary Day Care,Avon Autistic Foundation Limited,2650.3, 06-Jun-2012
250,Revenue,CCHD,Purchase of Non-Res Care - KD,Private & Voluntary Day Care,Avon Autistic Foundation Limited,2089.78, 25-Jun-2012
251,Revenue,CCHD,Purchase of Non-Res Care - KD,Private & Voluntary Day Care,Avon Autistic Foundation Limited,3345.92, 26-Jun-2012
252,Revenue,CCHD,Day Care - South,Private & Voluntary Day Care,Banff Securities Ltd,506.4, 19-Jun-2012
253,Revenue,CCHD,Frenchay Hospital Purchasing,Residential Homes,Beaufort House,661.44, 12-Jun-2012
254,Revenue,CCHD,Bed purchasing - Elderly MH - North,Residential Homes,Beaufort House,1418.36, 12-Jun-2012
255,Revenue,CCHD,Frenchay Hospital Purchasing,Residential Homes,Beaufort House,1276.24, 12-Jun-2012
256,Revenue,CCHD,Bed purchasing - Elderly MH - North,Residential Homes,Beaufort House,1303.96, 12-Jun-2012
257,Revenue,CCHD,Bed purchasing - Elderly MH - North,Residential Homes,Beaufort House,1318.88, 12-Jun-2012
258,Revenue,CCHD,Bed Purchasing - Elderly - North,Residential Homes,Beaufort House,1697.4, 12-Jun-2012
259,Revenue,CCHD,Bed purchasing - Elderly MH - North,Residential Homes,Beaufort House,875.84, 12-Jun-2012
260,Revenue,CCHD,Bed purchasing - Elderly MH - North,Residential Homes,Beaufort House,1011.32, 12-Jun-2012
261,Revenue,CCHD,Bed purchasing - Elderly MH - North,Residential Homes,Beaufort House,1672.68, 12-Jun-2012
262,Revenue,CCHD,South Glos Users in South Glos Homes,Nursing Homes,Beech House,869.6, 12-Jun-2012
263,Revenue,CCHD,South Glos Users in South Glos Homes,Nursing Homes,Beech House,869.6, 12-Jun-2012
264,Revenue,CCHD,South Glos Users in South Glos Homes,Nursing Homes,Beech House,869.6, 12-Jun-2012
265,Revenue,CCHD,South Glos Users in South Glos Homes,Nursing Homes,Beech House,869.6, 12-Jun-2012
266,Revenue,CCHD,Frenchay Hospital Purchasing,Nursing Homes,Beech House,1560.35, 12-Jun-2012
267,Revenue,CCHD,South Glos Users in South Glos Homes,Nursing Homes,Beech House,869.6, 12-Jun-2012
268,Revenue,CCHD,South Glos Users in South Glos Homes,Nursing Homes,Beech House,869.6, 12-Jun-2012
269,Revenue,CCHD,South Glos Users in South Glos Homes,Nursing Homes,Beech House,869.6, 12-Jun-2012
270,Revenue,CCHD,South Glos Users in South Glos Homes,Nursing Homes,Beech House,869.6, 12-Jun-2012
271,Revenue,CCHD,South Glos Users in South Glos Homes,Nursing Homes,Beech House,869.6, 12-Jun-2012
272,Revenue,CCHD,South Glos Users in South Glos Homes,Nursing Homes,Beech House,869.6, 12-Jun-2012
273,Revenue,CCHD,South Glos Users in South Glos Homes,Nursing Homes,Beech House,962.77, 12-Jun-2012
274,Revenue,CCHD,South Glos Users in South Glos Homes,Nursing Homes,Beech House,869.6, 12-Jun-2012
275,Revenue,CCHD,South Glos Users in South Glos Homes,Nursing Homes,Beech House,869.6, 12-Jun-2012
276,Revenue,CCHD,South Glos Users in South Glos Homes,Nursing Homes,Beech House,869.6, 12-Jun-2012
277,Revenue,CCHD,South Glos Users in South Glos Homes,Nursing Homes,Beech House,869.6, 12-Jun-2012
278,Revenue,CCHD,South Glos Users in South Glos Homes,Nursing Homes,Beech House,869.6, 12-Jun-2012
279,Revenue,CCHD,South Glos Users in South Glos Homes,Nursing Homes,Beech House,869.6, 12-Jun-2012
280,Revenue,CCHD,South Glos Users in South Glos Homes,Nursing Homes,Beech House,869.6, 12-Jun-2012
281,Revenue,CCHD,South Glos Users in South Glos Homes,Nursing Homes,Beech House,869.6, 12-Jun-2012
282,Revenue,CCHD,South Glos Users in South Glos Homes,Nursing Homes,Beech House,869.6, 12-Jun-2012
283,Revenue,CCHD,South Glos Users in South Glos Homes,Nursing Homes,Beech House,869.6, 12-Jun-2012
284,Revenue,CCHD,Frenchay Hospital Purchasing,Nursing Homes,Beech House,3178.72, 12-Jun-2012
285,Revenue,CCHD,South Glos Users in South Glos Homes,Nursing Homes,Beech House,869.6, 12-Jun-2012
286,Revenue,CCHD,South Glos Users in South Glos Homes,Nursing Homes,Beech House,869.6, 12-Jun-2012
287,Revenue,CCHD,Bed Purchasing - Elderly - North,Nursing Homes,Beech House,1101.43, 12-Jun-2012
288,Revenue,CCHD,South Glos Users in South Glos Homes,Nursing Homes,Beech House,869.6, 12-Jun-2012
289,Revenue,CCHD,Bed Purchasing - Elderly - North,Nursing Homes,Beech House,3897.92, 12-Jun-2012
290,Revenue,CCHD,South Glos Users in South Glos Homes,Nursing Homes,Beech House,869.6, 12-Jun-2012
291,Revenue,CCHD,South Glos Users in South Glos Homes,Nursing Homes,Beech House,869.6, 12-Jun-2012
292,Revenue,CCHD,South Glos Users in South Glos Homes,Nursing Homes,Beech House,869.6, 12-Jun-2012
293,Revenue,CCHD,South Glos Users in South Glos Homes,Nursing Homes,Beech House,869.6, 12-Jun-2012
294,Revenue,CCHD,South Glos Users in South Glos Homes,Nursing Homes,Beech House,1009.36, 12-Jun-2012
295,Revenue,CCHD,South Glos Users in South Glos Homes,Nursing Homes,Beech House,869.6, 12-Jun-2012
296,Revenue,CCHD,Southmead Hospital Purchasing,Nursing Homes,Beech House,3175.44, 12-Jun-2012
297,Revenue,CCHD,South Glos Users in South Glos Homes,Nursing Homes,Beech House,869.6, 12-Jun-2012
298,Revenue,CCHD,Southmead Hospital Purchasing,Residential Homes,Beech House,1454.5, 12-Jun-2012
299,Revenue,CCHD,Bed Purchasing - Elderly - North,Nursing Homes,Beech House,2370.4, 12-Jun-2012
300,Revenue,CCHD,South Glos Users in South Glos Homes,Nursing Homes,Beech House,869.6, 12-Jun-2012
301,Revenue,CCHD,South Glos Users in South Glos Homes,Nursing Homes,Beech House,869.6, 12-Jun-2012
302,Revenue,CCHD,South Glos Users in South Glos Homes,Nursing Homes,Beech House,869.6, 12-Jun-2012
303,Revenue,CCHD,South Glos Users in South Glos Homes,Nursing Homes,Blossom Field,1754.73, 12-Jun-2012
304,Revenue,CCHD,Bed purchasing - Elderly MH - North,Nursing Homes,Blossom Field,1391.16, 12-Jun-2012
305,Revenue,CCHD,Bed Purchasing - Elderly - North,Nursing Homes,Blossom Field,3678.3, 12-Jun-2012
306,Revenue,CCHD,Frenchay Hospital Purchasing,Nursing Homes,Bradbury House,1366.76, 12-Jun-2012
307,Revenue,CCHD,Bed Purchasing - Elderly - North,Residential Homes,Bradley House,1239.2, 12-Jun-2012
308,Revenue,CCHD,Home Care - Elderly - South,Other Small Contracts,Bradley House Home Care Services,162.63, 06-Jun-2012
309,Revenue,CCHD,Home Care - Elderly - North,Other Small Contracts,Bradley House Home Care Services,1273.15, 06-Jun-2012
310,Revenue,CCHD,Day Care - South,Private & Voluntary Day Care,Bradley House Home Care Services,41.7, 06-Jun-2012
311,Revenue,CCHD,Day Care - North,Private & Voluntary Day Care,Bradley House Home Care Services,191.01, 06-Jun-2012
312,Revenue,CCHD,Home Care - Elderly - South,Other Small Contracts,Bradley House Home Care Services,141.78, 06-Jun-2012
313,Revenue,CCHD,Home Care - Elderly - North,Other Small Contracts,Bradley House Home Care Services,1373.02, 06-Jun-2012
314,Revenue,CCHD,Day Care - South,Private & Voluntary Day Care,Bradley House Home Care Services,37.53, 06-Jun-2012
315,Revenue,CCHD,Day Care - North,Private & Voluntary Day Care,Bradley House Home Care Services,128.32, 06-Jun-2012
316,Revenue,CCHD,Home Care - Elderly - South,Other Small Contracts,Bradley House Home Care Services,158.46, 25-Jun-2012
317,Revenue,CCHD,Home Care - Elderly - North,Other Small Contracts,Bradley House Home Care Services,1614.74, 25-Jun-2012
318,Revenue,CCHD,Day Care - South,Private & Voluntary Day Care,Bradley House Home Care Services,45.87, 25-Jun-2012
319,Revenue,CCHD,Day Care - North,Private & Voluntary Day Care,Bradley House Home Care Services,186.7, 25-Jun-2012
320,Revenue,CCHD,Home Care - Elderly - South,Other Small Contracts,Bradley House Home Care Services,137.61, 25-Jun-2012
321,Revenue,CCHD,Home Care - Elderly - North,Other Small Contracts,Bradley House Home Care Services,1694.32, 25-Jun-2012
322,Revenue,CCHD,Day Care - South,Private & Voluntary Day Care,Bradley House Home Care Services,50.04, 25-Jun-2012
323,Revenue,CCHD,Day Care - North,Private & Voluntary Day Care,Bradley House Home Care Services,132.49, 25-Jun-2012
324,Revenue,CCHD,Home Care - Elderly - South,Other Small Contracts,Bradley House Home Care Services,70.89, 06-Jun-2012
325,Revenue,CCHD,Home Care - Elderly - North,Other Small Contracts,Bradley House Home Care Services,1339.73, 06-Jun-2012
326,Revenue,CCHD,Day Care - South,Private & Voluntary Day Care,Bradley House Home Care Services,33.36, 06-Jun-2012
327,Revenue,CCHD,Day Care - North,Private & Voluntary Day Care,Bradley House Home Care Services,132.63, 06-Jun-2012
328,Revenue,CCHD,Home Care - Elderly - South,Other Small Contracts,Bradley House Home Care Services,145.95, 25-Jun-2012
329,Revenue,CCHD,Home Care - Elderly - North,Other Small Contracts,Bradley House Home Care Services,1685.77, 25-Jun-2012
330,Revenue,CCHD,Day Care - South,Private & Voluntary Day Care,Bradley House Home Care Services,20.85, 25-Jun-2012
331,Revenue,CCHD,Day Care - North,Private & Voluntary Day Care,Bradley House Home Care Services,149.17, 25-Jun-2012
332,Revenue,CCHD,Home Care - Elderly - South,Other Small Contracts,Bradley House Home Care Services,150.12, 25-Jun-2012
333,Revenue,CCHD,Home Care - Elderly - North,Other Small Contracts,Bradley House Home Care Services,1352.24, 25-Jun-2012
334,Revenue,CCHD,Day Care - South,Private & Voluntary Day Care,Bradley House Home Care Services,50.04, 25-Jun-2012
335,Revenue,CCHD,Day Care - North,Private & Voluntary Day Care,Bradley House Home Care Services,115.67, 25-Jun-2012
336,Revenue,CCHD,Woodleaze,"Provisions (Food, etc)",Brake Bros,632.5, 15-Jun-2012
337,Revenue,CCHD,Woodleaze,"Provisions (Food, etc)",Brake Bros,781.72, 19-Jun-2012
338,Revenue,CCHD,Alexandra Way,"Provisions (Food, etc)",Brake Bros,773.58, 18-Jun-2012
339,Revenue,CCHD,Newton House,"Provisions (Food, etc)",Brake Bros,690.14, 14-Jun-2012
340,Revenue,CCHD,Alexandra Way,"Provisions (Food, etc)",Brake Bros,812.25, 18-Jun-2012
341,Revenue,CCHD,Bed Purchasing - Elderly MH - South,Residential Homes,Brightbow,2529, 12-Jun-2012
342,Revenue,CCHD,MH Purchasing - Younger,Residential Homes,Brightbow,922.36, 12-Jun-2012
343,Revenue,CCHD,Older People's Commissioned Se,Grants to Voluntary Bodies,Bristol Area Stroke Foundation,4575.5, 29-Jun-2012
344,Revenue,CCHD,Learning Difficulties Development Fund,Other Supplies & Services,Bristol Community Health CIC,560, 29-Jun-2012
345,Revenue,CCHD,Supported Living - KD,Private & Voluntary Home Care,Bristol Houses UK Ltd,1290.56, 20-Jun-2012
346,Revenue,CCHD,Supported Living - KD,Private & Voluntary Home Care,Bristol Houses UK Ltd,1046.4, 20-Jun-2012
347,Revenue,CCHD,Supported Living - KD,Private & Voluntary Home Care,Bristol Houses UK Ltd,1142.32, 20-Jun-2012
348,Revenue,CCHD,Day Care - North,Private & Voluntary Day Care,Bristol Houses UK Ltd,1478.04, 06-Jun-2012
349,Revenue,CCHD,Supported Living - KD,Private & Voluntary Home Care,Bristol Houses UK Ltd,899.05, 20-Jun-2012
350,Revenue,CCHD,Supported Living - KD,Private & Voluntary Home Care,Bristol Houses UK Ltd,570, 20-Jun-2012
351,Revenue,CCHD,Supported Living - KD,Private & Voluntary Home Care,Bristol Houses UK Ltd,960, 20-Jun-2012
352,Revenue,CCHD,Supported Living - KD,Private & Voluntary Home Care,Bristol Houses UK Ltd,585, 20-Jun-2012
353,Revenue,CCHD,Day Care - North,Private & Voluntary Day Care,Bristol Houses UK Ltd,2524.44, 06-Jun-2012
354,Revenue,CCHD,Supported Living - KD,Private & Voluntary Home Care,Bristol Houses UK Ltd,569.98, 20-Jun-2012
355,Revenue,CCHD,Bed and Breakfast,Bed & Breakfast,Bristol Housing & Support Limited,878, 08-Jun-2012
356,Revenue,CCHD,Bed and Breakfast,Bed & Breakfast,Bristol Housing & Support Limited,686, 08-Jun-2012
357,Revenue,CCHD,Bed and Breakfast,Bed & Breakfast,Bristol Housing & Support Limited,482, 08-Jun-2012
358,Revenue,CCHD,Bed and Breakfast,Bed & Breakfast,Bristol Housing & Support Limited,448, 08-Jun-2012
359,Revenue,CCHD,Bed and Breakfast,Bed & Breakfast,Bristol Housing & Support Limited,448, 12-Jun-2012
360,Revenue,CCHD,Bed and Breakfast,Bed & Breakfast,Bristol Housing & Support Limited,472, 26-Jun-2012
361,Revenue,CCHD,Bed and Breakfast,Bed & Breakfast,Bristol Housing & Support Limited,448, 26-Jun-2012
362,Revenue,CCHD,Bed Purchasing - Elderly S117- North,Residential Homes,Brockley Court Care Home,1818.04, 12-Jun-2012
363,Revenue,CCHD,Supporting People Programme,Grants to Voluntary Bodies,Bromford Housing Group,13916.67, 01-Jun-2012
364,Revenue,CCHD,Supporting People Programme,Grants to Voluntary Bodies,Bromford Housing Group,13916.67, 29-Jun-2012
365,Revenue,CCHD,Bed Purchasing - Elderly - North,Residential Homes,Brook Lane Residential Home,877.36, 12-Jun-2012
366,Revenue,CCHD,Bed Purchasing - Elderly - South,Nursing Homes,Brunel Care,2779.98, 12-Jun-2012
367,Revenue,CCHD,Bed Purchasing - Elderly - South,Nursing Homes,Brunel Care,713.44, 12-Jun-2012
368,Revenue,CCHD,Southmead Hospital Purchasing,Residential Homes,Brunel Care,1239.36, 12-Jun-2012
369,Revenue,CCHD,Bed Purchasing - Elderly MH - South,Nursing Homes,Brunel Care,2029.8, 12-Jun-2012
370,Revenue,CCHD,Southmead Hospital Purchasing,Nursing Homes,Brunel Care,1267.64, 12-Jun-2012
371,Revenue,CCHD,Southmead Hospital Purchasing,Residential Homes,Brunel Care,1316.4, 12-Jun-2012
372,Revenue,CCHD,Home Care - Elderly - North,Private & Voluntary Home Care,Brunelcare,6720, 01-Jun-2012
373,Revenue,CCHD,Home Care - Elderly - North,Private & Voluntary Home Care,Brunelcare,6720, 11-Jun-2012
374,Revenue,CCHD,Home Care - Elderly - North,Private & Voluntary Home Care,Brunelcare,6720, 18-Jun-2012
375,Revenue,CCHD,Home Care - Elderly - North,Private & Voluntary Home Care,Brunelcare,6720, 25-Jun-2012
376,Revenue,CCHD,Elderly MH Day Care South,Private & Voluntary Day Care,Brunelcare,712.4, 15-Jun-2012
377,Revenue,CCHD,Home Care - Elderly - South,Other Small Contracts,Brunelcare,2811.08, 14-Jun-2012
378,Revenue,CCHD,Home Care - Elderly - North,Other Small Contracts,Brunelcare,4428.6, 14-Jun-2012
379,Revenue,CCHD,Day Care - South,Private & Voluntary Day Care,Brunelcare,176, 14-Jun-2012
380,Revenue,CCHD,Day Care - North,Private & Voluntary Day Care,Brunelcare,112.23, 14-Jun-2012
381,Revenue,CCHD,Carer`s Grant - North,Carers Breaks & Services,Brunelcare,16.1, 14-Jun-2012
382,Revenue,CCHD,Under 65s -MH  Home Care Purch,Other Small Contracts,Brunelcare,88.58, 14-Jun-2012
383,Revenue,CCHD,Home care - Elderly MH - North,Other Small Contracts,Brunelcare,342.19, 14-Jun-2012
384,Revenue,CCHD,Elderly MH Day Care North,Private & Voluntary Day Care,Brunelcare,334.32, 14-Jun-2012
385,Revenue,CCHD,Home Care - Elderly - South,Other Small Contracts,Brunelcare,2537.84, 14-Jun-2012
386,Revenue,CCHD,Home Care - Elderly - North,Other Small Contracts,Brunelcare,4536.92, 14-Jun-2012
387,Revenue,CCHD,Day Care - South,Private & Voluntary Day Care,Brunelcare,173.72, 14-Jun-2012
388,Revenue,CCHD,Day Care - North,Private & Voluntary Day Care,Brunelcare,76.76, 14-Jun-2012
389,Revenue,CCHD,Carer`s Grant - North,Carers Breaks & Services,Brunelcare,8.08, 14-Jun-2012
390,Revenue,CCHD,Under 65s -MH  Home Care Purch,Other Small Contracts,Brunelcare,185.69, 14-Jun-2012
391,Revenue,CCHD,Home care - Elderly MH - North,Other Small Contracts,Brunelcare,496.92, 14-Jun-2012
392,Revenue,CCHD,Elderly MH Day Care North,Private & Voluntary Day Care,Brunelcare,371.68, 14-Jun-2012
393,Revenue,CCHD,Home Care - Elderly - South,Other Small Contracts,Brunelcare,2259.12, 14-Jun-2012
394,Revenue,CCHD,Home Care - Elderly - North,Other Small Contracts,Brunelcare,4694.48, 14-Jun-2012
395,Revenue,CCHD,Day Care - South,Private & Voluntary Day Care,Brunelcare,169.68, 14-Jun-2012
396,Revenue,CCHD,Day Care - North,Private & Voluntary Day Care,Brunelcare,129.28, 14-Jun-2012
397,Revenue,CCHD,Carer`s Grant - North,Carers Breaks & Services,Brunelcare,20.2, 14-Jun-2012
398,Revenue,CCHD,Under 65s -MH  Home Care Purch,Other Small Contracts,Brunelcare,181.8, 14-Jun-2012
399,Revenue,CCHD,Home care - Elderly MH - North,Other Small Contracts,Brunelcare,549.44, 14-Jun-2012
400,Revenue,CCHD,Elderly MH Day Care North,Private & Voluntary Day Care,Brunelcare,408.04, 14-Jun-2012
401,Revenue,CCHD,Home Care - Elderly - South,Other Small Contracts,Brunelcare,2734.58, 14-Jun-2012
402,Revenue,CCHD,Home Care - Elderly - North,Other Small Contracts,Brunelcare,4488.99, 14-Jun-2012
403,Revenue,CCHD,Day Care - South,Private & Voluntary Day Care,Brunelcare,143.57, 14-Jun-2012
404,Revenue,CCHD,Day Care - North,Private & Voluntary Day Care,Brunelcare,80.55, 14-Jun-2012
405,Revenue,CCHD,Carer`s Grant - North,Carers Breaks & Services,Brunelcare,20.13, 14-Jun-2012
406,Revenue,CCHD,Home care - Elderly MH - North,Other Small Contracts,Brunelcare,591.74, 14-Jun-2012
407,Revenue,CCHD,Elderly MH Day Care North,Private & Voluntary Day Care,Brunelcare,378.63, 14-Jun-2012
408,Revenue,CCHD,Elderly MH Day Care South,Private & Voluntary Day Care,Brunelcare,712.4, 22-Jun-2012
409,Revenue,CCHD,Information Systems - Software,Computer Equipment - Purchase,BT Global Services Solutions,759.31, 14-Jun-2012
410,Revenue,CCHD,Learning Difficulties Development Fund,Other Supplies & Services,BTCV,9380, 15-Jun-2012
411,Revenue,CCHD,Woodleaze,Cleaning & Domestic Supplies,Bunzl Cleaning & Hygiene Supplies,640.06, 19-Jun-2012
412,Revenue,CCHD,Bed purchasing - Phys Dis - North,Nursing Homes,Bupa Care Services  Bridge House,5795.92, 12-Jun-2012
413,Revenue,CCHD,South Glos Users in all other LA Homes,Nursing Homes,Bupa Care Services  Bridge House,598.4, 12-Jun-2012
414,Revenue,CCHD,Woodleaze,Maintenance by Contractor,C B Decorators,1490, 27-Jun-2012
415,Revenue,CCHD,Southmead Hospital Purchasing,Nursing Homes,Campania Residential Home,676.99, 12-Jun-2012
416,Revenue,CCHD,Supported Living - KD,Private & Voluntary Home Care,Camphill Communities Thornbury Limited,1034.3, 06-Jun-2012
417,Revenue,CCHD,Supported Living - PS,Private & Voluntary Home Care,Camphill Communities Thornbury Limited,1729.23, 20-Jun-2012
418,Revenue,CCHD,Supported Living - KD,Private & Voluntary Home Care,Camphill Communities Thornbury Limited,2464.78, 06-Jun-2012
419,Revenue,CCHD,Supported Living - KD,Private & Voluntary Home Care,Camphill Communities Thornbury Limited,2269.12, 06-Jun-2012
420,Revenue,CCHD,Supported Living - KD,Private & Voluntary Home Care,Camphill Communities Thornbury Limited,2030.28, 06-Jun-2012
421,Revenue,CCHD,Supported Living - KD,Private & Voluntary Home Care,Camphill Communities Thornbury Limited,2248.52, 06-Jun-2012
422,Revenue,CCHD,Supported Living - KD,Private & Voluntary Home Care,Camphill Communities Thornbury Limited,1997.32, 06-Jun-2012
423,Revenue,CCHD,Supported Living - KD,Private & Voluntary Home Care,Camphill Communities Thornbury Limited,2112.64, 15-Jun-2012
424,Revenue,CCHD,Supported Living - KD,Private & Voluntary Home Care,Camphill Communities Thornbury Limited,1034.3, 15-Jun-2012
425,Revenue,CCHD,Supported Living - KD,Private & Voluntary Home Care,Camphill Communities Thornbury Limited,1997.32, 15-Jun-2012
426,Revenue,CCHD,Supported Living - KD,Private & Voluntary Home Care,Camphill Communities Thornbury Limited,2216.04, 06-Jun-2012
427,Revenue,CCHD,Supported Living - KD,Private & Voluntary Home Care,Camphill Communities Thornbury Limited,1034.3, 20-Jun-2012
428,Revenue,CCHD,Supported Living - KD,Private & Voluntary Home Care,Camphill Communities Thornbury Limited,2475, 20-Jun-2012
429,Revenue,CCHD,Supported Living - KD,Private & Voluntary Home Care,Camphill Communities Thornbury Limited,2269.12, 26-Jun-2012
430,Revenue,CCHD,Supported Living - KD,Private & Voluntary Home Care,Camphill Communities Thornbury Limited,2030.28, 26-Jun-2012
431,Revenue,CCHD,Supported Living - KD,Private & Voluntary Home Care,Camphill Communities Thornbury Limited,2248.52, 26-Jun-2012
432,Revenue,CCHD,Supported Living - KD,Private & Voluntary Home Care,Camphill Communities Thornbury Limited,1997.32, 26-Jun-2012
433,Revenue,CCHD,Bed purchasing - Under 65s PWLD - North,Residential Homes,Camphill Devon Community,3185.24, 12-Jun-2012
434,Revenue,CCHD,Bed purchasing - Under 65s PWLD - North,Residential Homes,Camphill Devon Community,2234.08, 12-Jun-2012
435,Revenue,CCHD,Home Care - Elderly - South,Other Small Contracts,Care 1st Homecare,3140.22, 07-Jun-2012
436,Revenue,CCHD,Home Care - Elderly - North,Other Small Contracts,Care 1st Homecare,4724.26, 07-Jun-2012
437,Revenue,CCHD,Day Care - South,Private & Voluntary Day Care,Care 1st Homecare,95.52, 07-Jun-2012
438,Revenue,CCHD,Day Care - North,Private & Voluntary Day Care,Care 1st Homecare,409.94, 07-Jun-2012
439,Revenue,CCHD,Home care - Elderly MH - North,Other Small Contracts,Care 1st Homecare,222.88, 07-Jun-2012
440,Revenue,CCHD,Home Care - LD Under 65 - South,Private & Voluntary Home Care,Care 1st Homecare,11.94, 07-Jun-2012
441,Revenue,CCHD,PWLD Home Care - Under 65 - KH,Private & Voluntary Home Care,Care 1st Homecare,63.68, 07-Jun-2012
442,Revenue,CCHD,Home Care - Elderly - South,Other Small Contracts,Care 1st Homecare,2893.46, 07-Jun-2012
443,Revenue,CCHD,Home Care - Elderly - North,Other Small Contracts,Care 1st Homecare,4616.8, 07-Jun-2012
444,Revenue,CCHD,Day Care - South,Private & Voluntary Day Care,Care 1st Homecare,95.52, 07-Jun-2012
445,Revenue,CCHD,Day Care - North,Private & Voluntary Day Care,Care 1st Homecare,354.22, 07-Jun-2012
446,Revenue,CCHD,Home care - Elderly MH - North,Other Small Contracts,Care 1st Homecare,214.92, 07-Jun-2012
447,Revenue,CCHD,Home Care - LD Under 65 - South,Private & Voluntary Home Care,Care 1st Homecare,15.92, 07-Jun-2012
448,Revenue,CCHD,PWLD Home Care - Under 65 - KH,Private & Voluntary Home Care,Care 1st Homecare,167.16, 07-Jun-2012
449,Revenue,CCHD,Home Care - Elderly - South,Other Small Contracts,Care 1st Homecare,3329.83, 07-Jun-2012
450,Revenue,CCHD,Home Care - Elderly - North,Other Small Contracts,Care 1st Homecare,4195.88, 07-Jun-2012
451,Revenue,CCHD,Day Care - North,Private & Voluntary Day Care,Care 1st Homecare,416.91, 07-Jun-2012
452,Revenue,CCHD,Home care - Elderly MH - North,Other Small Contracts,Care 1st Homecare,177.98, 07-Jun-2012
453,Revenue,CCHD,Home Care - LD Under 65 - South,Private & Voluntary Home Care,Care 1st Homecare,16.19, 07-Jun-2012
454,Revenue,CCHD,PWLD Home Care - Under 65 - KH,Private & Voluntary Home Care,Care 1st Homecare,32.38, 07-Jun-2012
455,Revenue,CCHD,Home Care - Elderly - South,Other Small Contracts,Care 1st Homecare,3455.27, 07-Jun-2012
456,Revenue,CCHD,Home Care - Elderly - North,Other Small Contracts,Care 1st Homecare,4106.81, 07-Jun-2012
457,Revenue,CCHD,Day Care - South,Private & Voluntary Day Care,Care 1st Homecare,97.14, 07-Jun-2012
458,Revenue,CCHD,Day Care - North,Private & Voluntary Day Care,Care 1st Homecare,331.9, 07-Jun-2012
459,Revenue,CCHD,Home care - Elderly MH - North,Other Small Contracts,Care 1st Homecare,222.49, 07-Jun-2012
460,Revenue,CCHD,Home Care - LD Under 65 - South,Private & Voluntary Home Care,Care 1st Homecare,16.19, 07-Jun-2012
461,Revenue,CCHD,PWLD Home Care - Under 65 - KH,Private & Voluntary Home Care,Care 1st Homecare,169.99, 07-Jun-2012
462,Revenue,CCHD,Home Care - Elderly - South,Other Small Contracts,Care 1st Homecare,3507.87, 07-Jun-2012
463,Revenue,CCHD,Home Care - Elderly - North,Other Small Contracts,Care 1st Homecare,4438.71, 07-Jun-2012
464,Revenue,CCHD,Day Care - South,Private & Voluntary Day Care,Care 1st Homecare,97.14, 07-Jun-2012
465,Revenue,CCHD,Day Care - North,Private & Voluntary Day Care,Care 1st Homecare,453.33, 07-Jun-2012
466,Revenue,CCHD,Home care - Elderly MH - North,Other Small Contracts,Care 1st Homecare,214.4, 07-Jun-2012
467,Revenue,CCHD,Home Care - LD Under 65 - South,Private & Voluntary Home Care,Care 1st Homecare,32.38, 07-Jun-2012
468,Revenue,CCHD,PWLD Home Care - Under 65 - KH,Private & Voluntary Home Care,Care 1st Homecare,161.9, 07-Jun-2012
469,Revenue,CCHD,Home Care - Elderly - South,Other Small Contracts,Care 1st Homecare,3604.94, 07-Jun-2012
470,Revenue,CCHD,Home Care - Elderly - North,Other Small Contracts,Care 1st Homecare,4531.97, 07-Jun-2012
471,Revenue,CCHD,Day Care - South,Private & Voluntary Day Care,Care 1st Homecare,97.14, 07-Jun-2012
472,Revenue,CCHD,Day Care - North,Private & Voluntary Day Care,Care 1st Homecare,526.19, 07-Jun-2012
473,Revenue,CCHD,Home care - Elderly MH - North,Other Small Contracts,Care 1st Homecare,226.54, 07-Jun-2012
474,Revenue,CCHD,Home Care - LD Under 65 - South,Private & Voluntary Home Care,Care 1st Homecare,32.38, 07-Jun-2012
475,Revenue,CCHD,PWLD Home Care - Under 65 - KH,Private & Voluntary Home Care,Care 1st Homecare,169.99, 07-Jun-2012
476,Revenue,CCHD,Home Care - Elderly - South,Other Small Contracts,Care 1st Homecare,3073.95, 28-Jun-2012
477,Revenue,CCHD,Home Care - Elderly - North,Other Small Contracts,Care 1st Homecare,4483.35, 28-Jun-2012
478,Revenue,CCHD,Day Care - South,Private & Voluntary Day Care,Care 1st Homecare,210.6, 28-Jun-2012
479,Revenue,CCHD,Day Care - North,Private & Voluntary Day Care,Care 1st Homecare,506.25, 28-Jun-2012
480,Revenue,CCHD,Home care - Elderly MH - North,Other Small Contracts,Care 1st Homecare,234.9, 28-Jun-2012
481,Revenue,CCHD,Home Care - LD Under 65 - South,Private & Voluntary Home Care,Care 1st Homecare,12.15, 28-Jun-2012
482,Revenue,CCHD,PWLD Home Care - Under 65 - KH,Private & Voluntary Home Care,Care 1st Homecare,174.15, 28-Jun-2012
483,Revenue,CCHD,Bed Purchasing - PWLD S 117 Placements,Residential Homes,Care Community Ltd,7464.72, 12-Jun-2012
484,Revenue,CCHD,Supported Living - KD,Private & Voluntary Home Care,Care Horizons Limited,5774.32, 26-Jun-2012
485,Revenue,CCHD,Purchase of Non-Res Care - KD,Private & Voluntary Day Care,Care Horizons Limited,1670.99, 26-Jun-2012
486,Revenue,CCHD,Purchase of Non-Res Care - KD,Private & Voluntary Day Care,Care Horizons Limited,1296.2, 26-Jun-2012
487,Revenue,CCHD,Purchase of Non-Res Care - KD,Private & Voluntary Day Care,Care Horizons Limited,1426.8, 26-Jun-2012
488,Revenue,CCHD,Purchase of Non-Res Care - KD,Private & Voluntary Day Care,Care Horizons Limited,1456.67, 28-Jun-2012
489,Revenue,CCHD,Supported Living - KD,Private & Voluntary Home Care,Care Horizons Limited,5422.76, 06-Jun-2012
490,Revenue,CCHD,Purchase of Non-Res Care - KD,Private & Voluntary Day Care,Care Horizons Limited,1420.82, 06-Jun-2012
491,Revenue,CCHD,Purchase of Non-Res Care - KD,Private & Voluntary Day Care,Care Horizons Limited,1024.43, 06-Jun-2012
492,Revenue,CCHD,Purchase of Non-Res Care - KD,Private & Voluntary Day Care,Care Horizons Limited,1110.45, 06-Jun-2012
493,Revenue,CCHD,Purchase of Non-Res Care - KD,Private & Voluntary Day Care,Care Horizons Limited,1264.6, 12-Jun-2012
494,Revenue,CCHD,Supported Living - KD,Private & Voluntary Day Care,Care Horizons Limited,1694.97, 12-Jun-2012
495,Revenue,CCHD,Supported Living - KD,Private & Voluntary Day Care,Care Horizons Limited,5322.69, 12-Jun-2012
496,Revenue,CCHD,Day Care - South,Private & Voluntary Day Care,Care Horizons Limited,373.24, 29-Jun-2012
497,Revenue,CCHD,Day Care - North,Private & Voluntary Day Care,Care Horizons Limited,360.22, 29-Jun-2012
498,Revenue,CCHD,Electronic Home Care Monitoring,Other Supplies & Services,Care Monitoring 2000 Limited,5508, 15-Jun-2012
499,Revenue,CCHD,Home Care - General,Other Supplies & Services,Care Monitoring 2000 Limited,6959.7, 15-Jun-2012
500,Revenue,CCHD,Home Care - Elderly - South,Other Small Contracts,Care UK,7237.5, 14-Jun-2012
501,Revenue,CCHD,Home Care - Elderly - North,Other Small Contracts,Care UK,4331.25, 14-Jun-2012
502,Revenue,CCHD,Day Care - South,Private & Voluntary Day Care,Care UK,363.75, 14-Jun-2012
503,Revenue,CCHD,Day Care - North,Private & Voluntary Day Care,Care UK,828.75, 14-Jun-2012
504,Revenue,CCHD,Home care - Elderly MH - North,Other Small Contracts,Care UK,877.5, 14-Jun-2012
505,Revenue,CCHD,Elderly MH Day Care North,Private & Voluntary Day Care,Care UK,262.5, 14-Jun-2012
506,Revenue,CCHD,Home Care - Elderly - South,Other Small Contracts,Care UK,7345.57, 14-Jun-2012
507,Revenue,CCHD,Home Care - Elderly - North,Other Small Contracts,Care UK,4652.76, 14-Jun-2012
508,Revenue,CCHD,Day Care - South,Private & Voluntary Day Care,Care UK,343.12, 14-Jun-2012
509,Revenue,CCHD,Day Care - North,Private & Voluntary Day Care,Care UK,965.97, 14-Jun-2012
510,Revenue,CCHD,Home care - Elderly MH - North,Other Small Contracts,Care UK,869.57, 14-Jun-2012
511,Revenue,CCHD,Elderly MH Day Care North,Private & Voluntary Day Care,Care UK,227.38, 14-Jun-2012
512,Revenue,CCHD,Home Care - Elderly - South,Other Small Contracts,Care UK,7402.8, 14-Jun-2012
513,Revenue,CCHD,Home Care - Elderly - North,Other Small Contracts,Care UK,4664.37, 14-Jun-2012
514,Revenue,CCHD,Day Care - South,Private & Voluntary Day Care,Care UK,391.94, 14-Jun-2012
515,Revenue,CCHD,Day Care - North,Private & Voluntary Day Care,Care UK,1007.09, 14-Jun-2012
516,Revenue,CCHD,Home care - Elderly MH - North,Other Small Contracts,Care UK,762.78, 14-Jun-2012
517,Revenue,CCHD,Elderly MH Day Care North,Private & Voluntary Day Care,Care UK,273.13, 14-Jun-2012
518,Revenue,CCHD,Home Care - Elderly - South,Other Small Contracts,Carewatch (Bristol),185.24, 26-Jun-2012
519,Revenue,CCHD,Home Care - Elderly - North,Other Small Contracts,Carewatch (Bristol),534.67, 26-Jun-2012
520,Revenue,CCHD,Home Care - Elderly - South,Other Small Contracts,Carewatch (Bristol),214.71, 26-Jun-2012
521,Revenue,CCHD,Home Care - Elderly - North,Other Small Contracts,Carewatch (Bristol),303.12, 26-Jun-2012
522,Revenue,CCHD,Day Care - North,Private & Voluntary Day Care,Carewatch (Bristol),96.83, 26-Jun-2012
523,Revenue,CCHD,Home Care - Elderly - South,Other Small Contracts,Carewatch (Bristol),231.55, 26-Jun-2012
524,Revenue,CCHD,Home Care - Elderly - North,Other Small Contracts,Carewatch (Bristol),551.51, 26-Jun-2012
525,Revenue,CCHD,Day Care - North,Private & Voluntary Day Care,Carewatch (Bristol),96.83, 26-Jun-2012
526,Revenue,CCHD,Elderly MH Day Care South,Private & Voluntary Day Care,Caring Home Healthcare Grp Ltd,850, 15-Jun-2012
527,Revenue,CCHD,Elderly MH Day Care South,Private & Voluntary Day Care,Caring Home Healthcare Grp Ltd,6350, 15-Jun-2012
528,Revenue,CCHD,Elderly MH Day Care South,Private & Voluntary Day Care,Caring Home Healthcare Grp Ltd,1200, 15-Jun-2012
529,Revenue,CCHD,Home Care - Elderly - South,Other Small Contracts,Cash Friday at Lloyds TSB,185.28, 12-Jun-2012
530,Revenue,CCHD,Home Care - Elderly - North,Other Small Contracts,Cash Friday at Lloyds TSB,1420.48, 12-Jun-2012
531,Revenue,CCHD,Day Care - South,Private & Voluntary Day Care,Cash Friday at Lloyds TSB,30.88, 12-Jun-2012
532,Revenue,CCHD,Day Care - North,Private & Voluntary Day Care,Cash Friday at Lloyds TSB,88.78, 12-Jun-2012
533,Revenue,CCHD,Home Care - Elderly - South,Other Small Contracts,Cash Friday at Lloyds TSB,185.28, 12-Jun-2012
534,Revenue,CCHD,Home Care - Elderly - North,Other Small Contracts,Cash Friday at Lloyds TSB,1401.18, 12-Jun-2012
535,Revenue,CCHD,Day Care - South,Private & Voluntary Day Care,Cash Friday at Lloyds TSB,30.88, 12-Jun-2012
536,Revenue,CCHD,Day Care - North,Private & Voluntary Day Care,Cash Friday at Lloyds TSB,88.78, 12-Jun-2012
537,Revenue,CCHD,Home Care - Elderly - South,Other Small Contracts,Cash Friday at Lloyds TSB,177.56, 20-Jun-2012
538,Revenue,CCHD,Home Care - Elderly - North,Other Small Contracts,Cash Friday at Lloyds TSB,1420.48, 20-Jun-2012
539,Revenue,CCHD,Day Care - South,Private & Voluntary Day Care,Cash Friday at Lloyds TSB,30.88, 20-Jun-2012
540,Revenue,CCHD,Day Care - North,Private & Voluntary Day Care,Cash Friday at Lloyds TSB,92.64, 20-Jun-2012
541,Revenue,CCHD,Home Care - Elderly - South,Other Small Contracts,Cash Friday at Lloyds TSB,177.56, 20-Jun-2012
542,Revenue,CCHD,Home Care - Elderly - North,Other Small Contracts,Cash Friday at Lloyds TSB,1385.74, 20-Jun-2012
543,Revenue,CCHD,Day Care - South,Private & Voluntary Day Care,Cash Friday at Lloyds TSB,30.88, 20-Jun-2012
544,Revenue,CCHD,Day Care - North,Private & Voluntary Day Care,Cash Friday at Lloyds TSB,57.9, 20-Jun-2012
545,Revenue,CCHD,Bed Purchasing - Elderly - North,Nursing Homes,Cedar Care Homes Ltd,1160.36, 12-Jun-2012
546,Revenue,CCHD,Frenchay Hospital Purchasing,Nursing Homes,Cedar Care Homes Ltd,1041.52, 12-Jun-2012
547,Revenue,CCHD,Home Care - Elderly - North,Other Small Contracts,Cedar Community Care,512.59, 14-Jun-2012
548,Revenue,CCHD,Day Care - North,Private & Voluntary Day Care,Cedar Community Care,32.03, 14-Jun-2012
549,Revenue,CCHD,Home Care - Elderly - North,Other Small Contracts,Cedar Community Care,516.61, 22-Jun-2012
550,Revenue,CCHD,Home Care - Elderly - North,Other Small Contracts,Cedar Community Care,620.72, 29-Jun-2012
551,Revenue,CCHD,Frenchay Hospital Purchasing,Residential Homes,Centenary Care Homes Ltd,1239.2, 12-Jun-2012
552,Revenue,CCHD,Bed Purchasing - Elderly - South,Residential Homes,Cepen Lodge Care Home,2155.6, 12-Jun-2012
553,Revenue,CCHD,Bed Purchasing - Elderly - South,Residential Homes,Cepen Lodge Care Home,2155.6, 12-Jun-2012
554,Revenue,CCHD,Home Care - Elderly - South,Other Small Contracts,Cherish Able Care Limited,2401.46, 01-Jun-2012
555,Revenue,CCHD,Home care - Elderly MH - North,Other Small Contracts,Cherish Able Care Limited,403.62, 01-Jun-2012
556,Revenue,CCHD,Home Care - Elderly - South,Other Small Contracts,Cherish Able Care Limited,2471.5, 07-Jun-2012
557,Revenue,CCHD,Day Care - South,Private & Voluntary Day Care,Cherish Able Care Limited,65.88, 07-Jun-2012
558,Revenue,CCHD,Home care - Elderly MH - North,Other Small Contracts,Cherish Able Care Limited,391.27, 07-Jun-2012
559,Revenue,CCHD,Home Care - Elderly - South,Other Small Contracts,Cherish Able Care Limited,2413.83, 07-Jun-2012
560,Revenue,CCHD,Home care - Elderly MH - North,Other Small Contracts,Cherish Able Care Limited,407.74, 07-Jun-2012
561,Revenue,CCHD,Home Care - Elderly - South,Other Small Contracts,Cherish Able Care Limited,2401.96, 22-Jun-2012
562,Revenue,CCHD,Home care - Elderly MH - North,Other Small Contracts,Cherish Able Care Limited,412, 22-Jun-2012
563,Revenue,CCHD,Home Care - Elderly - South,Other Small Contracts,Cherish Able Care Limited,2875.76, 29-Jun-2012
564,Revenue,CCHD,Home care - Elderly MH - North,Other Small Contracts,Cherish Able Care Limited,276.04, 29-Jun-2012
565,Revenue,CCHD,Bed purchasing -S28A  Under 65 - North,Residential Homes,Chescombe Lodge,8489.04, 12-Jun-2012
566,Revenue,CCHD,Bed Purchasing - Under 65s PWLD - South,Residential Homes,Chosen Court,6846.32, 12-Jun-2012
567,Revenue,CCHD,Bed Purchasing - PWLD S 117 Placements,Residential Homes,Chosen Court,7506.28, 12-Jun-2012
568,Revenue,CCHD,Bed purchasing - Under 65s PWLD - North,Residential Homes,Church House,5761.36, 12-Jun-2012
569,Revenue,CCHD,Southmead Hospital Purchasing,Nursing Homes,Clarence Park Nursing Home,3941.62, 12-Jun-2012
570,Revenue,CCHD,Information Systems - Software,Other Supplies & Services,Clear Water IT Soultions Ltd,595, 26-Jun-2012
571,Revenue,CCHD,Bed Purchasing - Elderly - South,Residential Homes,Cleeve Lodge,1597.04, 12-Jun-2012
572,Revenue,CCHD,Southmead Hospital Purchasing,Residential Homes,Cleeve Lodge,1425.36, 12-Jun-2012
573,Revenue,CCHD,Bed Purchasing - Elderly - South,Residential Homes,Cleeve Lodge,2551.89, 12-Jun-2012
574,Revenue,CCHD,Southmead Hospital Purchasing,Residential Homes,Cleeve Lodge,932.68, 12-Jun-2012
575,Revenue,CCHD,Bed Purchasing - Elderly - South,Residential Homes,Cleeve Lodge,1659.48, 12-Jun-2012
576,Revenue,CCHD,Bed Purchasing - Elderly - South,Residential Homes,Cleeve Lodge,3063.69, 12-Jun-2012
577,Revenue,CCHD,Bed Purchasing - Elderly - South,Residential Homes,Cleeve Lodge,1750.68, 12-Jun-2012
578,Revenue,CCHD,Bed Purchasing - Elderly - South,Residential Homes,Cleeve Lodge,1449.08, 12-Jun-2012
579,Revenue,CCHD,Bed Purchasing - Elderly - South,Residential Homes,Cleeve Lodge,2236.96, 12-Jun-2012
580,Revenue,CCHD,Bed Purchasing - Elderly - South,Residential Homes,Cleeve Lodge,1767.96, 12-Jun-2012
581,Revenue,CCHD,Southmead Hospital Purchasing,Residential Homes,Cleeve Lodge,1434.8, 12-Jun-2012
582,Revenue,CCHD,Frenchay Hospital Purchasing,Residential Homes,Collingwood Residential Home,1027.68, 12-Jun-2012
583,Revenue,CCHD,Bed Purchasing - Elderly - South,Residential Homes,Collingwood Residential Home,1284.12, 12-Jun-2012
584,Revenue,CCHD,Frenchay Hospital Purchasing,Residential Homes,Collingwood Residential Home,1043.49, 12-Jun-2012
585,Revenue,CCHD,Bed Purchasing - Elderly - South,Residential Homes,Collingwood Residential Home,842.84, 12-Jun-2012
586,Revenue,CCHD,Bed Purchasing - Elderly - South,Residential Homes,Collingwood Residential Home,1351.16, 12-Jun-2012
587,Revenue,CCHD,Bed Purchasing - Elderly - South,Residential Homes,Collingwood Residential Home,1058.6, 12-Jun-2012
588,Revenue,CCHD,Bed Purchasing - Elderly - South,Residential Homes,Collingwood Residential Home,1323.64, 12-Jun-2012
589,Revenue,CCHD,Frenchay Hospital Purchasing,Residential Homes,Collingwood Residential Home,1232, 12-Jun-2012
590,Revenue,CCHD,Bed Purchasing - Elderly MH - South,Residential Homes,Collingwood Residential Home,1298.4, 12-Jun-2012
591,Revenue,CCHD,Bed Purchasing - Elderly - South,Residential Homes,Collingwood Residential Home,1247.92, 12-Jun-2012
592,Revenue,CCHD,Bed Purchasing - Elderly - South,Residential Homes,Collingwood Residential Home,1373.76, 12-Jun-2012
593,Revenue,CCHD,Bed Purchasing - Elderly - South,Residential Homes,Collingwood Residential Home,1245.88, 12-Jun-2012
594,Revenue,CCHD,Bed Purchasing - Elderly - South,Residential Homes,Collingwood Residential Home,1396.72, 12-Jun-2012
595,Revenue,CCHD,Bed and Breakfast,Bed & Breakfast,Connolly & Callaghan Limited,546, 06-Jun-2012
596,Revenue,CCHD,Bed and Breakfast,Bed & Breakfast,Connolly & Callaghan Limited,581, 12-Jun-2012
597,Revenue,CCHD,Bed and Breakfast,Bed & Breakfast,Connolly & Callaghan Limited,616, 12-Jun-2012
598,Revenue,CCHD,Bed and Breakfast,Bed & Breakfast,Connolly & Callaghan Limited,546, 12-Jun-2012
599,Revenue,CCHD,Bed and Breakfast,Bed & Breakfast,Connolly & Callaghan Limited,511, 12-Jun-2012
600,Revenue,CCHD,Bed and Breakfast,Bed & Breakfast,Connolly & Callaghan Limited,511, 12-Jun-2012
601,Revenue,CCHD,Bed and Breakfast,Bed & Breakfast,Connolly & Callaghan Limited,616, 12-Jun-2012
602,Revenue,CCHD,Bed and Breakfast,Bed & Breakfast,Connolly & Callaghan Limited,476, 12-Jun-2012
603,Revenue,CCHD,Bed and Breakfast,Bed & Breakfast,Connolly & Callaghan Limited,525, 13-Jun-2012
604,Revenue,CCHD,Bed and Breakfast,Bed & Breakfast,Connolly & Callaghan Limited,581, 14-Jun-2012
605,Revenue,CCHD,Bed and Breakfast,Bed & Breakfast,Connolly & Callaghan Limited,616, 14-Jun-2012
606,Revenue,CCHD,Bed and Breakfast,Bed & Breakfast,Connolly & Callaghan Limited,546, 14-Jun-2012
607,Revenue,CCHD,Bed and Breakfast,Bed & Breakfast,Connolly & Callaghan Limited,511, 14-Jun-2012
608,Revenue,CCHD,Bed and Breakfast,Bed & Breakfast,Connolly & Callaghan Limited,511, 14-Jun-2012
609,Revenue,CCHD,Bed and Breakfast,Bed & Breakfast,Connolly & Callaghan Limited,616, 14-Jun-2012
610,Revenue,CCHD,Bed and Breakfast,Bed & Breakfast,Connolly & Callaghan Limited,476, 14-Jun-2012
611,Revenue,CCHD,Bed and Breakfast,Bed & Breakfast,Connolly & Callaghan Limited,525, 14-Jun-2012
612,Revenue,CCHD,Bed and Breakfast,Bed & Breakfast,Connolly & Callaghan Limited,581, 14-Jun-2012
613,Revenue,CCHD,Bed and Breakfast,Bed & Breakfast,Connolly & Callaghan Limited,546, 14-Jun-2012
614,Revenue,CCHD,Bed and Breakfast,Bed & Breakfast,Connolly & Callaghan Limited,511, 14-Jun-2012
615,Revenue,CCHD,Bed and Breakfast,Bed & Breakfast,Connolly & Callaghan Limited,511, 14-Jun-2012
616,Revenue,CCHD,Bed and Breakfast,Bed & Breakfast,Connolly & Callaghan Limited,616, 14-Jun-2012
617,Revenue,CCHD,Bed and Breakfast,Bed & Breakfast,Connolly & Callaghan Limited,476, 14-Jun-2012
618,Revenue,CCHD,Bed and Breakfast,Bed & Breakfast,Connolly & Callaghan Limited,525, 14-Jun-2012
619,Revenue,CCHD,Bed and Breakfast,Bed & Breakfast,Connolly & Callaghan Limited,581, 21-Jun-2012
620,Revenue,CCHD,Bed and Breakfast,Bed & Breakfast,Connolly & Callaghan Limited,511, 21-Jun-2012
621,Revenue,CCHD,Bed and Breakfast,Bed & Breakfast,Connolly & Callaghan Limited,546, 21-Jun-2012
622,Revenue,CCHD,Bed and Breakfast,Bed & Breakfast,Connolly & Callaghan Limited,511, 21-Jun-2012
623,Revenue,CCHD,Bed and Breakfast,Bed & Breakfast,Connolly & Callaghan Limited,616, 21-Jun-2012
624,Revenue,CCHD,Bed and Breakfast,Bed & Breakfast,Connolly & Callaghan Limited,476, 21-Jun-2012
625,Revenue,CCHD,Bed and Breakfast,Bed & Breakfast,Connolly & Callaghan Limited,525, 21-Jun-2012
626,Revenue,CCHD,Bed and Breakfast,Bed & Breakfast,Connolly & Callaghan Limited,581, 28-Jun-2012
627,Revenue,CCHD,Bed and Breakfast,Bed & Breakfast,Connolly & Callaghan Limited,511, 28-Jun-2012
628,Revenue,CCHD,Bed and Breakfast,Bed & Breakfast,Connolly & Callaghan Limited,546, 28-Jun-2012
629,Revenue,CCHD,Bed and Breakfast,Bed & Breakfast,Connolly & Callaghan Limited,511, 29-Jun-2012
630,Revenue,CCHD,Bed and Breakfast,Bed & Breakfast,Connolly & Callaghan Limited,616, 28-Jun-2012
631,Revenue,CCHD,Bed and Breakfast,Bed & Breakfast,Connolly & Callaghan Limited,476, 28-Jun-2012
632,Revenue,CCHD,Bed and Breakfast,Bed & Breakfast,Connolly & Callaghan Limited,525, 28-Jun-2012
633,Revenue,CCHD,Bed purchasing - Under 65s PWLD - North,Residential Homes,Consensus Support Services Ltd,8938, 27-Jun-2012
634,Revenue,CCHD,Charlton,Gas,Corona Energy Retail 3 Limited,1104.2, 29-Jun-2012
635,Revenue,CCHD,Alexandra Way,Gas,Corona Energy Retail 3 Limited,775.16, 29-Jun-2012
636,Revenue,CCHD,Woodleaze,Gas,Corona Energy Retail 3 Limited,1338.75, 29-Jun-2012
637,Revenue,CCHD,Kerr House,Gas,Corona Energy Retail 3 Limited,796.96, 29-Jun-2012
638,Revenue,CCHD,Newton House,Gas,Corona Energy Retail 3 Limited,2226.72, 29-Jun-2012
639,Revenue,CCHD,Charlton,Gas,Corona Energy Retail 3 Limited,697.06, 29-Jun-2012
640,Revenue,CCHD,Alexandra Way,Gas,Corona Energy Retail 3 Limited,1277.28, 29-Jun-2012
641,Revenue,CCHD,Newton House,Gas,Corona Energy Retail 3 Limited,1371.4, 29-Jun-2012
642,Revenue,CCHD,Woodleaze,Gas,Corona Energy Retail 3 Limited,1036.67, 29-Jun-2012
643,Revenue,CCHD,Research & Conferences,Consultation Expenses,CPEA Ltd,7299.8, 08-Jun-2012
644,Revenue,CCHD,Bed purchasing -S28A  Under 65 - North,Residential Homes,Cream Ii Ltd  Longrun House,7845.84, 12-Jun-2012
645,Revenue,CCHD,Bed purchasing -S28A  Under 65 - North,Residential Homes,Creedy Court,9074.84, 12-Jun-2012
646,Revenue,CCHD,Bed Purchasing - S28A - Over 65- North,Residential Homes,Creedy Court,7548.92, 12-Jun-2012
647,Revenue,CCHD,Brokerage and Information Service,Grants to Voluntary Bodies,D H I,9210.09, 27-Jun-2012
648,Revenue,CCHD,Bed Purchasing - Under 65s PWLD - South,Residential Homes,Daneswood,10754.88, 12-Jun-2012
649,Revenue,CCHD,Bed purchasing - Under 65s PWLD - North,Residential Homes,Daneswood,8901.24, 12-Jun-2012
650,Revenue,CCHD,Learning Difficulties PSL,Other Supplies & Services,Individual,2016.44, 22-Jun-2012
651,Revenue,CCHD,Day Care - North,Private & Voluntary Day Care,Deafblind UK,1216.22, 25-Jun-2012
652,Revenue,CCHD,Day Care - North,Private & Voluntary Day Care,Deafblind UK,1341.34, 22-Jun-2012
653,Revenue,CCHD,Day Care - North,Private & Voluntary Day Care,Deafblind UK,1084.17, 26-Jun-2012
654,Revenue,CCHD,Day Care - North,Private & Voluntary Day Care,Deafblind UK,1083.4, 22-Jun-2012
655,Revenue,CCHD,Day Care - North,Private & Voluntary Day Care,Deafblind UK,565.8, 25-Jun-2012
656,Revenue,CCHD,Day Care - North,Private & Voluntary Day Care,Deafblind UK,1657.74, 22-Jun-2012
657,Revenue,CCHD,Purchase of Non-Res Care - KD,Private & Voluntary Day Care,Design 4 Life Ltd,1385.01, 15-Jun-2012
658,Revenue,CCHD,Day Care - South,Private & Voluntary Day Care,Dewis CIL,989.36, 19-Jun-2012
659,Revenue,CCHD,Bed Purchasing - Under 65s PWLD - South,Residential Homes,Dimensions(Uk) Ltd,9526.88, 12-Jun-2012
660,Revenue,CCHD,Bed Purchasing - Under 65s PWLD - South,Residential Homes,Dimensions(Uk) Ltd,3452.4, 12-Jun-2012
661,Revenue,CCHD,Home Care - Elderly - South,Other Small Contracts,DoCare Ltd,2705.07, 27-Jun-2012
662,Revenue,CCHD,Home Care - Elderly - North,Other Small Contracts,DoCare Ltd,3494.31, 27-Jun-2012
663,Revenue,CCHD,Day Care - South,Private & Voluntary Day Care,DoCare Ltd,154.36, 27-Jun-2012
664,Revenue,CCHD,Day Care - North,Private & Voluntary Day Care,DoCare Ltd,452.53, 27-Jun-2012
665,Revenue,CCHD,Home care - Elderly MH - North,Other Small Contracts,DoCare Ltd,184.65, 27-Jun-2012
666,Revenue,CCHD,Elderly MH Day Care North,Private & Voluntary Day Care,DoCare Ltd,54.48, 27-Jun-2012
667,Revenue,CCHD,Home Care - Elderly - South,Other Small Contracts,DoCare Ltd,2714.31, 27-Jun-2012
668,Revenue,CCHD,Home Care - Elderly - North,Other Small Contracts,DoCare Ltd,3554.28, 27-Jun-2012
669,Revenue,CCHD,Day Care - South,Private & Voluntary Day Care,DoCare Ltd,149.82, 27-Jun-2012
670,Revenue,CCHD,Day Care - North,Private & Voluntary Day Care,DoCare Ltd,387.89, 27-Jun-2012
671,Revenue,CCHD,Home care - Elderly MH - North,Other Small Contracts,DoCare Ltd,184.65, 27-Jun-2012
672,Revenue,CCHD,Elderly MH Day Care North,Private & Voluntary Day Care,DoCare Ltd,54.48, 27-Jun-2012
673,Revenue,CCHD,Home Care - Elderly - South,Other Small Contracts,DoCare Ltd,3064.98, 27-Jun-2012
674,Revenue,CCHD,Home Care - Elderly - North,Other Small Contracts,DoCare Ltd,3803.63, 27-Jun-2012
675,Revenue,CCHD,Day Care - South,Private & Voluntary Day Care,DoCare Ltd,108.96, 27-Jun-2012
676,Revenue,CCHD,Day Care - North,Private & Voluntary Day Care,DoCare Ltd,531.03, 27-Jun-2012
677,Revenue,CCHD,Home care - Elderly MH - North,Other Small Contracts,DoCare Ltd,170.8, 27-Jun-2012
678,Revenue,CCHD,Elderly MH Day Care North,Private & Voluntary Day Care,DoCare Ltd,36.63, 27-Jun-2012
679,Revenue,CCHD,Home Care - Elderly - South,Other Small Contracts,DoCare Ltd,3418.8, 27-Jun-2012
680,Revenue,CCHD,Home Care - Elderly - North,Other Small Contracts,DoCare Ltd,3853.09, 27-Jun-2012
681,Revenue,CCHD,Day Care - South,Private & Voluntary Day Care,DoCare Ltd,110.88, 27-Jun-2012
682,Revenue,CCHD,Day Care - North,Private & Voluntary Day Care,DoCare Ltd,494.36, 27-Jun-2012
683,Revenue,CCHD,Home care - Elderly MH - North,Other Small Contracts,DoCare Ltd,184.8, 27-Jun-2012
684,Revenue,CCHD,Elderly MH Day Care North,Private & Voluntary Day Care,DoCare Ltd,41.58, 27-Jun-2012
685,Revenue,CCHD,Home Care - Elderly - South,Other Small Contracts,DoCare Ltd,3261.72, 27-Jun-2012
686,Revenue,CCHD,Home Care - Elderly - North,Other Small Contracts,DoCare Ltd,3913.14, 27-Jun-2012
687,Revenue,CCHD,Day Care - South,Private & Voluntary Day Care,DoCare Ltd,110.88, 27-Jun-2012
688,Revenue,CCHD,Day Care - North,Private & Voluntary Day Care,DoCare Ltd,540.56, 27-Jun-2012
689,Revenue,CCHD,Home care - Elderly MH - North,Other Small Contracts,DoCare Ltd,184.8, 27-Jun-2012
690,Revenue,CCHD,Elderly MH Day Care North,Private & Voluntary Day Care,DoCare Ltd,64.68, 27-Jun-2012
691,Revenue,CCHD,Home Care - Elderly - South,Other Small Contracts,DoCare Ltd,2961.43, 27-Jun-2012
692,Revenue,CCHD,Home Care - Elderly - North,Other Small Contracts,DoCare Ltd,3825.37, 27-Jun-2012
693,Revenue,CCHD,Day Care - South,Private & Voluntary Day Care,DoCare Ltd,46.2, 27-Jun-2012
694,Revenue,CCHD,Day Care - North,Private & Voluntary Day Care,DoCare Ltd,429.67, 27-Jun-2012
695,Revenue,CCHD,Home care - Elderly MH - North,Other Small Contracts,DoCare Ltd,184.8, 27-Jun-2012
696,Revenue,CCHD,Elderly MH Day Care North,Private & Voluntary Day Care,DoCare Ltd,110.88, 27-Jun-2012
697,Revenue,CCHD,Home Care - Elderly - South,Other Small Contracts,DoCare Ltd,2956.81, 27-Jun-2012
698,Revenue,CCHD,Home Care - Elderly - North,Other Small Contracts,DoCare Ltd,3622.09, 27-Jun-2012
699,Revenue,CCHD,Day Care - South,Private & Voluntary Day Care,DoCare Ltd,55.44, 27-Jun-2012
700,Revenue,CCHD,Day Care - North,Private & Voluntary Day Care,DoCare Ltd,494.35, 27-Jun-2012
701,Revenue,CCHD,Home care - Elderly MH - North,Other Small Contracts,DoCare Ltd,184.8, 27-Jun-2012
702,Revenue,CCHD,Elderly MH Day Care North,Private & Voluntary Day Care,DoCare Ltd,55.44, 27-Jun-2012
703,Revenue,CCHD,Home Care - Elderly - South,Other Small Contracts,DoCare Ltd,2871.22, 27-Jun-2012
704,Revenue,CCHD,Home Care - Elderly - North,Other Small Contracts,DoCare Ltd,3780.52, 27-Jun-2012
705,Revenue,CCHD,Day Care - South,Private & Voluntary Day Care,DoCare Ltd,99.88, 27-Jun-2012
706,Revenue,CCHD,Day Care - North,Private & Voluntary Day Care,DoCare Ltd,484.86, 27-Jun-2012
707,Revenue,CCHD,Home care - Elderly MH - North,Other Small Contracts,DoCare Ltd,184.65, 27-Jun-2012
708,Revenue,CCHD,Elderly MH Day Care North,Private & Voluntary Day Care,DoCare Ltd,54.48, 27-Jun-2012
709,Revenue,CCHD,Home Care - Elderly - South,Other Small Contracts,DoCare Ltd,2912.64, 27-Jun-2012
710,Revenue,CCHD,Home Care - Elderly - North,Other Small Contracts,DoCare Ltd,4057.54, 27-Jun-2012
711,Revenue,CCHD,Day Care - South,Private & Voluntary Day Care,DoCare Ltd,154.36, 27-Jun-2012
712,Revenue,CCHD,Day Care - North,Private & Voluntary Day Care,DoCare Ltd,517.18, 27-Jun-2012
713,Revenue,CCHD,Home care - Elderly MH - North,Other Small Contracts,DoCare Ltd,184.65, 27-Jun-2012
714,Revenue,CCHD,Elderly MH Day Care North,Private & Voluntary Day Care,DoCare Ltd,108.96, 27-Jun-2012
715,Revenue,CCHD,Bed Purchasing - Elderly - South,Nursing Homes,Dunkirk Memorial House,1158.2, 12-Jun-2012
716,Revenue,CCHD,MH Purchasing - Younger,Residential Homes,Dunraven House,3620.48, 12-Jun-2012
717,Revenue,CCHD,Bed and Breakfast,Bed & Breakfast,E J Bartlett,525, 01-Jun-2012
718,Revenue,CCHD,Bed and Breakfast,Bed & Breakfast,E J Bartlett,630, 01-Jun-2012
719,Revenue,CCHD,Bed and Breakfast,Bed & Breakfast,E J Bartlett,420, 01-Jun-2012
720,Revenue,CCHD,Bed and Breakfast,Bed & Breakfast,E J Bartlett,840, 01-Jun-2012
721,Revenue,CCHD,Bed and Breakfast,Bed & Breakfast,E J Bartlett,525, 08-Jun-2012
722,Revenue,CCHD,Bed and Breakfast,Bed & Breakfast,E J Bartlett,630, 08-Jun-2012
723,Revenue,CCHD,Bed and Breakfast,Bed & Breakfast,E J Bartlett,420, 08-Jun-2012
724,Revenue,CCHD,Bed and Breakfast,Bed & Breakfast,E J Bartlett,840, 08-Jun-2012
725,Revenue,CCHD,Bed and Breakfast,Bed & Breakfast,E J Bartlett,525, 13-Jun-2012
726,Revenue,CCHD,Bed and Breakfast,Bed & Breakfast,E J Bartlett,630, 13-Jun-2012
727,Revenue,CCHD,Bed and Breakfast,Bed & Breakfast,E J Bartlett,630, 13-Jun-2012
728,Revenue,CCHD,Bed and Breakfast,Bed & Breakfast,E J Bartlett,420, 13-Jun-2012
729,Revenue,CCHD,Bed and Breakfast,Bed & Breakfast,E J Bartlett,840, 13-Jun-2012
730,Revenue,CCHD,Bed and Breakfast,Bed & Breakfast,E J Bartlett,630, 21-Jun-2012
731,Revenue,CCHD,Bed and Breakfast,Bed & Breakfast,E J Bartlett,630, 21-Jun-2012
732,Revenue,CCHD,Bed and Breakfast,Bed & Breakfast,E J Bartlett,420, 21-Jun-2012
733,Revenue,CCHD,Bed and Breakfast,Bed & Breakfast,E J Bartlett,420, 28-Jun-2012
734,Revenue,CCHD,Bed and Breakfast,Bed & Breakfast,E J Bartlett,630, 28-Jun-2012
735,Revenue,CCHD,Bed and Breakfast,Bed & Breakfast,E J Bartlett,630, 28-Jun-2012
736,Revenue,CCHD,Bed and Breakfast,Bed & Breakfast,E J Bartlett,840, 29-Jun-2012
737,Revenue,CCHD,Cambrian Drive,Electricity,E.ON,649.84, 12-Jun-2012
738,Revenue,CCHD,Bed purchasing - Under 65s PWLD - North,Residential Homes,East Court,2160.8, 12-Jun-2012
739,Revenue,CCHD,Frome House,Electricity,EDF Energy 1 Limited,1059.58, 27-Jun-2012
740,Revenue,CCHD,Frome House,Electricity,EDF Energy 1 Limited,591.84, 27-Jun-2012
741,Revenue,CCHD,Frome House,Electricity,EDF Energy 1 Limited,674.71, 27-Jun-2012
742,Revenue,CCHD,Charlton,Electricity,EDF Energy 1 Limited,1099.74, 15-Jun-2012
743,Revenue,CCHD,Woodleaze,Electricity,EDF Energy 1 Limited,860.76, 15-Jun-2012
744,Revenue,CCHD,Newton House,Electricity,EDF Energy 1 Limited,931.02, 15-Jun-2012
745,Revenue,CCHD,Alexandra Way,Electricity,EDF Energy 1 Limited,1415.97, 15-Jun-2012
746,Revenue,CCHD,Alexandra Way,Electricity,EDF Energy 1 Limited,1260.24, 15-Jun-2012
747,Revenue,CCHD,Frenchay Hospital Purchasing,Residential Homes,Edgecumbe Lodge,1183.84, 12-Jun-2012
748,Revenue,CCHD,Southmead Hospital Purchasing,Residential Homes,Edgecumbe Lodge,4451.03, 12-Jun-2012
749,Revenue,CCHD,Southmead Hospital Purchasing,Residential Homes,Edgecumbe Lodge,1239.2, 12-Jun-2012
750,Revenue,CCHD,Bed Purchasing - Elderly - South,Residential Homes,Edgecumbe Lodge,1229.4, 12-Jun-2012
751,Revenue,CCHD,Frenchay Hospital Purchasing,Residential Homes,Edgecumbe Lodge,1110.52, 12-Jun-2012
752,Revenue,CCHD,Bed Purchasing - Elderly - South,Residential Homes,Edgecumbe Lodge,2004.57, 12-Jun-2012
753,Revenue,CCHD,Frenchay Hospital Purchasing,Residential Homes,Edgecumbe Lodge,1056, 12-Jun-2012
754,Revenue,CCHD,Bed Purchasing - Elderly MH - South,Residential Homes,Edgecumbe Lodge,1147.84, 12-Jun-2012
755,Revenue,CCHD,Bed purchasing - Elderly PWLD - South,Residential Homes,Edgemont House Ltd,1310.88, 12-Jun-2012
756,Revenue,CCHD,Bed Purchasing - Elderly - South,Residential Homes,Edgemont House Ltd,1353.44, 12-Jun-2012
757,Revenue,CCHD,Bed Purchasing - Elderly - South,Residential Homes,Edgemont House Ltd,1243.44, 12-Jun-2012
758,Revenue,CCHD,Frenchay Hospital Purchasing,Residential Homes,Edgemont House Ltd,1361.56, 12-Jun-2012
759,Revenue,CCHD,Bed Purchasing - Elderly - South,Nursing Homes,Edgemont View Nursing Home,1418.52, 12-Jun-2012
760,Revenue,CCHD,Frenchay Hospital Purchasing,Nursing Homes,Edgemont View Nursing Home,1341.28, 12-Jun-2012
761,Revenue,CCHD,Bed Purchasing - Elderly - South,Nursing Homes,Edgemont View Nursing Home,1263.2, 12-Jun-2012
762,Revenue,CCHD,Bed Purchasing - Elderly - South,Nursing Homes,Edgemont View Nursing Home,1602.76, 12-Jun-2012
763,Revenue,CCHD,Frenchay Hospital Purchasing,Nursing Homes,Edgemont View Nursing Home,606.84, 12-Jun-2012
764,Revenue,CCHD,Supporting People Programme,Grants to Voluntary Bodies,Elim Housing Association Ltd,4898.24, 01-Jun-2012
765,Revenue,CCHD,Supporting People Programme,Grants to Voluntary Bodies,Elim Housing Association Ltd,4898.24, 29-Jun-2012
766,Revenue,CCHD,Home Care - Elderly - South,Other Small Contracts,Elite Home Care Ltd,3260.49, 07-Jun-2012
767,Revenue,CCHD,Day Care - South,Private & Voluntary Day Care,Elite Home Care Ltd,90.93, 07-Jun-2012
768,Revenue,CCHD,Under 65s -MH  Home Care Purch,Other Small Contracts,Elite Home Care Ltd,86.6, 07-Jun-2012
769,Revenue,CCHD,Home care - Elderly MH - North,Other Small Contracts,Elite Home Care Ltd,363.72, 07-Jun-2012
770,Revenue,CCHD,Home Care - Elderly - South,Other Small Contracts,Elite Home Care Ltd,3355.75, 20-Jun-2012
771,Revenue,CCHD,Day Care - South,Private & Voluntary Day Care,Elite Home Care Ltd,138.56, 20-Jun-2012
772,Revenue,CCHD,Under 65s -MH  Home Care Purch,Other Small Contracts,Elite Home Care Ltd,86.6, 20-Jun-2012
773,Revenue,CCHD,Home care - Elderly MH - North,Other Small Contracts,Elite Home Care Ltd,363.72, 20-Jun-2012
774,Revenue,CCHD,Home Care - Elderly - South,Other Small Contracts,Elite Home Care Ltd,3368.74, 20-Jun-2012
775,Revenue,CCHD,Day Care - South,Private & Voluntary Day Care,Elite Home Care Ltd,86.6, 20-Jun-2012
776,Revenue,CCHD,Under 65s -MH  Home Care Purch,Other Small Contracts,Elite Home Care Ltd,86.6, 20-Jun-2012
777,Revenue,CCHD,Home care - Elderly MH - North,Other Small Contracts,Elite Home Care Ltd,359.39, 20-Jun-2012
778,Revenue,CCHD,Home Care - Elderly - South,Other Small Contracts,Elite Home Care Ltd,3100.28, 27-Jun-2012
779,Revenue,CCHD,Day Care - South,Private & Voluntary Day Care,Elite Home Care Ltd,34.64, 27-Jun-2012
780,Revenue,CCHD,Under 65s -MH  Home Care Purch,Other Small Contracts,Elite Home Care Ltd,82.27, 27-Jun-2012
781,Revenue,CCHD,Home care - Elderly MH - North,Other Small Contracts,Elite Home Care Ltd,363.72, 27-Jun-2012
782,Revenue,CCHD,Frenchay Hospital Purchasing,Nursing Homes,Elmwood Nursing Home,4426.24, 12-Jun-2012
783,Revenue,CCHD,Younger MH non-res purchasing,Private & Voluntary Day Care,Enham,638.72, 15-Jun-2012
784,Revenue,CCHD,Home Care - Elderly - South,Other Small Contracts,Everycare (Bristol) Ltd,399, 06-Jun-2012
785,Revenue,CCHD,Home Care - Elderly - North,Other Small Contracts,Everycare (Bristol) Ltd,1297.8, 06-Jun-2012
786,Revenue,CCHD,Day Care - North,Private & Voluntary Day Care,Everycare (Bristol) Ltd,58.8, 06-Jun-2012
787,Revenue,CCHD,Home Care - Elderly - South,Other Small Contracts,Everycare (Bristol) Ltd,714, 06-Jun-2012
788,Revenue,CCHD,Home Care - Elderly - North,Other Small Contracts,Everycare (Bristol) Ltd,1285.2, 06-Jun-2012
789,Revenue,CCHD,Day Care - North,Private & Voluntary Day Care,Everycare (Bristol) Ltd,58.8, 06-Jun-2012
790,Revenue,CCHD,Bed Purchasing - Elderly MH - South,Residential Homes,Exmouth House,1382.92, 12-Jun-2012
791,Revenue,CCHD,Bed Purchasing - Elderly MH - South,Residential Homes,Fairview Court,1403.2, 12-Jun-2012
792,Revenue,CCHD,Bed Purchasing - Elderly - South,Residential Homes,Fairview Court,2623.36, 12-Jun-2012
793,Revenue,CCHD,Bed Purchasing - Elderly - South,Residential Homes,Fairview Court,2118.56, 12-Jun-2012
794,Revenue,CCHD,Bed Purchasing - Elderly - South,Residential Homes,Fairview House,634.12, 12-Jun-2012
795,Revenue,CCHD,Frenchay Hospital Purchasing,Residential Homes,Fairview House,1233.32, 12-Jun-2012
796,Revenue,CCHD,Frenchay Hospital Purchasing,Residential Homes,Fairview House,995.44, 12-Jun-2012
797,Revenue,CCHD,Bed purchasing - Elderly S117 - South,Residential Homes,Fairview House,1870.92, 12-Jun-2012
798,Revenue,CCHD,Southmead Hospital Purchasing,Residential Homes,Fairview House,1021.08, 12-Jun-2012
799,Revenue,CCHD,Southmead Hospital Purchasing,Residential Homes,Fairview House,1111.28, 12-Jun-2012
800,Revenue,CCHD,Bed Purchasing - Elderly MH - South,Residential Homes,Fairview House,1097.2, 12-Jun-2012
801,Revenue,CCHD,Frenchay Hospital Purchasing,Residential Homes,Fairview House,1239.2, 12-Jun-2012
802,Revenue,CCHD,Southmead Hospital Purchasing,Residential Homes,Fairview House,12617.29, 12-Jun-2012
803,Revenue,CCHD,Bed Purchasing - Elderly MH - South,Residential Homes,Fairview House,1038.44, 12-Jun-2012
804,Revenue,CCHD,Bed Purchasing - Elderly MH - South,Residential Homes,Fairview House,1198.68, 12-Jun-2012
805,Revenue,CCHD,Bed Purchasing - Elderly - North,Residential Homes,Faith House,871.16, 12-Jun-2012
806,Revenue,CCHD,Frenchay Hospital Purchasing,Residential Homes,Faith House,1302, 12-Jun-2012
807,Revenue,CCHD,Bed Purchasing - Elderly - North,Residential Homes,Faith House,1099.08, 12-Jun-2012
808,Revenue,CCHD,Bed purchasing - Under 65s PWLD - North,Residential Homes,Fernbank,8479.4, 12-Jun-2012
809,Revenue,CCHD,Home Care - Elderly - South,Other Small Contracts,Firstpoint Homecare Ltd,1543.89, 01-Jun-2012
810,Revenue,CCHD,Home Care - Elderly - North,Other Small Contracts,Firstpoint Homecare Ltd,345.13, 01-Jun-2012
811,Revenue,CCHD,Day Care - South,Private & Voluntary Day Care,Firstpoint Homecare Ltd,671.29, 01-Jun-2012
812,Revenue,CCHD,Day Care - North,Private & Voluntary Day Care,Firstpoint Homecare Ltd,432.35, 01-Jun-2012
813,Revenue,CCHD,Younger MH non-res purchasing,Private & Voluntary Day Care,Firstpoint Homecare Ltd,45.51, 01-Jun-2012
814,Revenue,CCHD,Home care - Elderly MH - North,Other Small Contracts,Firstpoint Homecare Ltd,155.51, 01-Jun-2012
815,Revenue,CCHD,Elderly MH Day Care North,Private & Voluntary Day Care,Firstpoint Homecare Ltd,182.04, 01-Jun-2012
816,Revenue,CCHD,Supported Living - KD,Private & Voluntary Home Care,Firstpoint Homecare Ltd,91.02, 01-Jun-2012
817,Revenue,CCHD,Home Care - Elderly - South,Other Small Contracts,Firstpoint Homecare Ltd,1508.6, 18-Jun-2012
818,Revenue,CCHD,Home Care - Elderly - North,Other Small Contracts,Firstpoint Homecare Ltd,323, 18-Jun-2012
819,Revenue,CCHD,Day Care - South,Private & Voluntary Day Care,Firstpoint Homecare Ltd,634.6, 18-Jun-2012
820,Revenue,CCHD,Day Care - North,Private & Voluntary Day Care,Firstpoint Homecare Ltd,387.6, 18-Jun-2012
821,Revenue,CCHD,Younger MH non-res purchasing,Private & Voluntary Day Care,Firstpoint Homecare Ltd,76, 18-Jun-2012
822,Revenue,CCHD,Home care - Elderly MH - North,Other Small Contracts,Firstpoint Homecare Ltd,155.8, 18-Jun-2012
823,Revenue,CCHD,Elderly MH Day Care North,Private & Voluntary Day Care,Firstpoint Homecare Ltd,182.4, 18-Jun-2012
824,Revenue,CCHD,Supported Living - KD,Private & Voluntary Home Care,Firstpoint Homecare Ltd,91.2, 18-Jun-2012
825,Revenue,CCHD,Home Care - Elderly - South,Other Small Contracts,Firstpoint Homecare Ltd,1455.4, 18-Jun-2012
826,Revenue,CCHD,Home Care - Elderly - North,Other Small Contracts,Firstpoint Homecare Ltd,338.2, 18-Jun-2012
827,Revenue,CCHD,Day Care - South,Private & Voluntary Day Care,Firstpoint Homecare Ltd,638.4, 18-Jun-2012
828,Revenue,CCHD,Day Care - North,Private & Voluntary Day Care,Firstpoint Homecare Ltd,429.4, 18-Jun-2012
829,Revenue,CCHD,Younger MH non-res purchasing,Private & Voluntary Day Care,Firstpoint Homecare Ltd,76, 18-Jun-2012
830,Revenue,CCHD,Home care - Elderly MH - North,Other Small Contracts,Firstpoint Homecare Ltd,155.8, 18-Jun-2012
831,Revenue,CCHD,Elderly MH Day Care North,Private & Voluntary Day Care,Firstpoint Homecare Ltd,182.4, 18-Jun-2012
832,Revenue,CCHD,Supported Living - KD,Private & Voluntary Home Care,Firstpoint Homecare Ltd,91.2, 18-Jun-2012
833,Revenue,CCHD,Home Care - Elderly - South,Other Small Contracts,Firstpoint Homecare Ltd,1516.2, 25-Jun-2012
834,Revenue,CCHD,Home Care - Elderly - North,Other Small Contracts,Firstpoint Homecare Ltd,311.6, 25-Jun-2012
835,Revenue,CCHD,Day Care - South,Private & Voluntary Day Care,Firstpoint Homecare Ltd,634.6, 25-Jun-2012
836,Revenue,CCHD,Day Care - North,Private & Voluntary Day Care,Firstpoint Homecare Ltd,478.8, 25-Jun-2012
837,Revenue,CCHD,Younger MH non-res purchasing,Private & Voluntary Day Care,Firstpoint Homecare Ltd,76, 25-Jun-2012
838,Revenue,CCHD,Home care - Elderly MH - North,Other Small Contracts,Firstpoint Homecare Ltd,155.8, 25-Jun-2012
839,Revenue,CCHD,Elderly MH Day Care North,Private & Voluntary Day Care,Firstpoint Homecare Ltd,182.4, 25-Jun-2012
840,Revenue,CCHD,Supported Living - KD,Private & Voluntary Home Care,Firstpoint Homecare Ltd,91.2, 25-Jun-2012
841,Revenue,CCHD,Purchase of Non-Res Care - PS,Private & Voluntary Day Care,Firstpoint Homecare Ltd,994.72, 06-Jun-2012
842,Revenue,CCHD,Purchase of Non-Res Care - PS,Private & Voluntary Day Care,Firstpoint Homecare Ltd,1010.99, 06-Jun-2012
843,Revenue,CCHD,Purchase of Non-Res Care - PS,Private & Voluntary Day Care,Firstpoint Homecare Ltd,1238.77, 06-Jun-2012
844,Revenue,CCHD,Purchase of Non-Res Care - PS,Private & Voluntary Day Care,Firstpoint Homecare Ltd,1238.77, 21-Jun-2012
845,Revenue,CCHD,Purchase of Non-Res Care - PS,Private & Voluntary Day Care,Firstpoint Homecare Ltd,1273.07, 21-Jun-2012
846,Revenue,CCHD,Home Care - Elderly - South,Other Small Contracts,Firstpoint Homecare Ltd,2290.3, 29-Jun-2012
847,Revenue,CCHD,Home Care - Elderly - North,Other Small Contracts,Firstpoint Homecare Ltd,1171.91, 29-Jun-2012
848,Revenue,CCHD,Under 65s -MH  Home Care Purch,Private & Voluntary Day Care,Firstpoint Homecare Ltd,75.85, 29-Jun-2012
849,Revenue,CCHD,Home Care - Elderly - South,Other Small Contracts,Firstpoint Homecare Ltd,1967.9, 29-Jun-2012
850,Revenue,CCHD,Home Care - Elderly - North,Other Small Contracts,Firstpoint Homecare Ltd,974.7, 29-Jun-2012
851,Revenue,CCHD,Under 65s -MH  Home Care Purch,Private & Voluntary Day Care,Firstpoint Homecare Ltd,75.85, 29-Jun-2012
852,Revenue,CCHD,South Glos Users in South Glos Homes,Nursing Homes,Four Seasons Health Care,22780.42, 19-Jun-2012
853,Revenue,CCHD,Swift Dump Code,Residential Homes,Four Seasons Health Care,20727.28, 19-Jun-2012
854,Revenue,CCHD,Bed Purchasing - Elderly - South,Nursing Homes,Four Seasons Health Care,1281.72, 12-Jun-2012
855,Revenue,CCHD,Frenchay Hospital Purchasing,Residential Homes,Four Seasons Health Care,892.12, 12-Jun-2012
856,Revenue,CCHD,Bed Purchasing - Elderly MH - South,Nursing Homes,Four Seasons Health Care,1363.2, 12-Jun-2012
857,Revenue,CCHD,Southmead Hospital Purchasing,Nursing Homes,Four Seasons Health Care,1363.2, 12-Jun-2012
858,Revenue,CCHD,Frenchay Hospital Purchasing,Nursing Homes,Four Seasons Health Care,4149.21, 12-Jun-2012
859,Revenue,CCHD,South Glos Users in South Glos Homes,Nursing Homes,Four Seasons Health Care,1304.4, 12-Jun-2012
860,Revenue,CCHD,Frenchay Hospital Purchasing,Nursing Homes,Four Seasons Health Care,1363.2, 12-Jun-2012
861,Revenue,CCHD,Frenchay Hospital Purchasing,Nursing Homes,Four Seasons Health Care,1840, 12-Jun-2012
862,Revenue,CCHD,Southmead Hospital Purchasing,Nursing Homes,Four Seasons Health Care,1363.2, 12-Jun-2012
863,Revenue,CCHD,Section 117 Placements MH Younger,Nursing Homes,Four Seasons Health Care,3099.43, 12-Jun-2012
864,Revenue,CCHD,Section 117 Placements MH Younger,Nursing Homes,Four Seasons Health Care,1840, 12-Jun-2012
865,Revenue,CCHD,Section 117 Placements MH Younger,Nursing Homes,Four Seasons Health Care,3099.43, 12-Jun-2012
866,Revenue,CCHD,Bed Purchasing - Elderly - South,Nursing Homes,Four Seasons Health Care,903.84, 12-Jun-2012
867,Revenue,CCHD,Southmead Hospital Purchasing,Nursing Homes,Four Seasons Health Care,1363.2, 12-Jun-2012
868,Revenue,CCHD,Bed Purchasing - Elderly - South,Nursing Homes,Four Seasons Health Care,1361.64, 12-Jun-2012
869,Revenue,CCHD,Cash for Change Discharges,Nursing Homes,Four Seasons Health Care,1363.2, 12-Jun-2012
870,Revenue,CCHD,Southmead Hospital Purchasing,Nursing Homes,Four Seasons Health Care,1363.2, 12-Jun-2012
871,Revenue,CCHD,Bed Purchasing - Elderly - South,Nursing Homes,Four Seasons Health Care,1327.2, 12-Jun-2012
872,Revenue,CCHD,Southmead Hospital Purchasing,Nursing Homes,Four Seasons Health Care,1363.2, 12-Jun-2012
873,Revenue,CCHD,Bed Purchasing - Elderly - South,Nursing Homes,Four Seasons Health Care,1260.92, 12-Jun-2012
874,Revenue,CCHD,Southmead Hospital Purchasing,Residential Homes,Four Seasons Health Care,543.56, 12-Jun-2012
875,Revenue,CCHD,Southmead Hospital Purchasing,Nursing Homes,Four Seasons Health Care,1269.2, 12-Jun-2012
876,Revenue,CCHD,Bed Purchasing - Elderly - South,Nursing Homes,Four Seasons Health Care,1363.2, 12-Jun-2012
877,Revenue,CCHD,Southmead Hospital Purchasing,Nursing Homes,Four Seasons Health Care,770.28, 12-Jun-2012
878,Revenue,CCHD,Southmead Hospital Purchasing,Nursing Homes,Four Seasons Health Care,521.19, 12-Jun-2012
879,Revenue,CCHD,Bed Purchasing - Elderly - South,Nursing Homes,Four Seasons Health Care,1308.24, 12-Jun-2012
880,Revenue,CCHD,Bed Purchasing - Elderly MH - South,Nursing Homes,Four Seasons Health Care,1363.2, 12-Jun-2012
881,Revenue,CCHD,Bed Purchasing - Elderly - South,Nursing Homes,Four Seasons Health Care,1067.16, 12-Jun-2012
882,Revenue,CCHD,Bed Purchasing - Elderly - South,Nursing Homes,Four Seasons Health Care,1327.2, 12-Jun-2012
883,Revenue,CCHD,Frenchay Hospital Purchasing,Nursing Homes,Four Seasons Health Care,1071.6, 12-Jun-2012
884,Revenue,CCHD,Bed Purchasing - Elderly MH - South,Residential Homes,Four Seasons Health Care,1084.52, 12-Jun-2012
885,Revenue,CCHD,Bed Purchasing - Elderly - South,Nursing Homes,Four Seasons Health Care,1363.2, 12-Jun-2012
886,Revenue,CCHD,Bed Purchasing - Elderly - South,Nursing Homes,Four Seasons Health Care,1361.8, 12-Jun-2012
887,Revenue,CCHD,Frenchay Hospital Purchasing,Nursing Homes,Four Seasons Health Care,1371.2, 12-Jun-2012
888,Revenue,CCHD,Bed Purchasing - Elderly MH - South,Nursing Homes,Four Seasons Health Care,1212.44, 12-Jun-2012
889,Revenue,CCHD,Bed Purchasing - Elderly - North,Nursing Homes,Four Seasons Health Care,956.44, 12-Jun-2012
890,Revenue,CCHD,Frenchay Hospital Purchasing,Nursing Homes,Four Seasons Health Care,1535.2, 12-Jun-2012
891,Revenue,CCHD,Frenchay Hospital Purchasing,Nursing Homes,Four Seasons Health Care,578.15, 12-Jun-2012
892,Revenue,CCHD,Frenchay Hospital Purchasing,Nursing Homes,Four Seasons Health Care,1271.88, 12-Jun-2012
893,Revenue,CCHD,Southmead Hospital Purchasing,Residential Homes,Four Seasons Health Care,1230.28, 12-Jun-2012
894,Revenue,CCHD,Bed Purchasing - Elderly - North,Nursing Homes,Four Seasons Health Care,2247.97, 12-Jun-2012
895,Revenue,CCHD,Bed Purchasing - Elderly - North,Nursing Homes,Four Seasons Health Care,1535.2, 12-Jun-2012
896,Revenue,CCHD,Frenchay Hospital Purchasing,Nursing Homes,Four Seasons Health Care,529.97, 12-Jun-2012
897,Revenue,CCHD,Frenchay Hospital Purchasing,Nursing Homes,Four Seasons Health Care,1809.35, 12-Jun-2012
898,Revenue,CCHD,Frenchay Hospital Purchasing,Nursing Homes,Four Seasons Health Care,1535.2, 12-Jun-2012
899,Revenue,CCHD,Bed Purchasing - Elderly - North,Residential Homes,Four Seasons Health Care,1026.48, 12-Jun-2012
900,Revenue,CCHD,Bed Purchasing - Elderly - North,Nursing Homes,Four Seasons Health Care,1220.44, 12-Jun-2012
901,Revenue,CCHD,Bed purchasing - Elderly MH - North,Nursing Homes,Four Seasons Health Care,1327.2, 12-Jun-2012
902,Revenue,CCHD,Frenchay Hospital Purchasing,Nursing Homes,Four Seasons Health Care,1289.28, 12-Jun-2012
903,Revenue,CCHD,Bed Purchasing - Elderly - North,Nursing Homes,Four Seasons Health Care,1363.2, 12-Jun-2012
904,Revenue,CCHD,Southmead Hospital Purchasing,Nursing Homes,Four Seasons Health Care,1363.2, 12-Jun-2012
905,Revenue,CCHD,Bed Purchasing - Elderly - North,Nursing Homes,Four Seasons Health Care,1363.2, 12-Jun-2012
906,Revenue,CCHD,Bed purchasing - Elderly MH - North,Nursing Homes,Four Seasons Health Care,1457.48, 12-Jun-2012
907,Revenue,CCHD,Bed Purchasing - Elderly - North,Nursing Homes,Four Seasons Health Care,1264.2, 12-Jun-2012
908,Revenue,CCHD,Bed Purchasing - Elderly - North,Nursing Homes,Four Seasons Health Care,1096.56, 12-Jun-2012
909,Revenue,CCHD,Southmead Hospital Purchasing,Nursing Homes,Four Seasons Health Care,1356.56, 12-Jun-2012
910,Revenue,CCHD,Frenchay Hospital Purchasing,Nursing Homes,Four Seasons Health Care,1284.4, 12-Jun-2012
911,Revenue,CCHD,Bed purchasing - Elderly MH - North,Nursing Homes,Four Seasons Health Care,1435.64, 12-Jun-2012
912,Revenue,CCHD,Frenchay Hospital Purchasing,Nursing Homes,Four Seasons Health Care,1343.4, 12-Jun-2012
913,Revenue,CCHD,Bed Purchasing - Elderly - North,Nursing Homes,Four Seasons Health Care,1027.36, 12-Jun-2012
914,Revenue,CCHD,Bed Purchasing - Elderly - North,Residential Homes,Four Seasons Health Care,1212.64, 12-Jun-2012
915,Revenue,CCHD,Bed Purchasing - Elderly - North,Residential Homes,Four Seasons Health Care,537.91, 12-Jun-2012
916,Revenue,CCHD,Frenchay Hospital Purchasing,Nursing Homes,Four Seasons Health Care,1535.2, 12-Jun-2012
917,Revenue,CCHD,Frenchay Hospital Purchasing,Nursing Homes,Four Seasons Health Care,1370.72, 12-Jun-2012
918,Revenue,CCHD,Bed Purchasing - Elderly - North,Nursing Homes,Four Seasons Health Care,1499.2, 12-Jun-2012
919,Revenue,CCHD,Bed Purchasing - Elderly - North,Nursing Homes,Four Seasons Health Care,1363.2, 12-Jun-2012
920,Revenue,CCHD,Bed Purchasing - Elderly - North,Nursing Homes,Four Seasons Health Care,1431.8, 12-Jun-2012
921,Revenue,CCHD,Southmead Hospital Purchasing,Residential Homes,Four Seasons Health Care,705.16, 12-Jun-2012
922,Revenue,CCHD,Bed purchasing - Elderly MH - North,Nursing Homes,Four Seasons Health Care,1421.44, 12-Jun-2012
923,Revenue,CCHD,Southmead Hospital Purchasing,Nursing Homes,Four Seasons Health Care,1442.32, 12-Jun-2012
924,Revenue,CCHD,Bed Purchasing - Elderly - North,Nursing Homes,Four Seasons Health Care,1425.55, 12-Jun-2012
925,Revenue,CCHD,Frenchay Hospital Purchasing,Nursing Homes,Four Seasons Health Care,1211.32, 12-Jun-2012
926,Revenue,CCHD,Southmead Hospital Purchasing,Nursing Homes,Four Seasons Health Care,1535.2, 12-Jun-2012
927,Revenue,CCHD,Bed Purchasing - Elderly - North,Nursing Homes,Four Seasons Health Care,1535.2, 12-Jun-2012
928,Revenue,CCHD,Bed Purchasing - Elderly - North,Nursing Homes,Four Seasons Health Care,2946.14, 12-Jun-2012
929,Revenue,CCHD,Bed purchasing - Elderly MH - North,Residential Homes,Four Seasons Health Care,1197.16, 12-Jun-2012
930,Revenue,CCHD,Southmead Hospital Purchasing,Residential Homes,Four Seasons Health Care,1239.2, 12-Jun-2012
931,Revenue,CCHD,Southmead Hospital Purchasing,Nursing Homes,Four Seasons Health Care,940.68, 12-Jun-2012
932,Revenue,CCHD,Frenchay Hospital Purchasing,Nursing Homes,Four Seasons Health Care,1168.45, 12-Jun-2012
933,Revenue,CCHD,Bed purchasing - Elderly MH - North,Residential Homes,Four Seasons Health Care,1366.04, 12-Jun-2012
934,Revenue,CCHD,Bed Purchasing - Elderly - North,Nursing Homes,Four Seasons Health Care,1346.6, 12-Jun-2012
935,Revenue,CCHD,Bed purchasing - Elderly MH - North,Residential Homes,Four Seasons Health Care,1325.26, 12-Jun-2012
936,Revenue,CCHD,Bed purchasing - Elderly MH - North,Residential Homes,Four Seasons Health Care,515.1, 12-Jun-2012
937,Revenue,CCHD,Bed purchasing - Elderly MH - North,Nursing Homes,Four Seasons Health Care,1025.24, 12-Jun-2012
938,Revenue,CCHD,Bed Purchasing - Elderly - North,Nursing Homes,Four Seasons Health Care,681.6, 12-Jun-2012
939,Revenue,CCHD,Frenchay Hospital Purchasing,Nursing Homes,Four Seasons Health Care,1363.2, 12-Jun-2012
940,Revenue,CCHD,Bed Purchasing - Elderly - North,Residential Homes,Four Seasons Health Care,1239.2, 12-Jun-2012
941,Revenue,CCHD,Frenchay Hospital Purchasing,Nursing Homes,Four Seasons Health Care,1204.44, 12-Jun-2012
942,Revenue,CCHD,Southmead Hospital Purchasing,Nursing Homes,Four Seasons Health Care,963.57, 12-Jun-2012
943,Revenue,CCHD,Frenchay Hospital Purchasing,Nursing Homes,Four Seasons Health Care,1363.2, 12-Jun-2012
944,Revenue,CCHD,Frenchay Hospital Purchasing,Nursing Homes,Four Seasons Health Care,1875.36, 12-Jun-2012
945,Revenue,CCHD,Frenchay Hospital Purchasing,Nursing Homes,Four Seasons Health Care,1250.24, 12-Jun-2012
946,Revenue,CCHD,Bed Purchasing - Elderly - North,Nursing Homes,Four Seasons Health Care,1273.72, 12-Jun-2012
947,Revenue,CCHD,Southmead Hospital Purchasing,Nursing Homes,Four Seasons Health Care,1303.36, 12-Jun-2012
948,Revenue,CCHD,Frenchay Hospital Purchasing,Nursing Homes,Four Seasons Health Care,1354.58, 12-Jun-2012
949,Revenue,CCHD,Frenchay Hospital Purchasing,Nursing Homes,Four Seasons Health Care,1294.16, 12-Jun-2012
950,Revenue,CCHD,Frenchay Hospital Purchasing,Nursing Homes,Four Seasons Health Care,1363.2, 12-Jun-2012
951,Revenue,CCHD,Bed Purchasing - Elderly - North,Nursing Homes,Four Seasons Health Care,1399.2, 12-Jun-2012
952,Revenue,CCHD,Bed Purchasing - Elderly - North,Nursing Homes,Four Seasons Health Care,1825.44, 12-Jun-2012
953,Revenue,CCHD,Bed Purchasing - Elderly - North,Nursing Homes,Four Seasons Health Care,1064.84, 12-Jun-2012
954,Revenue,CCHD,Frenchay Hospital Purchasing,Nursing Homes,Four Seasons Health Care,1363.2, 12-Jun-2012
955,Revenue,CCHD,Southmead Hospital Purchasing,Nursing Homes,Four Seasons Health Care,1704, 12-Jun-2012
956,Revenue,CCHD,Southmead Hospital Purchasing,Nursing Homes,Four Seasons Health Care,1363.2, 12-Jun-2012
957,Revenue,CCHD,Frenchay Hospital Purchasing,Nursing Homes,Four Seasons Health Care,1363.2, 12-Jun-2012
958,Revenue,CCHD,Southmead Hospital Purchasing,Nursing Homes,Four Seasons Health Care,1363.2, 12-Jun-2012
959,Revenue,CCHD,Frenchay Hospital Purchasing,Nursing Homes,Four Seasons Health Care,1379.2, 12-Jun-2012
960,Revenue,CCHD,Bed Purchasing - Elderly - South,Nursing Homes,Four Seasons Health Care,1060.72, 12-Jun-2012
961,Revenue,CCHD,Southmead Hospital Purchasing,Residential Homes,Four Seasons Health Care,1118.04, 12-Jun-2012
962,Revenue,CCHD,Southmead Hospital Purchasing,Nursing Homes,Four Seasons Health Care,1363.2, 12-Jun-2012
963,Revenue,CCHD,Southmead Hospital Purchasing,Nursing Homes,Four Seasons Health Care,1365.12, 12-Jun-2012
964,Revenue,CCHD,Bed purchasing - Phys Dis - North,Nursing Homes,Four Seasons Health Care,1168.64, 12-Jun-2012
965,Revenue,CCHD,Frenchay Hospital Purchasing,Nursing Homes,Four Seasons Health Care,1329.52, 12-Jun-2012
966,Revenue,CCHD,Southmead Hospital Purchasing,Nursing Homes,Four Seasons Health Care,1336.84, 12-Jun-2012
967,Revenue,CCHD,Bed purchasing - Phys Dis - North,Nursing Homes,Four Seasons Health Care,1367.76, 12-Jun-2012
968,Revenue,CCHD,Southmead Hospital Purchasing,Nursing Homes,Four Seasons Health Care,1292.36, 12-Jun-2012
969,Revenue,CCHD,Bed purchasing - Elderly MH - North,Residential Homes,Four Seasons Health Care,1396.2, 12-Jun-2012
970,Revenue,CCHD,Southmead Hospital Purchasing,Residential Homes,Four Seasons Health Care,1163.68, 12-Jun-2012
971,Revenue,CCHD,Frenchay Hospital Purchasing,Nursing Homes,Four Seasons Health Care,1225.56, 12-Jun-2012
972,Revenue,CCHD,Southmead Hospital Purchasing,Residential Homes,Four Seasons Health Care,2897.3, 12-Jun-2012
973,Revenue,CCHD,Southmead Hospital Purchasing,Residential Homes,Four Seasons Health Care,2051.21, 12-Jun-2012
974,Revenue,CCHD,Southmead Hospital Purchasing,Residential Homes,Four Seasons Health Care,747.84, 12-Jun-2012
975,Revenue,CCHD,South Glos Users in South Glos Homes,Nursing Homes,Four Seasons Health Care,3214.41, 12-Jun-2012
976,Revenue,CCHD,South Glos Users in South Glos Homes,Nursing Homes,Four Seasons Health Care,885.13, 12-Jun-2012
977,Revenue,CCHD,Bed purchasing - Elderly PWLD - South,Residential Homes,Four Seasons Health Care,1239.2, 12-Jun-2012
978,Revenue,CCHD,Frenchay Hospital Purchasing,Nursing Homes,Four Seasons Health Care,1363.2, 12-Jun-2012
979,Revenue,CCHD,Southmead Hospital Purchasing,Nursing Homes,Four Seasons Health Care,1103.76, 12-Jun-2012
980,Revenue,CCHD,Bed Purchasing - Elderly - South,Nursing Homes,Four Seasons Health Care,1286.52, 12-Jun-2012
981,Revenue,CCHD,Bed Purchasing - Elderly - South,Nursing Homes,Four Seasons Health Care,1363.2, 12-Jun-2012
982,Revenue,CCHD,Frenchay Hospital Purchasing,Residential Homes,Four Seasons Health Care,1031.2, 12-Jun-2012
983,Revenue,CCHD,Southmead Hospital Purchasing,Residential Homes,Four Seasons Health Care,694.4, 12-Jun-2012
984,Revenue,CCHD,Bed Purchasing - Elderly - South,Nursing Homes,Four Seasons Health Care,1352.48, 12-Jun-2012
985,Revenue,CCHD,Southmead Hospital Purchasing,Nursing Homes,Four Seasons Health Care,1138.92, 12-Jun-2012
986,Revenue,CCHD,Bed Purchasing - Elderly - South,Residential Homes,Four Seasons Health Care,865.28, 12-Jun-2012
987,Revenue,CCHD,Southmead Hospital Purchasing,Nursing Homes,Four Seasons Health Care,1304.96, 12-Jun-2012
988,Revenue,CCHD,Southmead Hospital Purchasing,Residential Homes,Four Seasons Health Care,1386, 12-Jun-2012
989,Revenue,CCHD,Frenchay Hospital Purchasing,Nursing Homes,Four Seasons Health Care,968.96, 12-Jun-2012
990,Revenue,CCHD,Frenchay Hospital Purchasing,Nursing Homes,Four Seasons Health Care,847.84, 12-Jun-2012
991,Revenue,CCHD,Frenchay Hospital Purchasing,Nursing Homes,Four Seasons Health Care,769.44, 12-Jun-2012
992,Revenue,CCHD,Bed Purchasing - Elderly - North,Residential Homes,Four Seasons Health Care,1593.26, 12-Jun-2012
993,Revenue,CCHD,Bed Purchasing - Elderly - South,Nursing Homes,Four Seasons Health Care,947.2, 12-Jun-2012
994,Revenue,CCHD,Frenchay Hospital Purchasing,Residential Homes,Four Seasons Health Care,1239.2, 12-Jun-2012
995,Revenue,CCHD,Bed purchasing - Elderly S117 - South,Nursing Homes,Four Seasons Health Care,1840, 12-Jun-2012
996,Revenue,CCHD,Frenchay Hospital Purchasing,Residential Homes,Four Seasons Health Care,1102.84, 12-Jun-2012
997,Revenue,CCHD,Bed Purchasing - Elderly MH - South,Nursing Homes,Four Seasons Health Care,1174.8, 12-Jun-2012
998,Revenue,CCHD,Frenchay Hospital Purchasing,Nursing Homes,Four Seasons Health Care,7549.35, 12-Jun-2012
999,Revenue,CCHD,Frenchay Hospital Purchasing,Nursing Homes,Four Seasons Health Care,1357.99, 12-Jun-2012
1000,Revenue,CCHD,Southmead Hospital Purchasing,Residential Homes,Four Seasons Health Care,2316.93, 12-Jun-2012
1001,Revenue,CCHD,Southmead Hospital Purchasing,Residential Homes,Four Seasons Health Care,1448.67, 12-Jun-2012
1002,Revenue,CCHD,Southmead Hospital Purchasing,Residential Homes,Four Seasons Health Care,1323.96, 12-Jun-2012
1003,Revenue,CCHD,Southmead Hospital Purchasing,Nursing Homes,Four Seasons Health Care,1363.2, 12-Jun-2012
1004,Revenue,CCHD,Bed Purchasing - Elderly MH - South,Residential Homes,Four Seasons Health Care,936.64, 12-Jun-2012
1005,Revenue,CCHD,Southmead Hospital Purchasing,Nursing Homes,Four Seasons Health Care,1363.2, 12-Jun-2012
1006,Revenue,CCHD,Frenchay Hospital Purchasing,Nursing Homes,Four Seasons Health Care,1109.56, 12-Jun-2012
1007,Revenue,CCHD,South Glos Users in South Glos Homes,Nursing Homes,Four Seasons Health Care,3074.66, 12-Jun-2012
1008,Revenue,CCHD,South Glos Users in South Glos Homes,Nursing Homes,Four Seasons Health Care,885.13, 12-Jun-2012
1009,Revenue,CCHD,Southmead Hospital Purchasing,Nursing Homes,Four Seasons Health Care,4409.1, 12-Jun-2012
1010,Revenue,CCHD,Southmead Hospital Purchasing,Nursing Homes,Four Seasons Health Care,1363.2, 12-Jun-2012
1011,Revenue,CCHD,Southmead Hospital Purchasing,Nursing Homes,Four Seasons Health Care,991.8, 12-Jun-2012
1012,Revenue,CCHD,Southmead Hospital Purchasing,Nursing Homes,Four Seasons Health Care,894.36, 12-Jun-2012
1013,Revenue,CCHD,Southmead Hospital Purchasing,Nursing Homes,Four Seasons Health Care,3894.57, 12-Jun-2012
1014,Revenue,CCHD,Bed Purchasing - Elderly S117- North,Residential Homes,Four Seasons Health Care,2011.04, 12-Jun-2012
1015,Revenue,CCHD,Frenchay Hospital Purchasing,Residential Homes,Four Seasons Health Care,1515.84, 12-Jun-2012
1016,Revenue,CCHD,Home Care - Elderly - North,Other Small Contracts,Freedom Social Care Recruitment,935, 01-Jun-2012
1017,Revenue,CCHD,Home Care - Elderly - North,Other Small Contracts,Freedom Social Care Recruitment,1095, 01-Jun-2012
1018,Revenue,CCHD,Home Care - Elderly - North,Other Small Contracts,Freedom Social Care Recruitment,1095, 01-Jun-2012
1019,Revenue,CCHD,Home Care - Elderly - North,Other Small Contracts,Freedom Social Care Recruitment,1095, 01-Jun-2012
1020,Revenue,CCHD,Home Care - Elderly - North,Other Small Contracts,Freedom Social Care Recruitment,1095, 01-Jun-2012
1021,Revenue,CCHD,Home Care - Elderly - North,Other Small Contracts,Freedom Social Care Recruitment,1095, 01-Jun-2012
1022,Revenue,CCHD,Home Care - Elderly - North,Other Small Contracts,Freedom Social Care Recruitment,1095, 01-Jun-2012
1023,Revenue,CCHD,Home Care - Elderly - South,Other Small Contracts,Freedom Social Care Recruitment,1282.26, 25-Jun-2012
1024,Revenue,CCHD,Home Care - Elderly - North,Other Small Contracts,Freedom Social Care Recruitment,3434.43, 25-Jun-2012
1025,Revenue,CCHD,Day Care - South,Private & Voluntary Day Care,Freedom Social Care Recruitment,94.16, 25-Jun-2012
1026,Revenue,CCHD,Day Care - North,Private & Voluntary Day Care,Freedom Social Care Recruitment,47.34, 25-Jun-2012
1027,Revenue,CCHD,Home care - Elderly MH - North,Other Small Contracts,Freedom Social Care Recruitment,210.95, 25-Jun-2012
1028,Revenue,CCHD,Elderly MH Day Care North,Private & Voluntary Day Care,Freedom Social Care Recruitment,130.19, 25-Jun-2012
1029,Revenue,CCHD,Home Care - Elderly - South,Other Small Contracts,Freedom Social Care Recruitment,1482.16, 14-Jun-2012
1030,Revenue,CCHD,Home Care - Elderly - North,Other Small Contracts,Freedom Social Care Recruitment,2610.08, 14-Jun-2012
1031,Revenue,CCHD,Day Care - South,Private & Voluntary Day Care,Freedom Social Care Recruitment,89.24, 14-Jun-2012
1032,Revenue,CCHD,Day Care - North,Private & Voluntary Day Care,Freedom Social Care Recruitment,46.56, 14-Jun-2012
1033,Revenue,CCHD,Home care - Elderly MH - North,Other Small Contracts,Freedom Social Care Recruitment,364.72, 14-Jun-2012
1034,Revenue,CCHD,Elderly MH Day Care North,Private & Voluntary Day Care,Freedom Social Care Recruitment,170.72, 14-Jun-2012
1035,Revenue,CCHD,Home Care - Elderly - South,Other Small Contracts,Freedom Social Care Recruitment,1171.76, 14-Jun-2012
1036,Revenue,CCHD,Home Care - Elderly - North,Other Small Contracts,Freedom Social Care Recruitment,3632.43, 14-Jun-2012
1037,Revenue,CCHD,Day Care - South,Private & Voluntary Day Care,Freedom Social Care Recruitment,205.64, 14-Jun-2012
1038,Revenue,CCHD,Day Care - North,Private & Voluntary Day Care,Freedom Social Care Recruitment,46.56, 14-Jun-2012
1039,Revenue,CCHD,Home care - Elderly MH - North,Other Small Contracts,Freedom Social Care Recruitment,337.56, 14-Jun-2012
1040,Revenue,CCHD,Elderly MH Day Care North,Private & Voluntary Day Care,Freedom Social Care Recruitment,170.72, 14-Jun-2012
1041,Revenue,CCHD,Home Care - Elderly - South,Other Small Contracts,Freedom Social Care Recruitment,1098.36, 14-Jun-2012
1042,Revenue,CCHD,Home Care - Elderly - North,Other Small Contracts,Freedom Social Care Recruitment,3645.23, 14-Jun-2012
1043,Revenue,CCHD,Day Care - South,Private & Voluntary Day Care,Freedom Social Care Recruitment,182.36, 14-Jun-2012
1044,Revenue,CCHD,Day Care - North,Private & Voluntary Day Care,Freedom Social Care Recruitment,46.56, 14-Jun-2012
1045,Revenue,CCHD,Home care - Elderly MH - North,Other Small Contracts,Freedom Social Care Recruitment,372.48, 14-Jun-2012
1046,Revenue,CCHD,Elderly MH Day Care North,Private & Voluntary Day Care,Freedom Social Care Recruitment,170.72, 14-Jun-2012
1047,Revenue,CCHD,Home Care - Elderly - South,Other Small Contracts,Freedom Social Care Recruitment,1094.16, 14-Jun-2012
1048,Revenue,CCHD,Home Care - Elderly - North,Other Small Contracts,Freedom Social Care Recruitment,3587.61, 14-Jun-2012
1049,Revenue,CCHD,Day Care - South,Private & Voluntary Day Care,Freedom Social Care Recruitment,155.2, 14-Jun-2012
1050,Revenue,CCHD,Home care - Elderly MH - North,Other Small Contracts,Freedom Social Care Recruitment,197.88, 14-Jun-2012
1051,Revenue,CCHD,Elderly MH Day Care North,Private & Voluntary Day Care,Freedom Social Care Recruitment,170.72, 14-Jun-2012
1052,Revenue,CCHD,Freeways,Residential Homes,Freeways Trust Limited,44155.41, 08-Jun-2012
1053,Revenue,CCHD,Supported Living - PS,Private & Voluntary Home Care,Freeways Trust Limited,1749, 19-Jun-2012
1054,Revenue,CCHD,Supported Living - PS,Private & Voluntary Home Care,Freeways Trust Limited,1969.45, 22-Jun-2012
1055,Revenue,CCHD,Supported Living - PS,Private & Voluntary Home Care,Freeways Trust Limited,1679.83, 20-Jun-2012
1056,Revenue,CCHD,Supported Living - PS,Private & Voluntary Home Care,Freeways Trust Limited,1683.86, 28-Jun-2012
1057,Revenue,CCHD,Bed purchasing - Under 65s PWLD - North,Residential Homes,Freeways Trust Ltd,2791.88, 12-Jun-2012
1058,Revenue,CCHD,Bed purchasing - S28A Under 65 - South,Residential Homes,Freeways Trust Ltd,2876.4, 12-Jun-2012
1059,Revenue,CCHD,Bed purchasing - Under 65s PWLD - North,Residential Homes,Freeways Trust Ltd,2232.52, 12-Jun-2012
1060,Revenue,CCHD,Bed purchasing - Under 65s PWLD - North,Residential Homes,Freeways Trust Ltd,2657.64, 12-Jun-2012
1061,Revenue,CCHD,Bed purchasing - Under 65s PWLD - North,Residential Homes,Freeways Trust Ltd,2232.52, 12-Jun-2012
1062,Revenue,CCHD,Bed purchasing - Under 65s PWLD - North,Residential Homes,Freeways Trust Ltd,2666.28, 12-Jun-2012
1063,Revenue,CCHD,Bed Purchasing - Under 65s PWLD - South,Residential Homes,Freeways Trust Ltd,3259.12, 12-Jun-2012
1064,Revenue,CCHD,Bed purchasing - Elderly PWLD - North,Residential Homes,Freeways Trust Ltd,2219.24, 12-Jun-2012
1065,Revenue,CCHD,Bed Purchasing - Under 65s PWLD - South,Residential Homes,Freeways Trust Ltd,2364.28, 12-Jun-2012
1066,Revenue,CCHD,Bed purchasing - Under 65s PWLD - North,Residential Homes,Freeways Trust Ltd,2666.28, 12-Jun-2012
1067,Revenue,CCHD,Bed purchasing - Elderly PWLD - North,Residential Homes,Freeways Trust Ltd,2492.24, 12-Jun-2012
1068,Revenue,CCHD,Section 117 Placements MH Younger,Residential Homes,Freeways Trust Ltd,3292.4, 12-Jun-2012
1069,Revenue,CCHD,Frenchay Hospital Purchasing,Nursing Homes,Frenchay Park Nursing Home,1212.36, 12-Jun-2012
1070,Revenue,CCHD,Bed Purchasing - Elderly - North,Nursing Homes,Glebe House Nursing Home,1381.88, 12-Jun-2012
1071,Revenue,CCHD,Bed purchasing - Elderly MH - North,Residential Homes,Glebe House Nursing Home,1403.2, 12-Jun-2012
1072,Revenue,CCHD,Bed Purchasing - Elderly - South,Residential Homes,Glebe House Nursing Home,1963.52, 12-Jun-2012
1073,Revenue,CCHD,Bed Purchasing - Elderly - North,Nursing Homes,Glebe House Nursing Home,1328.48, 12-Jun-2012
1074,Revenue,CCHD,Southmead Hospital Purchasing,Nursing Homes,Glebe House Nursing Home,1295.2, 12-Jun-2012
1075,Revenue,CCHD,Bed Purchasing - Elderly - North,Residential Homes,Glebe House Nursing Home,2529.76, 12-Jun-2012
1076,Revenue,CCHD,Bed Purchasing - Elderly - North,Residential Homes,Glebe House Nursing Home,903.49, 12-Jun-2012
1077,Revenue,CCHD,Homelessness Grant,Office Supplies & Equipment,Global Radio Services Ltd,5935.28, 20-Jun-2012
1078,Revenue,CCHD,Bed Purchasing - Under 65s PWLD - South,Residential Homes,Gordena Care Home,2063.36, 12-Jun-2012
1079,Revenue,CCHD,Bed purchasing - Elderly PWLD - South,Residential Homes,Gordena Care Home,4691.96, 12-Jun-2012
1080,Revenue,CCHD,Bed purchasing - Elderly PWLD - South,Residential Homes,Gordena Care Home,2904.2, 12-Jun-2012
1081,Revenue,CCHD,Bed Purchasing - Under 65s PWLD - South,Residential Homes,Gordena Care Home,1894.04, 12-Jun-2012
1082,Revenue,CCHD,Bed purchasing - S28A Under 65 - South,Residential Homes,Gordena Care Limited,4018.24, 12-Jun-2012
1083,Revenue,CCHD,Bed purchasing - Under 65s PWLD - North,Residential Homes,Gordena Care Limited,6987.38, 12-Jun-2012
1084,Revenue,CCHD,Home Care - Elderly - South,Other Small Contracts,Greenbanks Homecare (Western) Limited,2617.38, 27-Jun-2012
1085,Revenue,CCHD,Home Care - Elderly - North,Other Small Contracts,Greenbanks Homecare (Western) Limited,212.22, 27-Jun-2012
1086,Revenue,CCHD,Day Care - South,Private & Voluntary Day Care,Greenbanks Homecare (Western) Limited,224.01, 27-Jun-2012
1087,Revenue,CCHD,Day Care - North,Private & Voluntary Day Care,Greenbanks Homecare (Western) Limited,55.02, 27-Jun-2012
1088,Revenue,CCHD,Carer`s Grant - South,Carers Breaks & Services,Greenbanks Homecare (Western) Limited,102.18, 27-Jun-2012
1089,Revenue,CCHD,Home care - Elderly MH - North,Other Small Contracts,Greenbanks Homecare (Western) Limited,467.67, 27-Jun-2012
1090,Revenue,CCHD,Elderly MH Day Care North,Private & Voluntary Day Care,Greenbanks Homecare (Western) Limited,27.51, 27-Jun-2012
1091,Revenue,CCHD,Home Care - Elderly - South,Other Small Contracts,Greenbanks Homecare (Western) Limited,3429.41, 25-Jun-2012
1092,Revenue,CCHD,Home Care - Elderly - North,Other Small Contracts,Greenbanks Homecare (Western) Limited,172.67, 25-Jun-2012
1093,Revenue,CCHD,Day Care - South,Private & Voluntary Day Care,Greenbanks Homecare (Western) Limited,231.06, 25-Jun-2012
1094,Revenue,CCHD,Day Care - North,Private & Voluntary Day Care,Greenbanks Homecare (Western) Limited,62.8, 25-Jun-2012
1095,Revenue,CCHD,Carer`s Grant - South,Carers Breaks & Services,Greenbanks Homecare (Western) Limited,105.98, 25-Jun-2012
1096,Revenue,CCHD,Home care - Elderly MH - North,Other Small Contracts,Greenbanks Homecare (Western) Limited,337.51, 25-Jun-2012
1097,Revenue,CCHD,Elderly MH Day Care North,Private & Voluntary Day Care,Greenbanks Homecare (Western) Limited,23.55, 25-Jun-2012
1098,Revenue,CCHD,Home Care - Elderly - South,Other Small Contracts,Greenbanks Homecare (Western) Limited,3166.22, 25-Jun-2012
1099,Revenue,CCHD,Home Care - Elderly - North,Other Small Contracts,Greenbanks Homecare (Western) Limited,211.92, 25-Jun-2012
1100,Revenue,CCHD,Day Care - South,Private & Voluntary Day Care,Greenbanks Homecare (Western) Limited,223.27, 25-Jun-2012
1101,Revenue,CCHD,Day Care - North,Private & Voluntary Day Care,Greenbanks Homecare (Western) Limited,62.8, 25-Jun-2012
1102,Revenue,CCHD,Carer`s Grant - South,Carers Breaks & Services,Greenbanks Homecare (Western) Limited,109.9, 25-Jun-2012
1103,Revenue,CCHD,Home care - Elderly MH - North,Other Small Contracts,Greenbanks Homecare (Western) Limited,427.74, 25-Jun-2012
1104,Revenue,CCHD,Elderly MH Day Care North,Private & Voluntary Day Care,Greenbanks Homecare (Western) Limited,31.4, 25-Jun-2012
1105,Revenue,CCHD,Home Care - Elderly - South,Other Small Contracts,Greenbanks Homecare (Western) Limited,2511.26, 27-Jun-2012
1106,Revenue,CCHD,Home Care - Elderly - North,Other Small Contracts,Greenbanks Homecare (Western) Limited,188.64, 27-Jun-2012
1107,Revenue,CCHD,Day Care - South,Private & Voluntary Day Care,Greenbanks Homecare (Western) Limited,231.87, 27-Jun-2012
1108,Revenue,CCHD,Day Care - North,Private & Voluntary Day Care,Greenbanks Homecare (Western) Limited,58.95, 27-Jun-2012
1109,Revenue,CCHD,Carer`s Grant - South,Carers Breaks & Services,Greenbanks Homecare (Western) Limited,110.04, 27-Jun-2012
1110,Revenue,CCHD,Home care - Elderly MH - North,Other Small Contracts,Greenbanks Homecare (Western) Limited,448.02, 27-Jun-2012
1111,Revenue,CCHD,Elderly MH Day Care North,Private & Voluntary Day Care,Greenbanks Homecare (Western) Limited,23.58, 27-Jun-2012
1112,Revenue,CCHD,Home Care - Elderly - South,Other Small Contracts,Greenbanks Homecare (Western) Limited,2680.26, 27-Jun-2012
1113,Revenue,CCHD,Home Care - Elderly - North,Other Small Contracts,Greenbanks Homecare (Western) Limited,196.5, 27-Jun-2012
1114,Revenue,CCHD,Day Care - South,Private & Voluntary Day Care,Greenbanks Homecare (Western) Limited,239.73, 27-Jun-2012
1115,Revenue,CCHD,Day Care - North,Private & Voluntary Day Care,Greenbanks Homecare (Western) Limited,58.95, 27-Jun-2012
1116,Revenue,CCHD,Carer`s Grant - South,Carers Breaks & Services,Greenbanks Homecare (Western) Limited,110.04, 27-Jun-2012
1117,Revenue,CCHD,Home care - Elderly MH - North,Other Small Contracts,Greenbanks Homecare (Western) Limited,455.88, 27-Jun-2012
1118,Revenue,CCHD,Elderly MH Day Care North,Private & Voluntary Day Care,Greenbanks Homecare (Western) Limited,23.58, 27-Jun-2012
1119,Revenue,CCHD,Bed Purchasing - Elderly - North,Residential Homes,Greensleeves,1305.56, 12-Jun-2012
1120,Revenue,CCHD,Frenchay Hospital Purchasing,Residential Homes,Gwendoline House,1328.53, 12-Jun-2012
1121,Revenue,CCHD,Bed Purchasing - Elderly - South,Residential Homes,Gwendoline House,2960.24, 12-Jun-2012
1122,Revenue,CCHD,Bed Purchasing - Elderly - South,Residential Homes,Gwendoline House,1404.57, 12-Jun-2012
1123,Revenue,CCHD,Bed Purchasing - Elderly - South,Residential Homes,Gwendoline House,2217.34, 12-Jun-2012
1124,Revenue,CCHD,Bed Purchasing - Elderly - South,Residential Homes,Gwendoline House,2317.76, 12-Jun-2012
1125,Revenue,CCHD,Bed Purchasing - Elderly MH - South,Residential Homes,Gwendoline House,2526.72, 12-Jun-2012
1126,Revenue,CCHD,Bed Purchasing - Elderly MH - South,Residential Homes,Gwendoline House,947.52, 12-Jun-2012
1127,Revenue,CCHD,Bed Purchasing - Elderly - South,Residential Homes,Gwendoline House,2836.48, 12-Jun-2012
1128,Revenue,CCHD,Bed Purchasing - Elderly - South,Residential Homes,Gwendoline House,2246.24, 12-Jun-2012
1129,Revenue,CCHD,Bed Purchasing - Elderly - South,Residential Homes,Gwendoline House,1929.12, 12-Jun-2012
1130,Revenue,CCHD,Bed Purchasing - Elderly MH - South,Residential Homes,Harefield Hall,1091.48, 12-Jun-2012
1131,Revenue,CCHD,Southmead Hospital Purchasing,Nursing Homes,Hc-One Ltd,1602.76, 12-Jun-2012
1132,Revenue,CCHD,Bed Purchasing - Elderly S117- North,Nursing Homes,Hc-One Ltd,3888, 12-Jun-2012
1133,Revenue,CCHD,Bed purchasing - Elderly MH - North,Nursing Homes,Hc-One Ltd,1266.16, 12-Jun-2012
1134,Revenue,CCHD,Bed purchasing - Elderly MH - North,Nursing Homes,Hc-One Ltd,904.4, 12-Jun-2012
1135,Revenue,CCHD,Bed purchasing - Elderly MH - North,Nursing Homes,Hc-One Ltd,2934.4, 12-Jun-2012
1136,Revenue,CCHD,South Glos Users in Gloucestershire Home,Nursing Homes,Hc-One Ltd,869.6, 12-Jun-2012
1137,Revenue,CCHD,Bed purchasing - Elderly MH - North,Nursing Homes,Hc-One Ltd,2418.32, 12-Jun-2012
1138,Revenue,CCHD,Bed purchasing - Elderly MH - North,Nursing Homes,Hc-One Ltd,2934.4, 12-Jun-2012
1139,Revenue,CCHD,South Glos Users in Gloucestershire Home,Nursing Homes,Hc-One Ltd,869.6, 12-Jun-2012
1140,Revenue,CCHD,Bed purchasing - Elderly MH - North,Nursing Homes,Hc-One Ltd,2313.92, 12-Jun-2012
1141,Revenue,CCHD,Bed Purchasing - Elderly S117- North,Nursing Homes,Hc-One Ltd,5512, 12-Jun-2012
1142,Revenue,CCHD,Frenchay Hospital Purchasing,Residential Homes,Hc-One Ltd,2959.52, 12-Jun-2012
1143,Revenue,CCHD,Southmead Hospital Purchasing,Residential Homes,Heather House,933.6, 12-Jun-2012
1144,Revenue,CCHD,Tenancy Start Up Scheme,Other Supplies & Services,Heron Way Agencies Limited,1200, 27-Jun-2012
1145,Revenue,CCHD,Supported Living - PS,Private & Voluntary Home Care,HFT,3660.6, 20-Jun-2012
1146,Revenue,CCHD,Supported Living - PS,Private & Voluntary Home Care,HFT,3722.08, 28-Jun-2012
1147,Revenue,CCHD,Southmead Hospital Purchasing,Residential Homes,Highgate Studios,1167.44, 12-Jun-2012
1148,Revenue,CCHD,Bed purchasing - Under 65s PWLD - North,Residential Homes,Holmleigh Care Homes Ltd,3962.92, 12-Jun-2012
1149,Revenue,CCHD,Bed Purchasing - Under 65s PWLD - South,Residential Homes,Holmleigh Care Homes Ltd,4980.72, 12-Jun-2012
1150,Revenue,CCHD,Bed purchasing - Under 65s PWLD - North,Residential Homes,Home Farm Trust Ltd  5-6 Brook Office Pa,2784.12, 12-Jun-2012
1151,Revenue,CCHD,Bed Purchasing - Under 65s PWLD - South,Residential Homes,Home Farm Trust Ltd  5-6 Brook Office Pa,2427.64, 12-Jun-2012
1152,Revenue,CCHD,Bed Purchasing - Under 65s PWLD - South,Residential Homes,Home Farm Trust Ltd  5-6 Brook Office Pa,3028.9, 12-Jun-2012
1153,Revenue,CCHD,Bed purchasing - Under 65s PWLD - North,Residential Homes,Home Farm Trust Ltd  5-6 Brook Office Pa,3367.08, 12-Jun-2012
1154,Revenue,CCHD,Bed Purchasing - Under 65s PWLD - South,Residential Homes,Home Farm Trust Ltd  5-6 Brook Office Pa,4491.6, 12-Jun-2012
1155,Revenue,CCHD,Bed purchasing - Under 65s PWLD - North,Residential Homes,Home From Home Care Ltd,9029.56, 12-Jun-2012
1156,Revenue,CCHD,Bed Purchasing - Elderly - North,Nursing Homes,Horfield Care Limited,4605.07, 12-Jun-2012
1157,Revenue,CCHD,Frenchay Hospital Purchasing,Nursing Homes,Horfield Care Limited,3010.84, 12-Jun-2012
1158,Revenue,CCHD,Southmead Hospital Purchasing,Nursing Homes,Horfield Care Limited,7357.88, 12-Jun-2012
1159,Revenue,CCHD,Management & Support costs,Other Supplies & Services,Horizon Network Solutions Ltd,645, 18-Jun-2012
1160,Revenue,CCHD,Home Care - Elderly - North,Private & Voluntary Home Care,Housing 21,35812.8, 08-Jun-2012
1161,Revenue,CCHD,Home Care - Elderly - South,Private & Voluntary Home Care,Housing 21,22092.54, 01-Jun-2012
1162,Revenue,CCHD,Home Care - Elderly - South,Private & Voluntary Home Care,Housing 21,22092.54, 29-Jun-2012
1163,Revenue,CCHD,Supporting People Programme,Grants to Voluntary Bodies,Housing 21,912.61, 01-Jun-2012
1164,Revenue,CCHD,Supporting People Programme,Grants to Voluntary Bodies,Housing 21,912.61, 29-Jun-2012
1165,Revenue,CCHD,Supporting People Programme,Grants to Voluntary Bodies,Housing 21,601.61, 01-Jun-2012
1166,Revenue,CCHD,Supporting People Programme,Grants to Voluntary Bodies,Housing 21,601.61, 29-Jun-2012
1167,Revenue,CCHD,Home Care - Elderly - South,Private & Voluntary Home Care,Housing 21,22605.08, 01-Jun-2012
1168,Revenue,CCHD,Home Care - Elderly - South,Private & Voluntary Home Care,Housing 21,22605.08, 29-Jun-2012
1169,Revenue,CCHD,Home Care - Elderly - South,Private & Voluntary Home Care,Housing 21,1537.62, 06-Jun-2012
1170,Revenue,CCHD,Safeguarding and DOLs,Agency Staff (Admin/Support Staff) Pay,IPE,3412.5, 22-Jun-2012
1171,Revenue,CCHD,NRS Contract,Prop.Serv. General Repairs,IRM Mobility & Healthcare Limited,5670, 01-Jun-2012
1172,Revenue,CCHD,Training - Adult Services,Training Expenses,Jo Williams,527, 08-Jun-2012
1173,Revenue,CCHD,Bed Purchasing - Under 65s PWLD - South,Residential Homes,Julia Simone- Supp. Ind.,9705.41, 12-Jun-2012
1174,Revenue,CCHD,Bed purchasing -S28A  Under 65 - North,Residential Homes,Julia Simone- Supp. Ind.,3411.16, 12-Jun-2012
1175,Revenue,CCHD,Training - Adult Services,Training Expenses,K N Office Supplies,485, 01-Jun-2012
1176,Revenue,CCHD,Community Care Contact Centre,Office Supplies & Equipment,K N Office Supplies,484.92, 18-Jun-2012
1177,Revenue,CCHD,Community Care Contact Centre,Office Supplies & Equipment,K N Office Supplies,538.8, 18-Jun-2012
1178,Revenue,CCHD,Bed Purchasing - Elderly MH - South,Residential Homes,Kenver House Residential Home,1513.84, 12-Jun-2012
1179,Revenue,CCHD,Bed purchasing - Elderly S117 - South,Residential Homes,Kenver House Residential Home,1402.24, 12-Jun-2012
1180,Revenue,CCHD,Frenchay Hospital Purchasing,Residential Homes,Kenver House Residential Home,893.88, 12-Jun-2012
1181,Revenue,CCHD,Bed Purchasing - Elderly MH - South,Residential Homes,Kenver House Residential Home,1354.08, 12-Jun-2012
1182,Revenue,CCHD,Bed Purchasing - Elderly MH - South,Residential Homes,Kenver House Residential Home,1638.16, 12-Jun-2012
1183,Revenue,CCHD,Frenchay Hospital Purchasing,Residential Homes,Kenver House Residential Home,947.36, 12-Jun-2012
1184,Revenue,CCHD,Bed purchasing - Elderly S117 - South,Residential Homes,Kenver House Residential Home,1879.04, 12-Jun-2012
1185,Revenue,CCHD,Bed Purchasing - Elderly MH - South,Residential Homes,Kenver House Residential Home,1273.72, 12-Jun-2012
1186,Revenue,CCHD,Bed Purchasing - Elderly S117- North,Residential Homes,Kenver House Residential Home,1880, 12-Jun-2012
1187,Revenue,CCHD,Bed Purchasing - Elderly MH - South,Residential Homes,Kenver House Residential Home,1638.16, 12-Jun-2012
1188,Revenue,CCHD,Frenchay Hospital Purchasing,Residential Homes,Kenver House Residential Home,1638.16, 12-Jun-2012
1189,Revenue,CCHD,Frenchay Hospital Purchasing,Residential Homes,Kenver House Residential Home,510.9, 12-Jun-2012
1190,Revenue,CCHD,Bed Purchasing - Elderly - South,Residential Homes,Kenver House Residential Home,1603.2, 12-Jun-2012
1191,Revenue,CCHD,Bed Purchasing - Elderly MH - South,Residential Homes,Kenver House Residential Home,1184.36, 12-Jun-2012
1192,Revenue,CCHD,Bed Purchasing - Elderly MH - South,Residential Homes,Kenver House Residential Home,1226.32, 12-Jun-2012
1193,Revenue,CCHD,Frenchay Hospital Purchasing,Residential Homes,Kenver House Residential Home,1410.6, 12-Jun-2012
1194,Revenue,CCHD,Bed Purchasing - Elderly MH - South,Residential Homes,Kenver House Residential Home,1167.88, 12-Jun-2012
1195,Revenue,CCHD,Bed Purchasing - Elderly MH - South,Residential Homes,Kenver House Residential Home,1402.24, 12-Jun-2012
1196,Revenue,CCHD,Bed Purchasing - Elderly - South,Residential Homes,Kenver House Residential Home,1529.44, 12-Jun-2012
1197,Revenue,CCHD,Frenchay Hospital Purchasing,Residential Homes,Kenver House Residential Home,1561.28, 12-Jun-2012
1198,Revenue,CCHD,Bed Purchasing - Elderly MH - South,Residential Homes,Kenver House Residential Home,1454.08, 12-Jun-2012
1199,Revenue,CCHD,Frenchay Hospital Purchasing,Residential Homes,Kenver House Residential Home,1522, 12-Jun-2012
1200,Revenue,CCHD,Supporting People Programme,Grants to Voluntary Bodies,Keyring Living Support Networks,2847.11, 01-Jun-2012
1201,Revenue,CCHD,Supporting People Programme,Grants to Voluntary Bodies,Keyring Living Support Networks,2847.11, 29-Jun-2012
1202,Revenue,CCHD,Supporting People Programme,Grants to Voluntary Bodies,Kingswood Young Homeless Project,17125, 01-Jun-2012
1203,Revenue,CCHD,Supporting People Programme,Grants to Voluntary Bodies,Kingswood Young Homeless Project,17125, 29-Jun-2012
1204,Revenue,CCHD,Bed purchasing - Under 65s PWLD - North,Residential Homes,Kisimul Group,11255.24, 12-Jun-2012
1205,Revenue,CCHD,Supporting People Programme,Grants to Voluntary Bodies,Knightstone Housing Association Limited,1433.36, 29-Jun-2012
1206,Revenue,CCHD,Supporting People Programme,Grants to Voluntary Bodies,Knightstone Housing Association Limited,28936.03, 01-Jun-2012
1207,Revenue,CCHD,Supporting People Programme,Grants to Voluntary Bodies,Knightstone Housing Association Limited,28936.03, 29-Jun-2012
1208,Revenue,CCHD,Supporting People Programme,Grants to Voluntary Bodies,Knightstone Housing Association Limited,2173.77, 01-Jun-2012
1209,Revenue,CCHD,Supporting People Programme,Grants to Voluntary Bodies,Knightstone Housing Association Limited,2173.77, 29-Jun-2012
1210,Revenue,CCHD,Supporting People Programme,Grants to Voluntary Bodies,Knightstone Housing Association Limited,4847.07, 01-Jun-2012
1211,Revenue,CCHD,Supporting People Programme,Grants to Voluntary Bodies,Knightstone Housing Association Limited,4847.07, 29-Jun-2012
1212,Revenue,CCHD,Supporting People Programme,Grants to Voluntary Bodies,Knightstone Housing Association Limited,1866, 01-Jun-2012
1213,Revenue,CCHD,Supporting People Programme,Grants to Voluntary Bodies,Knightstone Housing Association Limited,1866, 29-Jun-2012
1214,Revenue,CCHD,Home Care - Elderly - South,Other Small Contracts,Kumari Care Limited,4313.92, 18-Jun-2012
1215,Revenue,CCHD,Home Care - Elderly - North,Other Small Contracts,Kumari Care Limited,829.55, 18-Jun-2012
1216,Revenue,CCHD,Day Care - South,Private & Voluntary Day Care,Kumari Care Limited,209.69, 18-Jun-2012
1217,Revenue,CCHD,Under 65s -MH  Home Care Purch,Other Small Contracts,Kumari Care Limited,148.78, 18-Jun-2012
1218,Revenue,CCHD,Home care - Elderly MH - North,Other Small Contracts,Kumari Care Limited,38.16, 18-Jun-2012
1219,Revenue,CCHD,PWLD Home Care - Under 65 - KH,Private & Voluntary Home Care,Kumari Care Limited,308.81, 18-Jun-2012
1220,Revenue,CCHD,Home Care - Elderly - South,Other Small Contracts,Kumari Care Limited,4427.38, 18-Jun-2012
1221,Revenue,CCHD,Home Care - Elderly - North,Other Small Contracts,Kumari Care Limited,826.34, 18-Jun-2012
1222,Revenue,CCHD,Day Care - South,Private & Voluntary Day Care,Kumari Care Limited,221.56, 18-Jun-2012
1223,Revenue,CCHD,Under 65s -MH  Home Care Purch,Other Small Contracts,Kumari Care Limited,148.98, 18-Jun-2012
1224,Revenue,CCHD,Home care - Elderly MH - North,Other Small Contracts,Kumari Care Limited,38.2, 18-Jun-2012
1225,Revenue,CCHD,PWLD Home Care - Under 65 - KH,Private & Voluntary Home Care,Kumari Care Limited,258.82, 18-Jun-2012
1226,Revenue,CCHD,Home Care - Elderly - South,Other Small Contracts,Kumari Care Limited,4350.98, 18-Jun-2012
1227,Revenue,CCHD,Home Care - Elderly - North,Other Small Contracts,Kumari Care Limited,834.63, 18-Jun-2012
1228,Revenue,CCHD,Day Care - South,Private & Voluntary Day Care,Kumari Care Limited,290.32, 18-Jun-2012
1229,Revenue,CCHD,Under 65s -MH  Home Care Purch,Other Small Contracts,Kumari Care Limited,148.98, 18-Jun-2012
1230,Revenue,CCHD,Home care - Elderly MH - North,Other Small Contracts,Kumari Care Limited,38.2, 18-Jun-2012
1231,Revenue,CCHD,PWLD Home Care - Under 65 - KH,Private & Voluntary Home Care,Kumari Care Limited,301.78, 18-Jun-2012
1232,Revenue,CCHD,Bed purchasing - Phys Dis - North,Nursing Homes,Ladymead Care Home,845.76, 12-Jun-2012
1233,Revenue,CCHD,Bed purchasing - Phys Dis - North,Nursing Homes,Leonard Cheshire  National Account Centr,2631.76, 12-Jun-2012
1234,Revenue,CCHD,Bed purchasing - Phys Dis - North,Residential Homes,Leonard Cheshire  National Account Centr,2330.6, 12-Jun-2012
1235,Revenue,CCHD,Bed Purchasing - Under 65s PWLD - South,Residential Homes,Leonard Cheshire  National Account Centr,2932.12, 12-Jun-2012
1236,Revenue,CCHD,Bed Purchasing - Elderly - North,Nursing Homes,Leonard Cheshire  National Account Centr,3436.6, 12-Jun-2012
1237,Revenue,CCHD,Bed purchasing - Phys Dis - North,Nursing Homes,Leonard Cheshire  National Account Centr,2736.6, 12-Jun-2012
1238,Revenue,CCHD,Bed Purchasing - Elderly - North,Residential Homes,Leonard Cheshire  National Account Centr,3122.24, 12-Jun-2012
1239,Revenue,CCHD,Bed Purchasing - Elderly - South,Residential Homes,Leonard Cheshire  National Account Centr,4398.92, 12-Jun-2012
1240,Revenue,CCHD,Bed purchasing - Phys Dis - North,Nursing Homes,Leonard Cheshire  National Account Centr,5624.88, 12-Jun-2012
1241,Revenue,CCHD,South Glos Users in B&NES Homes,Nursing Homes,Leonard Cheshire  National Account Centr,869.6, 12-Jun-2012
1242,Revenue,CCHD,Bed purchasing - Phys Dis - North,Nursing Homes,Leonard Cheshire  National Account Centr,3183.12, 12-Jun-2012
1243,Revenue,CCHD,Bed purchasing - Phys Dis - North,Residential Homes,Leonard Cheshire  National Account Centr,5725.44, 12-Jun-2012
1244,Revenue,CCHD,Bed Purchasing - Elderly - North,Nursing Homes,Leonard Cheshire  National Account Centr,3521.32, 12-Jun-2012
1245,Revenue,CCHD,Bed purchasing - Phys Dis - South,Nursing Homes,Leonard Cheshire  National Account Centr,6056.64, 12-Jun-2012
1246,Revenue,CCHD,Bed purchasing - Phys Dis - North,Nursing Homes,Leonard Cheshire  National Account Centr,5468.84, 12-Jun-2012
1247,Revenue,CCHD,Bed Purchasing - Elderly - South,Nursing Homes,Leonard Cheshire  National Account Centr,2841.24, 12-Jun-2012
1248,Revenue,CCHD,Southmead Hospital Purchasing,Nursing Homes,Leonard Cheshire  National Account Centr,2977.88, 12-Jun-2012
1249,Revenue,CCHD,South Glos Users in all other LA Homes,Nursing Homes,Leonard Cheshire  National Account Centr,598.4, 12-Jun-2012
1250,Revenue,CCHD,Bed purchasing - Phys Dis - North,Nursing Homes,Leonard Cheshire  National Account Centr,6557.04, 12-Jun-2012
1251,Revenue,CCHD,South Glos Users in B&NES Homes,Nursing Homes,Leonard Cheshire  National Account Centr,869.6, 12-Jun-2012
1252,Revenue,CCHD,Frenchay Hospital Purchasing,Residential Homes,Leonard Cheshire  National Account Centr,3738.32, 12-Jun-2012
1253,Revenue,CCHD,Bed Purchasing - Elderly - South,Nursing Homes,Leonard Cheshire  National Account Centr,4327.48, 12-Jun-2012
1254,Revenue,CCHD,Bed Purchasing - LD S28A- Over 65- South,Residential Homes,Leonard Cheshire  National Account Centr,2879.08, 12-Jun-2012
1255,Revenue,CCHD,Supported Living - KD,Private & Voluntary Home Care,Lifeways Community Care (Gloucester) Ltd,8792, 28-Jun-2012
1256,Revenue,CCHD,Bed purchasing - Under 65s PWLD - North,Residential Homes,Littlecroft Residential Homes  Longcroft,13048.88, 12-Jun-2012
1257,Revenue,CCHD,Supported Living - PS,Private & Voluntary Home Care,Lloyds TSB Commercial Finance Limited,5947.24, 11-Jun-2012
1258,Revenue,CCHD,Supported Living - PS,Private & Voluntary Home Care,Lloyds TSB Commercial Finance Limited,5443.13, 11-Jun-2012
1259,Revenue,CCHD,Supported Living - PS,Private & Voluntary Home Care,Lloyds TSB Commercial Finance Limited,5599.76, 25-Jun-2012
1260,Revenue,CCHD,Supported Living - PS,Private & Voluntary Home Care,Lloyds TSB Commercial Finance Limited,3803.72, 11-Jun-2012
1261,Revenue,CCHD,Supported Living - PS,Private & Voluntary Home Care,Lloyds TSB Commercial Finance Limited,3883.06, 25-Jun-2012
1262,Revenue,CCHD,Supported Living - PS,Private & Voluntary Home Care,Lloyds TSB Commercial Finance Limited,3792.84, 11-Jun-2012
1263,Revenue,CCHD,Supported Living - PS,Private & Voluntary Home Care,Lloyds TSB Commercial Finance Limited,3833.86, 15-Jun-2012
1264,Revenue,CCHD,Supported Living - KD,Private & Voluntary Home Care,Lloyds TSB Commercial Finance Limited,3679.79, 26-Jun-2012
1265,Revenue,CCHD,Supported Living - PS,Private & Voluntary Home Care,Lloyds TSB Commercial Finance Limited,6163.34, 15-Jun-2012
1266,Revenue,CCHD,Supported Living - KD,Private & Voluntary Home Care,Lloyds TSB Commercial Finance Limited,3777.19, 06-Jun-2012
1267,Revenue,CCHD,Supported Living - PS,Private & Voluntary Home Care,Lloyds TSB Commercial Finance Limited,3960.76, 11-Jun-2012
1268,Revenue,CCHD,Supported Living - PS,Private & Voluntary Home Care,Lloyds TSB Commercial Finance Limited,4151.66, 15-Jun-2012
1269,Revenue,CCHD,Supported Living - PS,Private & Voluntary Home Care,Lloyds TSB Commercial Finance Limited,3588.58, 11-Jun-2012
1270,Revenue,CCHD,Supported Living - PS,Private & Voluntary Home Care,Lloyds TSB Commercial Finance Limited,3666.7, 18-Jun-2012
1271,Revenue,CCHD,Supported Living - PS,Private & Voluntary Home Care,Lloyds TSB Commercial Finance Limited,3622.25, 11-Jun-2012
1272,Revenue,CCHD,Supported Living - PS,Private & Voluntary Home Care,Lloyds TSB Commercial Finance Limited,3707.23, 11-Jun-2012
1273,Revenue,CCHD,Supported Living - PS,Private & Voluntary Home Care,Lloyds TSB Commercial Finance Limited,3784.9, 15-Jun-2012
1274,Revenue,CCHD,Supported Living - PS,Private & Voluntary Home Care,Lloyds TSB Commercial Finance Limited,3465.15, 11-Jun-2012
1275,Revenue,CCHD,Supported Living - PS,Private & Voluntary Home Care,Lloyds TSB Commercial Finance Limited,3478.72, 11-Jun-2012
1276,Revenue,CCHD,Supported Living - PS,Private & Voluntary Home Care,Lloyds TSB Commercial Finance Limited,3647.62, 25-Jun-2012
1277,Revenue,CCHD,Home Care - Elderly - South,Other Small Contracts,Lloyds TSB Commercial Finance Limited,735.3, 14-Jun-2012
1278,Revenue,CCHD,Home Care - Elderly - North,Other Small Contracts,Lloyds TSB Commercial Finance Limited,4071.24, 14-Jun-2012
1279,Revenue,CCHD,Day Care - South,Private & Voluntary Day Care,Lloyds TSB Commercial Finance Limited,197.37, 14-Jun-2012
1280,Revenue,CCHD,Day Care - North,Private & Voluntary Day Care,Lloyds TSB Commercial Finance Limited,305.73, 14-Jun-2012
1281,Revenue,CCHD,Home care - Elderly MH - North,Other Small Contracts,Lloyds TSB Commercial Finance Limited,677.25, 14-Jun-2012
1282,Revenue,CCHD,Home Care - Elderly - South,Other Small Contracts,Lloyds TSB Commercial Finance Limited,765.14, 14-Jun-2012
1283,Revenue,CCHD,Home Care - Elderly - North,Other Small Contracts,Lloyds TSB Commercial Finance Limited,4309.13, 14-Jun-2012
1284,Revenue,CCHD,Day Care - South,Private & Voluntary Day Care,Lloyds TSB Commercial Finance Limited,189.39, 14-Jun-2012
1285,Revenue,CCHD,Day Care - North,Private & Voluntary Day Care,Lloyds TSB Commercial Finance Limited,415.6, 14-Jun-2012
1286,Revenue,CCHD,Home care - Elderly MH - North,Other Small Contracts,Lloyds TSB Commercial Finance Limited,656.93, 14-Jun-2012
1287,Revenue,CCHD,Supported Living - KD,Private & Voluntary Home Care,Lloyds TSB Commercial Finance Limited,3538.41, 26-Jun-2012
1288,Revenue,CCHD,Supported Living - PS,Private & Voluntary Home Care,Lloyds TSB Commercial Finance Limited,3367.86, 11-Jun-2012
1289,Revenue,CCHD,Supported Living - PS,Private & Voluntary Home Care,Lloyds TSB Commercial Finance Limited,3582.64, 18-Jun-2012
1290,Revenue,CCHD,Supported Living - PS,Private & Voluntary Home Care,Lloyds TSB Commercial Finance Limited,508.64, 11-Jun-2012
1291,Revenue,CCHD,Supported Living - PS,Private & Voluntary Home Care,Lloyds TSB Commercial Finance Limited,646.38, 26-Jun-2012
1292,Revenue,CCHD,Home Care - Elderly - South,Other Small Contracts,Lloyds TSB Commercial Finance Limited,789.48, 14-Jun-2012
1293,Revenue,CCHD,Home Care - Elderly - North,Other Small Contracts,Lloyds TSB Commercial Finance Limited,4318.92, 14-Jun-2012
1294,Revenue,CCHD,Day Care - South,Private & Voluntary Day Care,Lloyds TSB Commercial Finance Limited,201.24, 14-Jun-2012
1295,Revenue,CCHD,Day Care - North,Private & Voluntary Day Care,Lloyds TSB Commercial Finance Limited,487.62, 14-Jun-2012
1296,Revenue,CCHD,Home care - Elderly MH - North,Other Small Contracts,Lloyds TSB Commercial Finance Limited,696.6, 14-Jun-2012
1297,Revenue,CCHD,Home Care - Elderly - South,Other Small Contracts,Lloyds TSB Commercial Finance Limited,785.61, 14-Jun-2012
1298,Revenue,CCHD,Home Care - Elderly - North,Other Small Contracts,Lloyds TSB Commercial Finance Limited,4682.7, 14-Jun-2012
1299,Revenue,CCHD,Day Care - South,Private & Voluntary Day Care,Lloyds TSB Commercial Finance Limited,166.41, 14-Jun-2012
1300,Revenue,CCHD,Day Care - North,Private & Voluntary Day Care,Lloyds TSB Commercial Finance Limited,503.1, 14-Jun-2012
1301,Revenue,CCHD,Home care - Elderly MH - North,Other Small Contracts,Lloyds TSB Commercial Finance Limited,642.42, 14-Jun-2012
1302,Revenue,CCHD,Bed Purchasing - Under 65s PWLD - South,Residential Homes,Longton Court,9508.88, 12-Jun-2012
1303,Revenue,CCHD,Social Lettings Agency,Other Supplies & Services,Individual,565, 08-Jun-2012
1304,Revenue,CCHD,Southmead Hospital Purchasing,Nursing Homes,Majestic 3 Limited,1002.1, 12-Jun-2012
1305,Revenue,CCHD,Frenchay Hospital Purchasing,Residential Homes,Manor Cottage,1239.2, 12-Jun-2012
1306,Revenue,CCHD,Bed Purchasing - Elderly - South,Residential Homes,Manor Cottage,1424.84, 12-Jun-2012
1307,Revenue,CCHD,Bed Purchasing - Elderly - South,Residential Homes,Manor Cottage,1298.84, 12-Jun-2012
1308,Revenue,CCHD,Bed Purchasing - Elderly - North,Residential Homes,Manton Hall Residential Home,1484.32, 12-Jun-2012
1309,Revenue,CCHD,Supporting People Programme,Grants to Voluntary Bodies,Maples Community Housing Limited,2652.15, 01-Jun-2012
1310,Revenue,CCHD,Supporting People Programme,Grants to Voluntary Bodies,Maples Community Housing Limited,2652.15, 29-Jun-2012
1311,Revenue,CCHD,Bed Purchasing - Under 65s PWLD - South,Residential Homes,Marsden Healthcare Limited,894.48, 08-Jun-2012
1312,Revenue,CCHD,Bed purchasing - Elderly PWLD - South,Residential Homes,Marsden Healthcare Limited,8737.08, 08-Jun-2012
1313,Revenue,CCHD,Bed purchasing - Elderly PWLD - South,Residential Homes,Marsden Healthcare Limited,4114.55, 08-Jun-2012
1314,Revenue,CCHD,Home Care - Elderly - South,Private & Voluntary Home Care,Mears Care,47442.58, 28-Jun-2012
1315,Revenue,CCHD,Home Care - Elderly - South,Other Small Contracts,Mears Care,549, 07-Jun-2012
1316,Revenue,CCHD,Home Care - Elderly - North,Other Small Contracts,Mears Care,6474.18, 07-Jun-2012
1317,Revenue,CCHD,Day Care - South,Private & Voluntary Day Care,Mears Care,115.68, 07-Jun-2012
1318,Revenue,CCHD,Day Care - North,Private & Voluntary Day Care,Mears Care,269.4, 07-Jun-2012
1319,Revenue,CCHD,Under 65s -MH  Home Care Purch,Other Small Contracts,Mears Care,109.8, 07-Jun-2012
1320,Revenue,CCHD,Home care - Elderly MH - North,Other Small Contracts,Mears Care,640.5, 07-Jun-2012
1321,Revenue,CCHD,Elderly MH Day Care North,Private & Voluntary Day Care,Mears Care,28.8, 07-Jun-2012
1322,Revenue,CCHD,Home Care - Elderly - South,Other Small Contracts,Mears Care,494.1, 07-Jun-2012
1323,Revenue,CCHD,Home Care - Elderly - North,Other Small Contracts,Mears Care,6408.66, 07-Jun-2012
1324,Revenue,CCHD,Day Care - South,Private & Voluntary Day Care,Mears Care,93.72, 07-Jun-2012
1325,Revenue,CCHD,Day Care - North,Private & Voluntary Day Care,Mears Care,247.44, 07-Jun-2012
1326,Revenue,CCHD,Under 65s -MH  Home Care Purch,Other Small Contracts,Mears Care,109.8, 07-Jun-2012
1327,Revenue,CCHD,Home care - Elderly MH - North,Other Small Contracts,Mears Care,651.48, 07-Jun-2012
1328,Revenue,CCHD,Elderly MH Day Care North,Private & Voluntary Day Care,Mears Care,28.8, 07-Jun-2012
1329,Revenue,CCHD,Home Care - Elderly LD - KH,Private & Voluntary Home Care,Mears Care,43.92, 07-Jun-2012
1330,Revenue,CCHD,Home Care - Elderly - South,Other Small Contracts,Mears Care,453.84, 07-Jun-2012
1331,Revenue,CCHD,Home Care - Elderly - North,Other Small Contracts,Mears Care,6884.46, 07-Jun-2012
1332,Revenue,CCHD,Day Care - South,Private & Voluntary Day Care,Mears Care,115.68, 07-Jun-2012
1333,Revenue,CCHD,Day Care - North,Private & Voluntary Day Care,Mears Care,269.4, 07-Jun-2012
1334,Revenue,CCHD,Under 65s -MH  Home Care Purch,Other Small Contracts,Mears Care,109.8, 07-Jun-2012
1335,Revenue,CCHD,Home care - Elderly MH - North,Other Small Contracts,Mears Care,699.06, 07-Jun-2012
1336,Revenue,CCHD,Elderly MH Day Care North,Private & Voluntary Day Care,Mears Care,28.8, 07-Jun-2012
1337,Revenue,CCHD,Home Care - Elderly LD - KH,Private & Voluntary Home Care,Mears Care,51.24, 07-Jun-2012
1338,Revenue,CCHD,Home Care - Elderly - South,Other Small Contracts,Mears Care,450.18, 14-Jun-2012
1339,Revenue,CCHD,Home Care - Elderly - North,Other Small Contracts,Mears Care,7265.1, 14-Jun-2012
1340,Revenue,CCHD,Day Care - South,Private & Voluntary Day Care,Mears Care,90, 14-Jun-2012
1341,Revenue,CCHD,Day Care - North,Private & Voluntary Day Care,Mears Care,269.4, 14-Jun-2012
1342,Revenue,CCHD,Under 65s -MH  Home Care Purch,Other Small Contracts,Mears Care,109.8, 14-Jun-2012
1343,Revenue,CCHD,Home care - Elderly MH - North,Other Small Contracts,Mears Care,666.12, 14-Jun-2012
1344,Revenue,CCHD,Elderly MH Day Care North,Private & Voluntary Day Care,Mears Care,28.8, 14-Jun-2012
1345,Revenue,CCHD,Home Care - Elderly LD - KH,Private & Voluntary Home Care,Mears Care,51.24, 14-Jun-2012
1346,Revenue,CCHD,Home Care - Elderly - South,Other Small Contracts,Mears Care,508.74, 20-Jun-2012
1347,Revenue,CCHD,Home Care - Elderly - North,Other Small Contracts,Mears Care,7133.34, 20-Jun-2012
1348,Revenue,CCHD,Day Care - South,Private & Voluntary Day Care,Mears Care,86.4, 20-Jun-2012
1349,Revenue,CCHD,Day Care - North,Private & Voluntary Day Care,Mears Care,240.12, 20-Jun-2012
1350,Revenue,CCHD,Under 65s -MH  Home Care Purch,Other Small Contracts,Mears Care,109.8, 20-Jun-2012
1351,Revenue,CCHD,Home care - Elderly MH - North,Other Small Contracts,Mears Care,644.16, 20-Jun-2012
1352,Revenue,CCHD,Elderly MH Day Care North,Private & Voluntary Day Care,Mears Care,29.04, 20-Jun-2012
1353,Revenue,CCHD,Home Care - Elderly LD - KH,Private & Voluntary Home Care,Mears Care,51.24, 20-Jun-2012
1354,Revenue,CCHD,Home Care - Elderly - South,Other Small Contracts,Mears Care,464.82, 20-Jun-2012
1355,Revenue,CCHD,Home Care - Elderly - North,Other Small Contracts,Mears Care,7188.24, 20-Jun-2012
1356,Revenue,CCHD,Day Care - South,Private & Voluntary Day Care,Mears Care,91.5, 20-Jun-2012
1357,Revenue,CCHD,Day Care - North,Private & Voluntary Day Care,Mears Care,311.1, 20-Jun-2012
1358,Revenue,CCHD,Under 65s -MH  Home Care Purch,Other Small Contracts,Mears Care,109.8, 20-Jun-2012
1359,Revenue,CCHD,Home care - Elderly MH - North,Other Small Contracts,Mears Care,666.12, 20-Jun-2012
1360,Revenue,CCHD,Elderly MH Day Care North,Private & Voluntary Day Care,Mears Care,29.28, 20-Jun-2012
1361,Revenue,CCHD,Home Care - Elderly LD - KH,Private & Voluntary Home Care,Mears Care,51.24, 20-Jun-2012
1362,Revenue,CCHD,Home Care - Elderly - South,Other Small Contracts,Mears Care,527.04, 20-Jun-2012
1363,Revenue,CCHD,Home Care - Elderly - North,Other Small Contracts,Mears Care,7177.26, 20-Jun-2012
1364,Revenue,CCHD,Day Care - South,Private & Voluntary Day Care,Mears Care,91.5, 20-Jun-2012
1365,Revenue,CCHD,Day Care - North,Private & Voluntary Day Care,Mears Care,307.44, 20-Jun-2012
1366,Revenue,CCHD,Under 65s -MH  Home Care Purch,Other Small Contracts,Mears Care,109.8, 20-Jun-2012
1367,Revenue,CCHD,Home care - Elderly MH - North,Other Small Contracts,Mears Care,651.48, 20-Jun-2012
1368,Revenue,CCHD,Elderly MH Day Care North,Private & Voluntary Day Care,Mears Care,29.28, 20-Jun-2012
1369,Revenue,CCHD,Home Care - Elderly LD - KH,Private & Voluntary Home Care,Mears Care,51.24, 20-Jun-2012
1370,Revenue,CCHD,Home Care - Elderly - North,Other Small Contracts,Medacs Home Care,998.99, 27-Jun-2012
1371,Revenue,CCHD,Home care - Elderly MH - North,Other Small Contracts,Medacs Home Care,89.96, 27-Jun-2012
1372,Revenue,CCHD,Home Care - Elderly - South,Other Small Contracts,Medacs Home Care,13.84, 14-Jun-2012
1373,Revenue,CCHD,Home Care - Elderly - North,Other Small Contracts,Medacs Home Care,1130.83, 14-Jun-2012
1374,Revenue,CCHD,Home care - Elderly MH - North,Other Small Contracts,Medacs Home Care,121.1, 14-Jun-2012
1375,Revenue,CCHD,Home Care - Elderly - North,Other Small Contracts,Medacs Home Care,1061.59, 14-Jun-2012
1376,Revenue,CCHD,Home care - Elderly MH - North,Other Small Contracts,Medacs Home Care,114.19, 14-Jun-2012
1377,Revenue,CCHD,Home Care - Elderly - South,Other Small Contracts,Medacs Home Care,13.82, 14-Jun-2012
1378,Revenue,CCHD,Home Care - Elderly - North,Other Small Contracts,Medacs Home Care,1123.34, 14-Jun-2012
1379,Revenue,CCHD,Home care - Elderly MH - North,Other Small Contracts,Medacs Home Care,117.47, 14-Jun-2012
1380,Revenue,CCHD,Elderly MH Day Care North,Private & Voluntary Day Care,Medacs Home Care,41.49, 14-Jun-2012
1381,Revenue,CCHD,Home Care - Elderly - South,Other Small Contracts,Medico Nursing & Homecare Ltd,1932.76, 27-Jun-2012
1382,Revenue,CCHD,Home Care - Elderly - North,Other Small Contracts,Medico Nursing & Homecare Ltd,10626.86, 27-Jun-2012
1383,Revenue,CCHD,Day Care - South,Private & Voluntary Day Care,Medico Nursing & Homecare Ltd,33.76, 27-Jun-2012
1384,Revenue,CCHD,Day Care - North,Private & Voluntary Day Care,Medico Nursing & Homecare Ltd,666.13, 27-Jun-2012
1385,Revenue,CCHD,Home care - Elderly MH - North,Other Small Contracts,Medico Nursing & Homecare Ltd,666.76, 27-Jun-2012
1386,Revenue,CCHD,Home Care - LD Under 65 - South,Private & Voluntary Home Care,Medico Nursing & Homecare Ltd,236.32, 27-Jun-2012
1387,Revenue,CCHD,PWLD Home Care - Under 65 - KH,Private & Voluntary Home Care,Medico Nursing & Homecare Ltd,742.72, 27-Jun-2012
1388,Revenue,CCHD,Home Care - Elderly - South,Other Small Contracts,Medico Nursing & Homecare Ltd,1920.1, 19-Jun-2012
1389,Revenue,CCHD,Home Care - Elderly - North,Other Small Contracts,Medico Nursing & Homecare Ltd,10267.18, 19-Jun-2012
1390,Revenue,CCHD,Day Care - South,Private & Voluntary Day Care,Medico Nursing & Homecare Ltd,67.52, 19-Jun-2012
1391,Revenue,CCHD,Day Care - North,Private & Voluntary Day Care,Medico Nursing & Homecare Ltd,706.23, 19-Jun-2012
1392,Revenue,CCHD,Home care - Elderly MH - North,Other Small Contracts,Medico Nursing & Homecare Ltd,687.86, 19-Jun-2012
1393,Revenue,CCHD,Elderly MH Day Care North,Private & Voluntary Day Care,Medico Nursing & Homecare Ltd,118.16, 19-Jun-2012
1394,Revenue,CCHD,Home Care - LD Under 65 - South,Private & Voluntary Home Care,Medico Nursing & Homecare Ltd,265.86, 19-Jun-2012
1395,Revenue,CCHD,PWLD Home Care - Under 65 - KH,Private & Voluntary Home Care,Medico Nursing & Homecare Ltd,620.34, 19-Jun-2012
1396,Revenue,CCHD,Home Care - Elderly - South,Other Small Contracts,Medico Nursing & Homecare Ltd,1970.73, 19-Jun-2012
1397,Revenue,CCHD,Home Care - Elderly - North,Other Small Contracts,Medico Nursing & Homecare Ltd,10376.12, 19-Jun-2012
1398,Revenue,CCHD,Day Care - South,Private & Voluntary Day Care,Medico Nursing & Homecare Ltd,118.16, 19-Jun-2012
1399,Revenue,CCHD,Day Care - North,Private & Voluntary Day Care,Medico Nursing & Homecare Ltd,685.97, 19-Jun-2012
1400,Revenue,CCHD,Home care - Elderly MH - North,Other Small Contracts,Medico Nursing & Homecare Ltd,687.86, 19-Jun-2012
1401,Revenue,CCHD,Elderly MH Day Care North,Private & Voluntary Day Care,Medico Nursing & Homecare Ltd,118.16, 19-Jun-2012
1402,Revenue,CCHD,Home Care - LD Under 65 - South,Private & Voluntary Home Care,Medico Nursing & Homecare Ltd,265.86, 19-Jun-2012
1403,Revenue,CCHD,PWLD Home Care - Under 65 - KH,Private & Voluntary Home Care,Medico Nursing & Homecare Ltd,641.44, 19-Jun-2012
1404,Revenue,CCHD,Home Care - Elderly - South,Other Small Contracts,Medico Nursing & Homecare Ltd,1882.12, 27-Jun-2012
1405,Revenue,CCHD,Home Care - Elderly - North,Other Small Contracts,Medico Nursing & Homecare Ltd,10453.48, 27-Jun-2012
1406,Revenue,CCHD,Day Care - South,Private & Voluntary Day Care,Medico Nursing & Homecare Ltd,63.3, 27-Jun-2012
1407,Revenue,CCHD,Day Care - North,Private & Voluntary Day Care,Medico Nursing & Homecare Ltd,687.86, 27-Jun-2012
1408,Revenue,CCHD,Home care - Elderly MH - North,Other Small Contracts,Medico Nursing & Homecare Ltd,687.86, 27-Jun-2012
1409,Revenue,CCHD,Elderly MH Day Care North,Private & Voluntary Day Care,Medico Nursing & Homecare Ltd,122.38, 27-Jun-2012
1410,Revenue,CCHD,Home Care - LD Under 65 - South,Private & Voluntary Home Care,Medico Nursing & Homecare Ltd,257.42, 27-Jun-2012
1411,Revenue,CCHD,PWLD Home Care - Under 65 - KH,Private & Voluntary Home Care,Medico Nursing & Homecare Ltd,738.5, 27-Jun-2012
1412,Revenue,CCHD,Home Care - Elderly - South,Other Small Contracts,Medico Nursing & Homecare Ltd,1848.36, 27-Jun-2012
1413,Revenue,CCHD,Home Care - Elderly - North,Other Small Contracts,Medico Nursing & Homecare Ltd,10359.61, 27-Jun-2012
1414,Revenue,CCHD,Day Care - South,Private & Voluntary Day Care,Medico Nursing & Homecare Ltd,101.28, 27-Jun-2012
1415,Revenue,CCHD,Day Care - North,Private & Voluntary Day Care,Medico Nursing & Homecare Ltd,708.96, 27-Jun-2012
1416,Revenue,CCHD,Home care - Elderly MH - North,Other Small Contracts,Medico Nursing & Homecare Ltd,679.42, 27-Jun-2012
1417,Revenue,CCHD,Elderly MH Day Care North,Private & Voluntary Day Care,Medico Nursing & Homecare Ltd,118.16, 27-Jun-2012
1418,Revenue,CCHD,Home Care - LD Under 65 - South,Private & Voluntary Home Care,Medico Nursing & Homecare Ltd,278.52, 27-Jun-2012
1419,Revenue,CCHD,PWLD Home Care - Under 65 - KH,Private & Voluntary Home Care,Medico Nursing & Homecare Ltd,725.84, 27-Jun-2012
1420,Revenue,CCHD,Bed Purchasing - Under 65s PWLD - South,Residential Homes,Mencap,2198.88, 12-Jun-2012
1421,Revenue,CCHD,Supporting People Programme,Grants to Voluntary Bodies,Merlin Housing Society,1016.8, 01-Jun-2012
1422,Revenue,CCHD,Supporting People Programme,Grants to Voluntary Bodies,Merlin Housing Society,1016.8, 29-Jun-2012
1423,Revenue,CCHD,Supporting People Programme,Grants to Voluntary Bodies,Merlin Housing Society,15252, 01-Jun-2012
1424,Revenue,CCHD,Supporting People Programme,Grants to Voluntary Bodies,Merlin Housing Society,15252, 29-Jun-2012
1425,Revenue,CCHD,Supporting People Programme,Grants to Voluntary Bodies,Merlin Housing Society,2399.99, 01-Jun-2012
1426,Revenue,CCHD,Supporting People Programme,Grants to Voluntary Bodies,Merlin Housing Society,2399.99, 29-Jun-2012
1427,Revenue,CCHD,Supporting People Programme,Grants to Voluntary Bodies,Merlin Housing Society,50840, 01-Jun-2012
1428,Revenue,CCHD,Supporting People Programme,Grants to Voluntary Bodies,Merlin Housing Society,50840, 29-Jun-2012
1429,Revenue,CCHD,Frenchay Hospital Purchasing,Residential Homes,Milburn Finance,2071.2, 12-Jun-2012
1430,Revenue,CCHD,Home Care - Elderly - South,Other Small Contracts,Milestones Outreach Dementia Services,491.25, 07-Jun-2012
1431,Revenue,CCHD,Home Care - Elderly - North,Other Small Contracts,Milestones Outreach Dementia Services,191.25, 07-Jun-2012
1432,Revenue,CCHD,Day Care - South,Private & Voluntary Day Care,Milestones Outreach Dementia Services,60, 07-Jun-2012
1433,Revenue,CCHD,Day Care - North,Private & Voluntary Day Care,Milestones Outreach Dementia Services,93.75, 07-Jun-2012
1434,Revenue,CCHD,Home care - Elderly MH - North,Other Small Contracts,Milestones Outreach Dementia Services,678.75, 07-Jun-2012
1435,Revenue,CCHD,Elderly MH Day Care North,Private & Voluntary Day Care,Milestones Outreach Dementia Services,528.75, 07-Jun-2012
1436,Revenue,CCHD,Home Care - Elderly - South,Other Small Contracts,Milestones Outreach Dementia Services,755.13, 12-Jun-2012
1437,Revenue,CCHD,Home Care - Elderly - North,Other Small Contracts,Milestones Outreach Dementia Services,293.6, 12-Jun-2012
1438,Revenue,CCHD,Day Care - North,Private & Voluntary Day Care,Milestones Outreach Dementia Services,61, 12-Jun-2012
1439,Revenue,CCHD,Home care - Elderly MH - North,Other Small Contracts,Milestones Outreach Dementia Services,461.57, 12-Jun-2012
1440,Revenue,CCHD,Elderly MH Day Care North,Private & Voluntary Day Care,Milestones Outreach Dementia Services,477.99, 12-Jun-2012
1441,Revenue,CCHD,Home Care - Elderly - South,Other Small Contracts,Milestones Outreach Dementia Services,764, 12-Jun-2012
1442,Revenue,CCHD,Home Care - Elderly - North,Other Small Contracts,Milestones Outreach Dementia Services,263.58, 12-Jun-2012
1443,Revenue,CCHD,Day Care - North,Private & Voluntary Day Care,Milestones Outreach Dementia Services,61.12, 12-Jun-2012
1444,Revenue,CCHD,Home care - Elderly MH - North,Other Small Contracts,Milestones Outreach Dementia Services,546.26, 12-Jun-2012
1445,Revenue,CCHD,Elderly MH Day Care North,Private & Voluntary Day Care,Milestones Outreach Dementia Services,450.76, 12-Jun-2012
1446,Revenue,CCHD,Section 117 Placements MH Younger,Private & Voluntary Day Care,Milestones Trust,1043.64, 15-Jun-2012
1447,Revenue,CCHD,Supported Living (S28a) North,Private & Voluntary Home Care,Milestones Trust,1050.4, 26-Jun-2012
1448,Revenue,CCHD,Supported Living - KD,Private & Voluntary Home Care,Milestones Trust,4958.03, 25-Jun-2012
1449,Revenue,CCHD,Elderly MH Day Care South,Private & Voluntary Day Care,Milestones Trust,680, 15-Jun-2012
1450,Revenue,CCHD,Elderly MH Day Care North,Private & Voluntary Day Care,Milestones Trust,560, 01-Jun-2012
1451,Revenue,CCHD,Elderly MH Day Care North,Private & Voluntary Day Care,Milestones Trust,582.41, 15-Jun-2012
1452,Revenue,CCHD,Supported Living - PS,Private & Voluntary Home Care,Milestones Trust,1305.58, 13-Jun-2012
1453,Revenue,CCHD,Supported Living - PS,Private & Voluntary Home Care,Milestones Trust,2632.43, 13-Jun-2012
1454,Revenue,CCHD,Supported Living (S28a) South,Private & Voluntary Home Care,Milestones Trust,7502.63, 21-Jun-2012
1455,Revenue,CCHD,Section 117 Placements MH Younger,Private & Voluntary Day Care,Milestones Trust,1195.47, 15-Jun-2012
1456,Revenue,CCHD,Bed Purchasing - Elderly S117- North,Private & Voluntary Day Care,Milestones Trust,667.45, 15-Jun-2012
1457,Revenue,CCHD,Elderly MH Day Care South,Private & Voluntary Day Care,Milestones Trust,564.81, 15-Jun-2012
1458,Revenue,CCHD,Purchase of Non-Res Care - PS,Private & Voluntary Day Care,Milestones Trust,1380.85, 13-Jun-2012
1459,Revenue,CCHD,Purchase of Non-Res Care - PS,Private & Voluntary Day Care,Milestones Trust,884.11, 12-Jun-2012
1460,Revenue,CCHD,Purchase of Non-Res Care - PS,Private & Voluntary Day Care,Milestones Trust,1299.81, 12-Jun-2012
1461,Revenue,CCHD,Purchase of Non-Res Care - PS,Private & Voluntary Day Care,Milestones Trust,1557.61, 12-Jun-2012
1462,Revenue,CCHD,Purchase of Non-Res Care - PS,Private & Voluntary Day Care,Milestones Trust,1379.29, 12-Jun-2012
1463,Revenue,CCHD,Purchase of Non-Res Care - PS,Private & Voluntary Day Care,Milestones Trust,1003.34, 12-Jun-2012
1464,Revenue,CCHD,Purchase of Non-Res Care - PS,Private & Voluntary Day Care,Milestones Trust,1193.31, 12-Jun-2012
1465,Revenue,CCHD,Purchase of Non-Res Care - PS,Private & Voluntary Day Care,Milestones Trust,1181.47, 12-Jun-2012
1466,Revenue,CCHD,Stibbs and Fairburn,Private & Voluntary Respite Care,Milestones Trust,2061.97, 01-Jun-2012
1467,Revenue,CCHD,Supported Living - KD,Private & Voluntary Home Care,Milestones Trust,1390.75, 06-Jun-2012
1468,Revenue,CCHD,Supported Living - PS,Private & Voluntary Home Care,Milestones Trust,537.98, 22-Jun-2012
1469,Revenue,CCHD,Elderly MH Day Care South,Private & Voluntary Day Care,Milestones Trust,640, 22-Jun-2012
1470,Revenue,CCHD,Day Care - North,Private & Voluntary Day Care,Milestones Trust,577.5, 29-Jun-2012
1471,Revenue,CCHD,Supported Living - PS,Private & Voluntary Home Care,Milestones Trust,583.56, 29-Jun-2012
1472,Revenue,CCHD,Supported Living (S28a) South,Private & Voluntary Home Care,Milestones Trust,650.2, 21-Jun-2012
1473,Revenue,CCHD,Supported Living - PS,Private & Voluntary Home Care,Milestones Trust,619.65, 28-Jun-2012
1474,Revenue,CCHD,Supported Living - PS,Private & Voluntary Home Care,Milestones Trust,678.1, 29-Jun-2012
1475,Revenue,CCHD,Supported Living - PS,Private & Voluntary Home Care,Milestones Trust,1015.3, 28-Jun-2012
1476,Revenue,CCHD,Supported Living (S28a) South,Private & Voluntary Home Care,Milestones Trust,4236.65, 21-Jun-2012
1477,Revenue,CCHD,Supported Living - PS,Private & Voluntary Home Care,Milestones Trust,1210.96, 29-Jun-2012
1478,Revenue,CCHD,Supported Living - PS,Private & Voluntary Home Care,Milestones Trust,1782.13, 29-Jun-2012
1479,Revenue,CCHD,Supported Living - PS,Private & Voluntary Home Care,Milestones Trust,741.41, 29-Jun-2012
1480,Revenue,CCHD,Supported Living - PS,Private & Voluntary Home Care,Milestones Trust,1187.76, 29-Jun-2012
1481,Revenue,CCHD,Supported Living - PS,Private & Voluntary Home Care,Milestones Trust,1700.82, 29-Jun-2012
1482,Revenue,CCHD,Supported Living - PS,Private & Voluntary Home Care,Milestones Trust,671.56, 29-Jun-2012
1483,Revenue,CCHD,Supported Living (S28a) South,Private & Voluntary Home Care,Milestones Trust,561.94, 27-Jun-2012
1484,Revenue,CCHD,Supported Living (S28a) South,Private & Voluntary Home Care,Milestones Trust,5965.37, 27-Jun-2012
1485,Revenue,CCHD,Supported Living (S28a) South,Private & Voluntary Home Care,Milestones Trust,5844.49, 26-Jun-2012
1486,Revenue,CCHD,Supported Living (S28a) South,Private & Voluntary Home Care,Milestones Trust,6472.1, 26-Jun-2012
1487,Revenue,CCHD,Supported Living - PS,Private & Voluntary Home Care,Milestones Trust,567.35, 29-Jun-2012
1488,Revenue,CCHD,Supported Living - PS,Private & Voluntary Home Care,Milestones Trust,624.97, 29-Jun-2012
1489,Revenue,CCHD,Supported Living (S28a) North,Private & Voluntary Home Care,Milestones Trust,1200, 26-Jun-2012
1490,Revenue,CCHD,Supported Living (S28a) North,Private & Voluntary Home Care,Milestones Trust,1106.25, 26-Jun-2012
1491,Revenue,CCHD,Supported Living (S28a) South,Private & Voluntary Home Care,Milestones Trust,4124.99, 26-Jun-2012
1492,Revenue,CCHD,Supported Living (S28a) North,Private & Voluntary Home Care,Milestones Trust,10433.13, 26-Jun-2012
1493,Revenue,CCHD,Supported Living (S28a) North,Private & Voluntary Home Care,Milestones Trust,7082.66, 26-Jun-2012
1494,Revenue,CCHD,Supported Living (S28a) North,Private & Voluntary Home Care,Milestones Trust,7082.66, 26-Jun-2012
1495,Revenue,CCHD,Supported Living (S28a) North,Private & Voluntary Home Care,Milestones Trust,7082.66, 26-Jun-2012
1496,Revenue,CCHD,Supported Living (S28a) North,Private & Voluntary Home Care,Milestones Trust,8012.98, 26-Jun-2012
1497,Revenue,CCHD,Supported Living (S28a) North,Private & Voluntary Home Care,Milestones Trust,8012.98, 26-Jun-2012
1498,Revenue,CCHD,Supported Living (S28a) North,Private & Voluntary Home Care,Milestones Trust,8485.36, 27-Jun-2012
1499,Revenue,CCHD,Supported Living (S28a) North,Private & Voluntary Home Care,Milestones Trust,12118.99, 27-Jun-2012
1500,Revenue,CCHD,Supported Living (S28a) North,Private & Voluntary Home Care,Milestones Trust,3795.51, 27-Jun-2012
1501,Revenue,CCHD,Supported Living (S28a) North,Private & Voluntary Home Care,Milestones Trust,2657.48, 27-Jun-2012
1502,Revenue,CCHD,Bed purchasing - Elderly S117 - South,Nursing Homes,Mimosa Healthcare Holdings Ltd,1919.72, 12-Jun-2012
1503,Revenue,CCHD,Bed purchasing - Elderly MH - North,Nursing Homes,Mimosa Healthcare Holdings Ltd,1725.04, 12-Jun-2012
1504,Revenue,CCHD,Bed Purchasing - Under 65s PWLD - South,Residential Homes,Mmcg  Westcourt,12816.72, 12-Jun-2012
1505,Revenue,CCHD,Bed Purchasing - LD S28A- Over 65- South,Nursing Homes,Mortimer House Nursing Home,2553.84, 08-Jun-2012
1506,Revenue,CCHD,Bed Purchasing - LD S28A- Over 65- South,Nursing Homes,Mortimer House Nursing Home,2996.52, 08-Jun-2012
1507,Revenue,CCHD,Bed Purchasing - LD S28A- Over 65- South,Nursing Homes,Mortimer House Nursing Home,2553.84, 08-Jun-2012
1508,Revenue,CCHD,Bed Purchasing - LD S28A- Over 65- South,Nursing Homes,Mortimer House Nursing Home,3271.92, 08-Jun-2012
1509,Revenue,CCHD,Bed purchasing - Elderly PWLD - South,Nursing Homes,Mortimer House Nursing Home,3109.76, 08-Jun-2012
1510,Revenue,CCHD,Bed Purchasing - LD S28A- Over 65- South,Nursing Homes,Mortimer House Nursing Home,3277.24, 08-Jun-2012
1511,Revenue,CCHD,Older People's Commissioned Se,Grants to Voluntary Bodies,Mothers for Mothers,2135.25, 29-Jun-2012
1512,Revenue,CCHD,Supported Living - PS,Private & Voluntary Home Care,Moving On,3579.76, 11-Jun-2012
1513,Revenue,CCHD,Supported Living - PS,Private & Voluntary Home Care,Moving On,3738.97, 11-Jun-2012
1514,Revenue,CCHD,Supported Living - PS,Private & Voluntary Home Care,Moving On,6301.42, 11-Jun-2012
1515,Revenue,CCHD,Supported Living - PS,Private & Voluntary Home Care,Moving On,6549.77, 11-Jun-2012
1516,Revenue,CCHD,Social Lettings Agency,Other Supplies & Services,Individual,565, 27-Jun-2012
1517,Revenue,CCHD,Social Lettings Agency,Other Supplies & Services,Individual,950, 08-Jun-2012
1518,Revenue,CCHD,Under 65s PWLD - KH,Residential Homes,Mr J Davis & Mrs S Davis,1840, 19-Jun-2012
1519,Revenue,CCHD,Social Lettings Agency,Other Supplies & Services,Individual,565, 08-Jun-2012
1520,Revenue,CCHD,Tenancy Start Up Scheme,Other Supplies & Services,Individual,1250, 26-Jun-2012
1521,Revenue,CCHD,Tenancy Start Up Scheme,Other Supplies & Services,Individual,1300, 08-Jun-2012
1522,Revenue,CCHD,Social Lettings Agency,Other Supplies & Services,Individual,542.21, 27-Jun-2012
1523,Revenue,CCHD,Tenancy Start Up Scheme,Other Supplies & Services,Individual,625, 06-Jun-2012
1524,Revenue,CCHD,Social Lettings Agency,Other Supplies & Services,Individual,551.44, 08-Jun-2012
1525,Revenue,CCHD,Tenancy Start Up Scheme,Other Supplies & Services,Individual,565, 08-Jun-2012
1526,Revenue,CCHD,Social Lettings Agency,Other Supplies & Services,Individual,632.81, 18-Jun-2012
1527,Revenue,CCHD,Supported Living - PS,Private & Voluntary Home Care,Mrs B Kimber,928.38, 18-Jun-2012
1528,Revenue,CCHD,Supported Living - PS,Private & Voluntary Home Care,Mrs B Kimber,1364.55, 11-Jun-2012
1529,Revenue,CCHD,Purchase of Non-Res Care - PS,Private & Voluntary Day Care,Mrs B Kimber,1222.2, 11-Jun-2012
1530,Revenue,CCHD,Elderly MH Day Care South,Private & Voluntary Day Care,Mrs B Kimber,662.22, 15-Jun-2012
1531,Revenue,CCHD,Elderly MH Day Care South,Private & Voluntary Day Care,Mrs B Kimber,515.06, 15-Jun-2012
1532,Revenue,CCHD,Elderly MH Day Care North,Private & Voluntary Day Care,Mrs B Kimber,607.71, 15-Jun-2012
1533,Revenue,CCHD,Day Care - South,Private & Voluntary Day Care,Mrs B Kimber,909.33, 01-Jun-2012
1534,Revenue,CCHD,Day Care - South,Private & Voluntary Day Care,Mrs B Kimber,8505.83, 27-Jun-2012
1535,Revenue,CCHD,Day Care - South,Private & Voluntary Day Care,Mrs B Kimber,10562.91, 27-Jun-2012
1536,Revenue,CCHD,Day Care - South,Private & Voluntary Day Care,Mrs B Kimber,875.79, 21-Jun-2012
1537,Revenue,CCHD,Day Care - South,Private & Voluntary Day Care,Mrs B Kimber,664.94, 29-Jun-2012
1538,Revenue,CCHD,Day Care - North,Private & Voluntary Day Care,Mrs B Kimber,594.96, 22-Jun-2012
1539,Revenue,CCHD,Day Care - North,Private & Voluntary Day Care,Mrs B Kimber,679.05, 22-Jun-2012
1540,Revenue,CCHD,Day Care - North,Private & Voluntary Day Care,Mrs B Kimber,1551.48, 29-Jun-2012
1541,Revenue,CCHD,Home Care - Elderly - South,Other Small Contracts,Mrs B Kimber - Stepping Stones,2498.23, 25-Jun-2012
1542,Revenue,CCHD,Home Care - Elderly - North,Other Small Contracts,Mrs B Kimber - Stepping Stones,2454.12, 25-Jun-2012
1543,Revenue,CCHD,Day Care - South,Private & Voluntary Day Care,Mrs B Kimber - Stepping Stones,737.84, 25-Jun-2012
1544,Revenue,CCHD,Day Care - North,Private & Voluntary Day Care,Mrs B Kimber - Stepping Stones,304.76, 25-Jun-2012
1545,Revenue,CCHD,Under 65s -MH  Home Care Purch,Other Small Contracts,Mrs B Kimber - Stepping Stones,232.58, 25-Jun-2012
1546,Revenue,CCHD,Home care - Elderly MH - North,Other Small Contracts,Mrs B Kimber - Stepping Stones,288.72, 25-Jun-2012
1547,Revenue,CCHD,Elderly MH Day Care North,Private & Voluntary Day Care,Mrs B Kimber - Stepping Stones,352.88, 25-Jun-2012
1548,Revenue,CCHD,Supported Living - KD,Private & Voluntary Home Care,Mrs B Kimber - Stepping Stones,777.94, 25-Jun-2012
1549,Revenue,CCHD,Home Care - LD Under 65 - South,Private & Voluntary Home Care,Mrs B Kimber - Stepping Stones,96.24, 25-Jun-2012
1550,Revenue,CCHD,Home Care - LD Under 65 - North,Private & Voluntary Home Care,Mrs B Kimber - Stepping Stones,48.12, 25-Jun-2012
1551,Revenue,CCHD,PWLD Home Care - Under 65 - KH,Private & Voluntary Home Care,Mrs B Kimber - Stepping Stones,88.22, 25-Jun-2012
1552,Revenue,CCHD,Home Care - Elderly LD - North,Private & Voluntary Home Care,Mrs B Kimber - Stepping Stones,954.38, 25-Jun-2012
1553,Revenue,CCHD,Home Care - Elderly - South,Other Small Contracts,Mrs B Kimber - Stepping Stones,2811.28, 25-Jun-2012
1554,Revenue,CCHD,Home Care - Elderly - North,Other Small Contracts,Mrs B Kimber - Stepping Stones,2258.99, 25-Jun-2012
1555,Revenue,CCHD,Day Care - South,Private & Voluntary Day Care,Mrs B Kimber - Stepping Stones,792.23, 25-Jun-2012
1556,Revenue,CCHD,Day Care - North,Private & Voluntary Day Care,Mrs B Kimber - Stepping Stones,176.22, 25-Jun-2012
1557,Revenue,CCHD,Under 65s -MH  Home Care Purch,Other Small Contracts,Mrs B Kimber - Stepping Stones,232.29, 25-Jun-2012
1558,Revenue,CCHD,Home care - Elderly MH - North,Other Small Contracts,Mrs B Kimber - Stepping Stones,248.34, 25-Jun-2012
1559,Revenue,CCHD,Elderly MH Day Care North,Private & Voluntary Day Care,Mrs B Kimber - Stepping Stones,318.32, 25-Jun-2012
1560,Revenue,CCHD,Supported Living - KD,Private & Voluntary Home Care,Mrs B Kimber - Stepping Stones,752.94, 25-Jun-2012
1561,Revenue,CCHD,Home Care - LD Under 65 - South,Private & Voluntary Home Care,Mrs B Kimber - Stepping Stones,92.12, 25-Jun-2012
1562,Revenue,CCHD,Home Care - LD Under 65 - North,Private & Voluntary Home Care,Mrs B Kimber - Stepping Stones,44.06, 25-Jun-2012
1563,Revenue,CCHD,PWLD Home Care - Under 65 - KH,Private & Voluntary Home Care,Mrs B Kimber - Stepping Stones,88.11, 25-Jun-2012
1564,Revenue,CCHD,Home Care - Elderly LD - North,Private & Voluntary Home Care,Mrs B Kimber - Stepping Stones,969.21, 25-Jun-2012
1565,Revenue,CCHD,Home Care - Elderly - South,Other Small Contracts,Mrs B Kimber - Stepping Stones,2958.81, 25-Jun-2012
1566,Revenue,CCHD,Home Care - Elderly - North,Other Small Contracts,Mrs B Kimber - Stepping Stones,2385.85, 25-Jun-2012
1567,Revenue,CCHD,Day Care - South,Private & Voluntary Day Care,Mrs B Kimber - Stepping Stones,801.37, 25-Jun-2012
1568,Revenue,CCHD,Day Care - North,Private & Voluntary Day Care,Mrs B Kimber - Stepping Stones,308.71, 25-Jun-2012
1569,Revenue,CCHD,Under 65s -MH  Home Care Purch,Other Small Contracts,Mrs B Kimber - Stepping Stones,204.51, 25-Jun-2012
1570,Revenue,CCHD,Home care - Elderly MH - North,Other Small Contracts,Mrs B Kimber - Stepping Stones,308.71, 25-Jun-2012
1571,Revenue,CCHD,Elderly MH Day Care North,Private & Voluntary Day Care,Mrs B Kimber - Stepping Stones,347.75, 25-Jun-2012
1572,Revenue,CCHD,Supported Living - KD,Private & Voluntary Home Care,Mrs B Kimber - Stepping Stones,793.98, 25-Jun-2012
1573,Revenue,CCHD,Home Care - LD Under 65 - South,Private & Voluntary Home Care,Mrs B Kimber - Stepping Stones,96.24, 25-Jun-2012
1574,Revenue,CCHD,Home Care - LD Under 65 - North,Private & Voluntary Home Care,Mrs B Kimber - Stepping Stones,48.12, 25-Jun-2012
1575,Revenue,CCHD,PWLD Home Care - Under 65 - KH,Private & Voluntary Home Care,Mrs B Kimber - Stepping Stones,88.22, 25-Jun-2012
1576,Revenue,CCHD,Home Care - Elderly LD - North,Private & Voluntary Home Care,Mrs B Kimber - Stepping Stones,946.36, 25-Jun-2012
1577,Revenue,CCHD,Social Lettings Agency,Other Supplies & Services,Individual,632.81, 14-Jun-2012
1578,Revenue,CCHD,Social Lettings Agency,Other Supplies & Services,Individual,565, 29-Jun-2012
1579,Revenue,CCHD,Social Lettings Agency,Other Supplies & Services,Individual,565, 15-Jun-2012
1580,Revenue,CCHD,Social Lettings Agency,Other Supplies & Services,Individual,565, 08-Jun-2012
1581,Revenue,CCHD,Tenancy Start Up Scheme,Other Supplies & Services,Individual,710, 11-Jun-2012
1582,Revenue,CCHD,Purchase of Non-Res Care - KD,Private & Voluntary Day Care,Mrs W Thompson,1484.4, 06-Jun-2012
1583,Revenue,CCHD,Purchase of Non-Res Care - KD,Private & Voluntary Day Care,Mrs W Thompson,563.28, 06-Jun-2012
1584,Revenue,CCHD,Purchase of Non-Res Care - KD,Private & Voluntary Day Care,Mrs W Thompson,1484.4, 28-Jun-2012
1585,Revenue,CCHD,Purchase of Non-Res Care - KD,Private & Voluntary Day Care,Mrs W Thompson,563.28, 28-Jun-2012
1586,Revenue,CCHD,Social Lettings Agency,Other Supplies & Services,Individual,858.8, 15-Jun-2012
1587,Revenue,CCHD,Finance,"Provisions (Food, etc)",Ms Sarah Hannett,581.25, 07-Jun-2012
1588,Revenue,CCHD,Home Care - General,Uniforms & Clothing,Muzzell Healthcare,434, 18-Jun-2012
1589,Revenue,CCHD,Younger MH non-res purchasing,Private & Voluntary Day Care,NAS Services Limited,1367.77, 15-Jun-2012
1590,Revenue,CCHD,Younger MH non-res purchasing,Private & Voluntary Day Care,NAS Services Limited,678.6, 22-Jun-2012
1591,Revenue,CCHD,Younger MH non-res purchasing,Private & Voluntary Day Care,NAS Services Limited,563.45, 22-Jun-2012
1592,Revenue,CCHD,Younger MH non-res purchasing,Private & Voluntary Day Care,NAS Services Limited,687.6, 22-Jun-2012
1593,Revenue,CCHD,Training - Adult Services,Training Expenses,NAS Services Limited,1850, 29-Jun-2012
1594,Revenue,CCHD,Community Support ACM - South,Preventative Assistance,National Star College FDY Limited,1214.3, 20-Jun-2012
1595,Revenue,CCHD,Purchase of Non-Res Care - KD,Private & Voluntary Day Care,Natureworks Training Community Interest,1127.84, 20-Jun-2012
1596,Revenue,CCHD,Home Care - Elderly - South,Other Small Contracts,Network Health & Social Care,1061, 01-Jun-2012
1597,Revenue,CCHD,Home Care - Elderly - North,Other Small Contracts,Network Health & Social Care,3340.52, 01-Jun-2012
1598,Revenue,CCHD,Home Care - Elderly - South,Other Small Contracts,Network Health & Social Care,1084.45, 18-Jun-2012
1599,Revenue,CCHD,Home Care - Elderly - North,Other Small Contracts,Network Health & Social Care,3219.99, 18-Jun-2012
1600,Revenue,CCHD,Home Care - Elderly - South,Other Small Contracts,Network Health & Social Care,1092.13, 18-Jun-2012
1601,Revenue,CCHD,Home Care - Elderly - North,Other Small Contracts,Network Health & Social Care,2908.56, 18-Jun-2012
1602,Revenue,CCHD,Home Care - Elderly - South,Other Small Contracts,Network Health & Social Care,1115.24, 21-Jun-2012
1603,Revenue,CCHD,Home Care - Elderly - North,Other Small Contracts,Network Health & Social Care,2639.21, 21-Jun-2012
1604,Revenue,CCHD,Home Care - Elderly - South,Other Small Contracts,Network Health & Social Care,1242.22, 25-Jun-2012
1605,Revenue,CCHD,Home Care - Elderly - North,Other Small Contracts,Network Health & Social Care,2643.3, 25-Jun-2012
1606,Revenue,CCHD,Bed Purchasing - Under 65s PWLD - South,Residential Homes,Nightingale Nursing Home,3076.64, 12-Jun-2012
1607,Revenue,CCHD,Delayed Transfers of Care Gran,Other Supplies & Services,North Bristol NHS Trust,8600, 27-Jun-2012
1608,Revenue,CCHD,Bed Purchasing - Under 65s PWLD - South,Residential Homes,Norwood   Broadway House,4853.64, 12-Jun-2012
1609,Revenue,CCHD,Home Care - Elderly - South,Other Small Contracts,Nursing Solutions Limited,1075.38, 01-Jun-2012
1610,Revenue,CCHD,Day Care - South,Private & Voluntary Day Care,Nursing Solutions Limited,26.97, 01-Jun-2012
1611,Revenue,CCHD,Home care - Elderly MH - North,Other Small Contracts,Nursing Solutions Limited,123.36, 01-Jun-2012
1612,Revenue,CCHD,Home Care - Elderly - South,Other Small Contracts,Nursing Solutions Limited,1123.26, 07-Jun-2012
1613,Revenue,CCHD,Day Care - South,Private & Voluntary Day Care,Nursing Solutions Limited,30.88, 07-Jun-2012
1614,Revenue,CCHD,Home care - Elderly MH - North,Other Small Contracts,Nursing Solutions Limited,65.62, 07-Jun-2012
1615,Revenue,CCHD,Elderly MH Day Care North,Private & Voluntary Day Care,Nursing Solutions Limited,46.32, 07-Jun-2012
1616,Revenue,CCHD,Home Care - Elderly - South,Other Small Contracts,Nursing Solutions Limited,1123.26, 14-Jun-2012
1617,Revenue,CCHD,Day Care - South,Private & Voluntary Day Care,Nursing Solutions Limited,30.88, 14-Jun-2012
1618,Revenue,CCHD,Home care - Elderly MH - North,Other Small Contracts,Nursing Solutions Limited,7.72, 14-Jun-2012
1619,Revenue,CCHD,Home Care - Elderly - South,Other Small Contracts,Nursing Solutions Limited,1100.1, 20-Jun-2012
1620,Revenue,CCHD,Day Care - South,Private & Voluntary Day Care,Nursing Solutions Limited,30.88, 20-Jun-2012
1621,Revenue,CCHD,Home Care - Elderly - South,Other Small Contracts,Nursing Solutions Limited,1107.82, 27-Jun-2012
1622,Revenue,CCHD,Day Care - South,Private & Voluntary Day Care,Nursing Solutions Limited,30.88, 27-Jun-2012
1623,Revenue,CCHD,Bed Purchasing - Elderly - South,Residential Homes,Oaktree Lodge,1267.76, 12-Jun-2012
1624,Revenue,CCHD,Tenancy Start Up Scheme,Other Supplies & Services,Ocean Estate Agents,1450, 29-Jun-2012
1625,Revenue,CCHD,Enabling Activities,Conference Expenses,Ocean Media Group Ltd,774, 22-Jun-2012
1626,Revenue,CCHD,Housing Advice,Grants to Voluntary Bodies,Orchard & Shipman PLC,13333.25, 18-Jun-2012
1627,Revenue,CCHD,Bed purchasing -S28A  Under 65 - North,Residential Homes,Orchard End Limited,15160.32, 12-Jun-2012
1628,Revenue,CCHD,Learning Difficulties Development Fund,Other Supplies & Services,Orchard Studios,7230, 22-Jun-2012
1629,Revenue,CCHD,Bed Purchasing - Elderly - South,Residential Homes,Osbourne Court,531.08, 12-Jun-2012
1630,Revenue,CCHD,Frenchay Hospital Purchasing,Residential Homes,Osbourne Court,8768.83, 12-Jun-2012
1631,Revenue,CCHD,Frenchay Hospital Purchasing,Residential Homes,Osbourne Court,640.48, 12-Jun-2012
1632,Revenue,CCHD,Bed Purchasing - Elderly - North,Residential Homes,Osbourne Court,956.4, 12-Jun-2012
1633,Revenue,CCHD,Bed Purchasing - Elderly S117- North,Residential Homes,Osbourne Court,1879.04, 12-Jun-2012
1634,Revenue,CCHD,Bed Purchasing - Elderly S117- North,Residential Homes,Osbourne Court,1716, 12-Jun-2012
1635,Revenue,CCHD,Bed purchasing - Elderly MH - North,Residential Homes,Osbourne Court,1434.24, 12-Jun-2012
1636,Revenue,CCHD,Bed Purchasing - Elderly S117- North,Residential Homes,Osbourne Court,1880, 12-Jun-2012
1637,Revenue,CCHD,Frenchay Hospital Purchasing,Residential Homes,Osbourne Court,1185.68, 12-Jun-2012
1638,Revenue,CCHD,Bed Purchasing - Under 65s PWLD - South,Residential Homes,Osprey Court,7564.96, 12-Jun-2012
1639,Revenue,CCHD,Bed purchasing - S28A Under 65 - South,Residential Homes,Osprey Court,4219.68, 12-Jun-2012
1640,Revenue,CCHD,Bed purchasing - S28A Under 65 - South,Residential Homes,Osprey Court,6249.96, 12-Jun-2012
1641,Revenue,CCHD,Research & Conferences,Other Supplies & Services,Oxford Brooks Enterprises Ltd,3000, 29-Jun-2012
1642,Revenue,CCHD,Bed Purchasing - Elderly MH - South,Residential Homes,Park Farm House,1330.8, 12-Jun-2012
1643,Revenue,CCHD,Frenchay Hospital Purchasing,Residential Homes,Park Farm House,816.48, 12-Jun-2012
1644,Revenue,CCHD,Bed Purchasing - Elderly - South,Residential Homes,Park Farm House,1520.68, 12-Jun-2012
1645,Revenue,CCHD,Bed Purchasing - Elderly MH - South,Residential Homes,Park Farm House,1582.64, 12-Jun-2012
1646,Revenue,CCHD,Bed Purchasing - Under 65s PWLD - South,Residential Homes,Park Hall,4894.68, 12-Jun-2012
1647,Revenue,CCHD,Bed purchasing - Elderly PWLD - North,Residential Homes,Park Hall,4855.8, 12-Jun-2012
1648,Revenue,CCHD,Bed purchasing - Under 65s PWLD - North,Residential Homes,Park Hall,7480.41, 12-Jun-2012
1649,Revenue,CCHD,Bed Purchasing - Under 65s PWLD - South,Residential Homes,Park Hall,10510.04, 12-Jun-2012
1650,Revenue,CCHD,Bed Purchasing - Under 65s PWLD - South,Residential Homes,Park Hall,5500, 12-Jun-2012
1651,Revenue,CCHD,Bed purchasing - Elderly PWLD - South,Residential Homes,Park Hall,2501.56, 12-Jun-2012
1652,Revenue,CCHD,Bed Purchasing - Under 65s PWLD - South,Residential Homes,Park Hall,8121.42, 12-Jun-2012
1653,Revenue,CCHD,Bed purchasing - S28A Under 65 - South,Residential Homes,Park Hall,4571.08, 12-Jun-2012
1654,Revenue,CCHD,Bed Purchasing - S28A - Over 65- North,Residential Homes,Park Hall,5240.84, 12-Jun-2012
1655,Revenue,CCHD,Bed purchasing - Under 65s PWLD - North,Residential Homes,Park Hall,5082.32, 12-Jun-2012
1656,Revenue,CCHD,Bed Purchasing - Under 65s PWLD - South,Residential Homes,Park Hall,6523.34, 12-Jun-2012
1657,Revenue,CCHD,Bed Purchasing - Under 65s PWLD - South,Residential Homes,Park Hall,4871.2, 12-Jun-2012
1658,Revenue,CCHD,Bed purchasing -S28A  Under 65 - North,Residential Homes,Park Hall,5789.4, 12-Jun-2012
1659,Revenue,CCHD,Bed purchasing - S28A Under 65 - South,Residential Homes,Park Hall,5529.44, 12-Jun-2012
1660,Revenue,CCHD,Bed Purchasing - Elderly - South,Residential Homes,Park Street Home,2042.6, 12-Jun-2012
1661,Revenue,CCHD,Minor Adaptations Service,Operational Equipment,Patterson Medical,1689.2, 28-Jun-2012
1662,Revenue,CCHD,Bed Purchasing - Under 65s PWLD - South,Residential Homes,Penleigh House Care Home,4451.6, 12-Jun-2012
1663,Revenue,CCHD,Bed Purchasing - Under 65s PWLD - South,Residential Homes,Penleigh House Care Home,9057.16, 12-Jun-2012
1664,Revenue,CCHD,Bed Purchasing - Under 65s PWLD - South,Residential Homes,Penleigh House Care Home,5175.52, 12-Jun-2012
1665,Revenue,CCHD,Bed purchasing - Elderly PWLD - South,Residential Homes,Penleigh House Care Home,4222.56, 12-Jun-2012
1666,Revenue,CCHD,Bed Purchasing - Under 65s PWLD - South,Residential Homes,Penleigh House Care Home,8049.58, 12-Jun-2012
1667,Revenue,CCHD,Bed Purchasing - Under 65s PWLD - South,Residential Homes,Penleigh House Care Home,4599.76, 12-Jun-2012
1668,Revenue,CCHD,Bed purchasing - S28A Under 65 - South,Residential Homes,Penleigh House Care Home,5366.32, 12-Jun-2012
1669,Revenue,CCHD,Bed Purchasing - Under 65s PWLD - South,Residential Homes,Penleigh House Care Home,4847.56, 12-Jun-2012
1670,Revenue,CCHD,Bed Purchasing - Under 65s PWLD - South,Residential Homes,Penleigh House Care Home,9028.18, 12-Jun-2012
1671,Revenue,CCHD,Southmead Hospital Purchasing,Residential Homes,Petersfield Ad Care Home,874.8, 12-Jun-2012
1672,Revenue,CCHD,Bed Purchasing - Elderly - North,Residential Homes,Petersfield Ad Care Home,10748.82, 12-Jun-2012
1673,Revenue,CCHD,Home Care - Elderly - North,Other Small Contracts,Premier Homecare Limited,4708.44, 06-Jun-2012
1674,Revenue,CCHD,Day Care - North,Private & Voluntary Day Care,Premier Homecare Limited,216.5, 06-Jun-2012
1675,Revenue,CCHD,Home care - Elderly MH - North,Other Small Contracts,Premier Homecare Limited,311.2, 06-Jun-2012
1676,Revenue,CCHD,Elderly MH Day Care North,Private & Voluntary Day Care,Premier Homecare Limited,423.94, 06-Jun-2012
1677,Revenue,CCHD,Home Care - Elderly - North,Other Small Contracts,Premier Homecare Limited,4644.51, 25-Jun-2012
1678,Revenue,CCHD,Day Care - North,Private & Voluntary Day Care,Premier Homecare Limited,234.57, 25-Jun-2012
1679,Revenue,CCHD,Home care - Elderly MH - North,Other Small Contracts,Premier Homecare Limited,311.2, 25-Jun-2012
1680,Revenue,CCHD,Elderly MH Day Care North,Private & Voluntary Day Care,Premier Homecare Limited,423.94, 25-Jun-2012
1681,Revenue,CCHD,Home Care - Elderly - North,Other Small Contracts,Premier Homecare Limited,4577.65, 25-Jun-2012
1682,Revenue,CCHD,Day Care - North,Private & Voluntary Day Care,Premier Homecare Limited,162.38, 25-Jun-2012
1683,Revenue,CCHD,Home care - Elderly MH - North,Other Small Contracts,Premier Homecare Limited,311.2, 25-Jun-2012
1684,Revenue,CCHD,Elderly MH Day Care North,Private & Voluntary Day Care,Premier Homecare Limited,428.45, 25-Jun-2012
1685,Revenue,CCHD,Home Care - Elderly - South,Other Small Contracts,Premier Homecare Limited,108.24, 25-Jun-2012
1686,Revenue,CCHD,Home Care - Elderly - North,Other Small Contracts,Premier Homecare Limited,4482.95, 25-Jun-2012
1687,Revenue,CCHD,Day Care - North,Private & Voluntary Day Care,Premier Homecare Limited,189.45, 25-Jun-2012
1688,Revenue,CCHD,Home care - Elderly MH - North,Other Small Contracts,Premier Homecare Limited,279.63, 25-Jun-2012
1689,Revenue,CCHD,Elderly MH Day Care North,Private & Voluntary Day Care,Premier Homecare Limited,360.8, 25-Jun-2012
1690,Revenue,CCHD,Day Care - South,Private & Voluntary Day Care,Prestige Nursing,266.4, 01-Jun-2012
1691,Revenue,CCHD,Day Care - North,Private & Voluntary Day Care,Prestige Nursing,696, 01-Jun-2012
1692,Revenue,CCHD,Home care - Elderly MH - North,Other Small Contracts,Prestige Nursing,192, 01-Jun-2012
1693,Revenue,CCHD,Elderly MH Day Care North,Private & Voluntary Day Care,Prestige Nursing,528, 01-Jun-2012
1694,Revenue,CCHD,Home Care - Elderly - South,Other Small Contracts,Prestige Nursing,721.63, 07-Jun-2012
1695,Revenue,CCHD,Home Care - Elderly - North,Other Small Contracts,Prestige Nursing,640.5, 07-Jun-2012
1696,Revenue,CCHD,Day Care - South,Private & Voluntary Day Care,Prestige Nursing,478.31, 07-Jun-2012
1697,Revenue,CCHD,Day Care - North,Private & Voluntary Day Care,Prestige Nursing,1044.26, 07-Jun-2012
1698,Revenue,CCHD,Home care - Elderly MH - North,Other Small Contracts,Prestige Nursing,286.09, 07-Jun-2012
1699,Revenue,CCHD,Elderly MH Day Care North,Private & Voluntary Day Care,Prestige Nursing,830.41, 07-Jun-2012
1700,Revenue,CCHD,Home Care - Elderly - South,Other Small Contracts,Prestige Nursing,768.6, 12-Jun-2012
1701,Revenue,CCHD,Home Care - Elderly - North,Other Small Contracts,Prestige Nursing,798.49, 12-Jun-2012
1702,Revenue,CCHD,Day Care - South,Private & Voluntary Day Care,Prestige Nursing,452.62, 12-Jun-2012
1703,Revenue,CCHD,Day Care - North,Private & Voluntary Day Care,Prestige Nursing,1202.74, 12-Jun-2012
1704,Revenue,CCHD,Home care - Elderly MH - North,Other Small Contracts,Prestige Nursing,277.55, 12-Jun-2012
1705,Revenue,CCHD,Elderly MH Day Care North,Private & Voluntary Day Care,Prestige Nursing,610.61, 12-Jun-2012
1706,Revenue,CCHD,Home Care - Elderly - South,Other Small Contracts,Prestige Nursing,760.06, 12-Jun-2012
1707,Revenue,CCHD,Home Care - Elderly - North,Other Small Contracts,Prestige Nursing,696.01, 12-Jun-2012
1708,Revenue,CCHD,Day Care - South,Private & Voluntary Day Care,Prestige Nursing,367.22, 12-Jun-2012
1709,Revenue,CCHD,Day Care - North,Private & Voluntary Day Care,Prestige Nursing,1071.77, 12-Jun-2012
1710,Revenue,CCHD,Home care - Elderly MH - North,Other Small Contracts,Prestige Nursing,264.74, 12-Jun-2012
1711,Revenue,CCHD,Elderly MH Day Care North,Private & Voluntary Day Care,Prestige Nursing,567.91, 12-Jun-2012
1712,Revenue,CCHD,Home Care - Elderly - South,Other Small Contracts,Prestige Nursing,683.2, 20-Jun-2012
1713,Revenue,CCHD,Home Care - Elderly - North,Other Small Contracts,Prestige Nursing,738.71, 20-Jun-2012
1714,Revenue,CCHD,Day Care - South,Private & Voluntary Day Care,Prestige Nursing,486.78, 20-Jun-2012
1715,Revenue,CCHD,Day Care - North,Private & Voluntary Day Care,Prestige Nursing,1080.31, 20-Jun-2012
1716,Revenue,CCHD,Home care - Elderly MH - North,Other Small Contracts,Prestige Nursing,175.07, 20-Jun-2012
1717,Revenue,CCHD,Elderly MH Day Care North,Private & Voluntary Day Care,Prestige Nursing,503.86, 20-Jun-2012
1718,Revenue,CCHD,Home Care - Elderly - South,Other Small Contracts,Prestige Nursing,696.01, 20-Jun-2012
1719,Revenue,CCHD,Home Care - Elderly - North,Other Small Contracts,Prestige Nursing,862.54, 20-Jun-2012
1720,Revenue,CCHD,Day Care - South,Private & Voluntary Day Care,Prestige Nursing,392.84, 20-Jun-2012
1721,Revenue,CCHD,Day Care - North,Private & Voluntary Day Care,Prestige Nursing,1101.66, 20-Jun-2012
1722,Revenue,CCHD,Home care - Elderly MH - North,Other Small Contracts,Prestige Nursing,264.74, 20-Jun-2012
1723,Revenue,CCHD,Elderly MH Day Care North,Private & Voluntary Day Care,Prestige Nursing,333.06, 20-Jun-2012
1724,Revenue,CCHD,Older People's Commissioned Se,Grants to Voluntary Bodies,Princess Royal Trust Carers Centre,38130, 29-Jun-2012
1725,Revenue,CCHD,Older People's Commissioned Se,Grants to Voluntary Bodies,Princess Royal Trust Carers Centre,1930.75, 29-Jun-2012
1726,Revenue,CCHD,Bed purchasing - Elderly MH - North,Residential Homes,Prior Mews Care Home,809.44, 12-Jun-2012
1727,Revenue,CCHD,Section 117 Placements MH Younger,Private & Voluntary Day Care,PSS,785.73, 07-Jun-2012
1728,Revenue,CCHD,Kingswood Centre - Maples Suite,"Provisions (Food, etc)",R Jays Cafe,540, 08-Jun-2012
1729,Revenue,CCHD,Kingswood Centre - Maples Suite,"Provisions (Food, etc)",R Jays Cafe,640, 26-Jun-2012
1730,Revenue,CCHD,Bed purchasing - Elderly MH - North,Nursing Homes,Ravenswood,1265.84, 12-Jun-2012
1731,Revenue,CCHD,Bed Purchasing - Elderly MH - South,Residential Homes,Ravenswood,2152.08, 12-Jun-2012
1732,Revenue,CCHD,Bed Purchasing - Elderly - North,Nursing Homes,Ravenswood,7838.53, 12-Jun-2012
1733,Revenue,CCHD,Bed Purchasing - Elderly - North,Nursing Homes,Ravenswood,1978.36, 12-Jun-2012
1734,Revenue,CCHD,Bed Purchasing - Elderly S117- North,Nursing Homes,Redholme Memory Care Limited,3888.24, 12-Jun-2012
1735,Revenue,CCHD,Bed Purchasing - Elderly - South,Nursing Homes,Regent House,1637.96, 12-Jun-2012
1736,Revenue,CCHD,Southmead Hospital Purchasing,Nursing Homes,Regent House,975.84, 12-Jun-2012
1737,Revenue,CCHD,Bed Purchasing - Elderly - South,Nursing Homes,Regent House,2029.8, 12-Jun-2012
1738,Revenue,CCHD,Bed Purchasing - Elderly - North,Nursing Homes,Regent House,1311.2, 12-Jun-2012
1739,Revenue,CCHD,Bed Purchasing - Elderly - South,Nursing Homes,Regent House,1637.96, 12-Jun-2012
1740,Revenue,CCHD,Bed Purchasing - Elderly - South,Nursing Homes,Regent House,632.92, 12-Jun-2012
1741,Revenue,CCHD,Southmead Hospital Purchasing,Nursing Homes,Regent House,1379.88, 12-Jun-2012
1742,Revenue,CCHD,Bed Purchasing - Elderly - South,Nursing Homes,Regent House,1635.28, 12-Jun-2012
1743,Revenue,CCHD,Bed Purchasing - Elderly MH - South,Nursing Homes,Regent House,1928.12, 12-Jun-2012
1744,Revenue,CCHD,Bed Purchasing - Elderly - South,Nursing Homes,Regent House,6500.55, 12-Jun-2012
1745,Revenue,CCHD,Bed Purchasing - Elderly - North,Nursing Homes,Regent House,2627.73, 12-Jun-2012
1746,Revenue,CCHD,Bed Purchasing - Elderly - North,Nursing Homes,Regent House,1501.56, 12-Jun-2012
1747,Revenue,CCHD,Bed Purchasing - Elderly MH - South,Nursing Homes,Regent House,1195.08, 12-Jun-2012
1748,Revenue,CCHD,Bed purchasing - Elderly MH - North,Nursing Homes,Regent House,1276.8, 12-Jun-2012
1749,Revenue,CCHD,Elderly MH Day Care South,Private & Voluntary Day Care,Rethink,1569.45, 27-Jun-2012
1750,Revenue,CCHD,Bed Purchasing - Under 65s PWLD - South,Residential Homes,Ridgeway House,3418.56, 12-Jun-2012
1751,Revenue,CCHD,Bed Purchasing - Under 65s PWLD - South,Residential Homes,Riverside House,3524.88, 12-Jun-2012
1752,Revenue,CCHD,Bed Purchasing - Elderly - South,Nursing Homes,Riversway Nursing Home,1156.6, 12-Jun-2012
1753,Revenue,CCHD,Southmead Hospital Purchasing,Nursing Homes,Riversway Nursing Home,2020.48, 12-Jun-2012
1754,Revenue,CCHD,Bed purchasing - Elderly PWLD - South,Residential Homes,Rockleaze,2159.92, 12-Jun-2012
1755,Revenue,CCHD,Bed purchasing - Elderly PWLD - South,Residential Homes,Rockleaze,1399.76, 12-Jun-2012
1756,Revenue,CCHD,Bed Purchasing - LD S28A- Over 65- South,Residential Homes,Rockleaze,2039.28, 12-Jun-2012
1757,Revenue,CCHD,Bed Purchasing - Under 65s PWLD - South,Residential Homes,Rockleaze,2364.24, 12-Jun-2012
1758,Revenue,CCHD,Bed purchasing - Elderly PWLD - South,Residential Homes,Rockleaze,1399.76, 12-Jun-2012
1759,Revenue,CCHD,Bed Purchasing - Under 65s PWLD - South,Residential Homes,Rosewood Lodge & Brook House,7958.4, 12-Jun-2012
1760,Revenue,CCHD,Bed Purchasing - Elderly MH - South,Residential Homes,Ross Healthcare,1280.12, 12-Jun-2012
1761,Revenue,CCHD,Frenchay Hospital Purchasing,Residential Homes,Roundham Court,1239.2, 12-Jun-2012
1762,Revenue,CCHD,Day Care - North,Private & Voluntary Day Care,Royal National Institute For Deaf People,541.08, 22-Jun-2012
1763,Revenue,CCHD,MH Purchasing - Younger,Residential Homes,Ruskin Mill College,4538.82, 12-Jun-2012
1764,Revenue,CCHD,Bed Purchasing - Under 65s PWLD - South,Residential Homes,Salters Hill Barn,1995.2, 12-Jun-2012
1765,Revenue,CCHD,Learning Difficulties PSL,Rent,Individual,1400, 01-Jun-2012
1766,Revenue,CCHD,Learning Difficulties PSL,Rent,Individual,1400, 29-Jun-2012
1767,Revenue,CCHD,Charlton,"Provisions (Food, etc)",School Milk Services Limited,576.36, 29-Jun-2012
1768,Revenue,CCHD,Bed purchasing - Under 65s PWLD - North,Residential Homes,Scope   Accounts Dept,4910.2, 12-Jun-2012
1769,Revenue,CCHD,Bed Purchasing - Under 65s PWLD - South,Residential Homes,Scope   Accounts Dept,2999.88, 12-Jun-2012
1770,Revenue,CCHD,Supported Living - KD,Private & Voluntary Home Care,SeeAbility,4464.33, 06-Jun-2012
1771,Revenue,CCHD,Day Care - North,Private & Voluntary Day Care,SeeAbility,1854.15, 06-Jun-2012
1772,Revenue,CCHD,Supported Living - KD,Private & Voluntary Home Care,SeeAbility,1174.98, 06-Jun-2012
1773,Revenue,CCHD,Supported Living - KD,Private & Voluntary Home Care,SeeAbility,6386.3, 06-Jun-2012
1774,Revenue,CCHD,Supported Living - PS,Private & Voluntary Home Care,Selborne Care Ltd,1720.6, 19-Jun-2012
1775,Revenue,CCHD,Supported Living - PS,Private & Voluntary Home Care,Selborne Care Ltd,2687.94, 19-Jun-2012
1776,Revenue,CCHD,Supported Living - PS,Private & Voluntary Home Care,Selborne Care Ltd,1138.32, 19-Jun-2012
1777,Revenue,CCHD,Supported Living - PS,Private & Voluntary Home Care,Selborne Care Ltd,4915.1, 19-Jun-2012
1778,Revenue,CCHD,Supported Living - PS,Private & Voluntary Home Care,Selborne Care Ltd,5038.94, 25-Jun-2012
1779,Revenue,CCHD,Supported Living - PS,Private & Voluntary Home Care,Selborne Care Ltd,1138.7, 20-Jun-2012
1780,Revenue,CCHD,Supported Living - PS,Private & Voluntary Home Care,Selborne Care Ltd,505.92, 19-Jun-2012
1781,Revenue,CCHD,Supported Living - PS,Private & Voluntary Home Care,Selborne Care Ltd,4594.9, 19-Jun-2012
1782,Revenue,CCHD,Supported Living - PS,Private & Voluntary Home Care,Selborne Care Ltd,544.92, 18-Jun-2012
1783,Revenue,CCHD,Supported Living - PS,Private & Voluntary Home Care,Selborne Care Ltd,1896.72, 19-Jun-2012
1784,Revenue,CCHD,Supported Living - PS,Private & Voluntary Home Care,Selborne Care Ltd,1734.8, 25-Jun-2012
1785,Revenue,CCHD,Supported Living - PS,Private & Voluntary Home Care,Selborne Care Ltd,2646.04, 26-Jun-2012
1786,Revenue,CCHD,Supported Living - PS,Private & Voluntary Home Care,Selborne Care Ltd,1147.68, 25-Jun-2012
1787,Revenue,CCHD,Purchase of Non-Res Care - KD,Private & Voluntary Day Care,Selborne Care Ltd,1391.64, 20-Jun-2012
1788,Revenue,CCHD,Supported Living - PS,Private & Voluntary Home Care,Selborne Care Ltd,4984.8, 26-Jun-2012
1789,Revenue,CCHD,Supported Living - PS,Private & Voluntary Home Care,Selborne Care Ltd,5080.44, 29-Jun-2012
1790,Revenue,CCHD,Purchase of Non-Res Care - KD,Private & Voluntary Day Care,Selborne Care Ltd,892.64, 20-Jun-2012
1791,Revenue,CCHD,Purchase of Non-Res Care - KD,Private & Voluntary Day Care,Selborne Care Ltd,851.2, 20-Jun-2012
1792,Revenue,CCHD,Supported Living - PS,Private & Voluntary Home Care,Selborne Care Ltd,4632.8, 25-Jun-2012
1793,Revenue,CCHD,Purchase of Non-Res Care - KD,Private & Voluntary Day Care,Selborne Care Ltd,741.76, 20-Jun-2012
1794,Revenue,CCHD,Supported Living - PS,Private & Voluntary Home Care,Selborne Care Ltd,1911.28, 25-Jun-2012
